Body Name,Body,Service Label,Service Code,CIPFA Detailed Expenditure Type,CIPFA Detailed Expenditure Code,Date,Transaction Number,Net Amount,Supplier Name
Nottinghamshire County Council,1111/1001,Children and Young People,CYP,Employee Related,ABA,01/03/2012,12-00427,1400,DE MONTFORT UNIVERSITY
Nottinghamshire County Council,1111/1001,Children and Young People,CYP,Employee Related,ABA,02/03/2012,12-00542,1380,IN TRAC TRAINING & CONSULTANCY LTD
Nottinghamshire County Council,1111/1001,Children and Young People,CYP,Employee Related,ABA,07/03/2012,12-00287,55,SUTTON CENTRE COMMUNITY CENTRE
Nottinghamshire County Council,1111/1001,Children and Young People,CYP,Employee Related,ABA,09/03/2012,12-01730,889,NOTTS ENTERPRISES LTD
Nottinghamshire County Council,1111/1001,Children and Young People,CYP,Employee Related,ABA,16/03/2012,12-02728,1345,WEST NOTTS COLLEGE
Nottinghamshire County Council,1111/1001,Children and Young People,CYP,Employee Related,ABA,22/03/2012,12-03516,540,THINK CHILDREN - NEWARK
Nottinghamshire County Council,1111/1001,Children and Young People,CYP,Employee Related,ABA,30/03/2012,12-07228,784,CARDEA RESOURCING LTD
Nottinghamshire County Council,1111/1001,Children and Young People,CYP,Premises Related,BAA,01/03/2012,12-00426,2491.97,NOTTINGHAM SECURITY LTD
Nottinghamshire County Council,1111/1001,Children and Young People,CYP,Premises Related,BAA,02/03/2012,12-00039,34.5,THE DUKERIES COLLEGE
Nottinghamshire County Council,1111/1001,Children and Young People,CYP,Premises Related,BAA,02/03/2012,12-00515,998,B AND M INSTALLATIONS
Nottinghamshire County Council,1111/1001,Children and Young People,CYP,Premises Related,BAA,07/03/2012,12-00216,2500,GREASLEY PARISH CHURCH
Nottinghamshire County Council,1111/1001,Children and Young People,CYP,Premises Related,BAA,07/03/2012,12-00287,2536.83,SUTTON CENTRE COMMUNITY CENTRE
Nottinghamshire County Council,1111/1001,Children and Young People,CYP,Premises Related,BAA,21/03/2012,12-07549,748,A R G (MANSFIELD) LIMITED
Nottinghamshire County Council,1111/1001,Children and Young People,CYP,Premises Related,BAA,21/03/2012,12-07551,825,A R G (MANSFIELD) LIMITED
Nottinghamshire County Council,1111/1001,Children and Young People,CYP,Premises Related,BAA,28/03/2012,12-06886,7.99,MAKING IT! ENTERPRISES LTD
Nottinghamshire County Council,1111/1001,Children and Young People,CYP,Premises Related,BCA,02/03/2012,12-00557,1317.2,FOREVER FUELS LTD
Nottinghamshire County Council,1111/1001,Children and Young People,CYP,Premises Related,BCA,16/03/2012,12-03038,584.6,FOREVER FUELS LTD
Nottinghamshire County Council,1111/1001,Children and Young People,CYP,Premises Related,BCA,29/03/2012,12-07014,533.3,CORONA ENERGY RETAIL LIMITED
Nottinghamshire County Council,1111/1001,Children and Young People,CYP,Premises Related,BCA,29/03/2012,12-07017,915.75,CORONA ENERGY RETAIL LIMITED
Nottinghamshire County Council,1111/1001,Children and Young People,CYP,Premises Related,BCA,29/03/2012,12-07025,882.23,CORONA ENERGY RETAIL LIMITED
Nottinghamshire County Council,1111/1001,Children and Young People,CYP,Premises Related,BCA,29/03/2012,12-07033,853.74,CORONA ENERGY RETAIL LIMITED
Nottinghamshire County Council,1111/1001,Children and Young People,CYP,Premises Related,BCA,29/03/2012,12-07036,1463.5,CORONA ENERGY RETAIL LIMITED
Nottinghamshire County Council,1111/1001,Children and Young People,CYP,Premises Related,BCA,29/03/2012,12-07037,20590.64,CORONA ENERGY RETAIL LIMITED
Nottinghamshire County Council,1111/1001,Children and Young People,CYP,Premises Related,BDA,02/03/2012,12-00039,7999.98,THE DUKERIES COLLEGE
Nottinghamshire County Council,1111/1001,Children and Young People,CYP,Premises Related,BDA,02/03/2012,12-00100,2805,SODEXO PRESTIGE LTD
Nottinghamshire County Council,1111/1001,Children and Young People,CYP,Premises Related,BDA,02/03/2012,12-00520,638.45, SUTTON CENT COMM COLL
Nottinghamshire County Council,1111/1001,Children and Young People,CYP,Premises Related,BDA,07/03/2012,12-01037,500,COXMOOR COMMUNITY CENTRE
Nottinghamshire County Council,1111/1001,Children and Young People,CYP,Premises Related,BDA,07/03/2012,12-01038,859.5,THE MANOR ACADEMY
Nottinghamshire County Council,1111/1001,Children and Young People,CYP,Premises Related,BDA,07/03/2012,12-01250,9005.9,THE NOTTM BELFRY
Nottinghamshire County Council,1111/1001,Children and Young People,CYP,Premises Related,BDA,09/03/2012,12-01573,9926,MAKING IT! ENTERPRISES LTD
Nottinghamshire County Council,1111/1001,Children and Young People,CYP,Premises Related,BDA,12/03/2012,12-00133,2903.04,MANSFIELD DISTRICT COUNCIL
Nottinghamshire County Council,1111/1001,Children and Young People,CYP,Premises Related,BDA,12/03/2012,12-00239,13333.33,BROXTOWE BOROUGH COUNCIL
Nottinghamshire County Council,1111/1001,Children and Young People,CYP,Premises Related,BDA,16/03/2012,12-00591,1099.99,NOTTINGHAM CITY COUNCIL - ESTATE RE
Nottinghamshire County Council,1111/1001,Children and Young People,CYP,Premises Related,BDA,16/03/2012,12-02776,3870.72,MANSFIELD DISTRICT COUNCIL
Nottinghamshire County Council,1111/1001,Children and Young People,CYP,Premises Related,BDA,19/03/2012,12-07469,7500,LAMBERT SMITH HAMPTON
Nottinghamshire County Council,1111/1001,Children and Young People,CYP,Premises Related,BDA,20/03/2012,12-03209,9926,MAKING IT! ENTERPRISES LTD
Nottinghamshire County Council,1111/1001,Children and Young People,CYP,Premises Related,BDA,20/03/2012,12-07503,1000,EADON LOCKWOOD & RIDDELL
Nottinghamshire County Council,1111/1001,Children and Young People,CYP,Premises Related,BDA,21/03/2012,12-03301,2187.1,SLM COMMUNITY LEISURE LTD
Nottinghamshire County Council,1111/1001,Children and Young People,CYP,Premises Related,BDA,21/03/2012,12-07517,2000,EADON LOCKWOOD & RIDDELL
Nottinghamshire County Council,1111/1001,Children and Young People,CYP,Premises Related,BDA,22/03/2012,12-03464,5202.64,BARNSLEY PREMIER LEISURE
Nottinghamshire County Council,1111/1001,Children and Young People,CYP,Premises Related,BDA,23/03/2012,12-03761,7155.2,NEWARK & SHERWOOD DISTRICT COUNCIL
Nottinghamshire County Council,1111/1001,Children and Young People,CYP,Premises Related,BDA,26/03/2012,12-03934,2103.33,BESTWOOD LODGE HOTEL
Nottinghamshire County Council,1111/1001,Children and Young People,CYP,Premises Related,BDA,26/03/2012,12-03935,2103.33,BESTWOOD LODGE HOTEL
Nottinghamshire County Council,1111/1001,Children and Young People,CYP,Premises Related,BDA,28/03/2012,12-06826,40,HORIZON SOCIAL HOUSING LTD
Nottinghamshire County Council,1111/1001,Children and Young People,CYP,Premises Related,BDA,28/03/2012,12-06887,9926,MAKING IT! ENTERPRISES LTD
Nottinghamshire County Council,1111/1001,Children and Young People,CYP,Premises Related,BDA,30/03/2012,12-03292,1150,OAK FIELD SCHOOL& SPECIALIST SPORT
Nottinghamshire County Council,1111/1001,Children and Young People,CYP,Premises Related,BDA,30/03/2012,12-07235,1020.38,NOTTINGHAM CITY COUNCIL
Nottinghamshire County Council,1111/1001,Children and Young People,CYP,Premises Related,BDA,30/03/2012,12-07291,542.42,THE DERBYSHIRE HOTEL
Nottinghamshire County Council,1111/1001,Children and Young People,CYP,Premises Related,BDA,30/03/2012,12-07294,637,NOTTS ENTERPRISES LTD
Nottinghamshire County Council,1111/1001,Children and Young People,CYP,Premises Related,BDA,30/03/2012,12-07363,700,ARNOLD VIEW PRIMARY SCHOOL
Nottinghamshire County Council,1111/1001,Children and Young People,CYP,Premises Related,BDA,30/03/2012,12-07364,1701.62,BESTWOOD LODGE HOTEL
Nottinghamshire County Council,1111/1001,Children and Young People,CYP,Premises Related,BFA,05/03/2012,12-00124,168.37,ADSM LTD
Nottinghamshire County Council,1111/1001,Children and Young People,CYP,Premises Related,BFA,06/03/2012,12-00580,1503.19,SEVERN TRENT WATER LTD
Nottinghamshire County Council,1111/1001,Children and Young People,CYP,Premises Related,BFA,06/03/2012,12-00985,1357.35,SEVERN TRENT WATER LTD
Nottinghamshire County Council,1111/1001,Children and Young People,CYP,Premises Related,BFA,07/03/2012,12-00581,1113.2,SEVERN TRENT WATER LTD
Nottinghamshire County Council,1111/1001,Children and Young People,CYP,Premises Related,BFA,09/03/2012,12-01685,972.42,SEVERN TRENT WATER LTD
Nottinghamshire County Council,1111/1001,Children and Young People,CYP,Premises Related,BFA,16/03/2012,12-02737,3660.1,SEVERN TRENT WATER LTD
Nottinghamshire County Council,1111/1001,Children and Young People,CYP,Premises Related,BFA,16/03/2012,12-02738,2702.24,SEVERN TRENT WATER LTD
Nottinghamshire County Council,1111/1001,Children and Young People,CYP,Premises Related,BFA,16/03/2012,12-02739,1664.58,SEVERN TRENT WATER LTD
Nottinghamshire County Council,1111/1001,Children and Young People,CYP,Premises Related,BFA,16/03/2012,12-02982,3766.19,SEVERN TRENT WATER LTD
Nottinghamshire County Council,1111/1001,Children and Young People,CYP,Premises Related,BFA,19/03/2012,12-03114,4652.99,SEVERN TRENT WATER LTD
Nottinghamshire County Council,1111/1001,Children and Young People,CYP,Premises Related,BFA,19/03/2012,12-03116,1446.75,SEVERN TRENT WATER LTD
Nottinghamshire County Council,1111/1001,Children and Young People,CYP,Premises Related,BFA,20/03/2012,12-03212,552.93,SEVERN TRENT WATER LTD
Nottinghamshire County Council,1111/1001,Children and Young People,CYP,Premises Related,BFA,21/03/2012,12-03117,1060.37,SEVERN TRENT WATER LTD
Nottinghamshire County Council,1111/1001,Children and Young People,CYP,Premises Related,BFA,21/03/2012,12-03382,6201.71,SEVERN TRENT WATER LTD
Nottinghamshire County Council,1111/1001,Children and Young People,CYP,Premises Related,BFA,23/03/2012,12-03859,3436.23,SEVERN TRENT WATER LTD
Nottinghamshire County Council,1111/1001,Children and Young People,CYP,Premises Related,BFA,23/03/2012,12-03860,3252.82,SEVERN TRENT WATER LTD
Nottinghamshire County Council,1111/1001,Children and Young People,CYP,Premises Related,BFA,23/03/2012,12-03861,570.12,SEVERN TRENT WATER LTD
Nottinghamshire County Council,1111/1001,Children and Young People,CYP,Premises Related,BFA,23/03/2012,12-03862,748.68,SEVERN TRENT WATER LTD
Nottinghamshire County Council,1111/1001,Children and Young People,CYP,Premises Related,BFA,28/03/2012,12-06916,515.71,SEVERN TRENT WATER LTD
Nottinghamshire County Council,1111/1001,Children and Young People,CYP,Premises Related,BFA,28/03/2012,12-06917,9818.6,SEVERN TRENT WATER LTD
Nottinghamshire County Council,1111/1001,Children and Young People,CYP,Premises Related,BFA,28/03/2012,12-06995,8707.49,SEVERN TRENT WATER LTD
Nottinghamshire County Council,1111/1001,Children and Young People,CYP,Premises Related,BFA,29/03/2012,12-07218,460.65,ADSM LTD
Nottinghamshire County Council,1111/1001,Children and Young People,CYP,Premises Related,BJA,28/03/2012,12-06886,1577.6,MAKING IT! ENTERPRISES LTD
Nottinghamshire County Council,1111/1001,Children and Young People,CYP,Premises Related,BJA,28/03/2012,12-06888,1577.6,MAKING IT! ENTERPRISES LTD
Nottinghamshire County Council,1111/1001,Children and Young People,CYP,Transport Related,CCA,01/03/2012,12-00261,604.15,AMBICORP LTD
Nottinghamshire County Council,1111/1001,Children and Young People,CYP,Transport Related,CCA,01/03/2012,12-00422,1975.93,BN GIBSON LTD
Nottinghamshire County Council,1111/1001,Children and Young People,CYP,Transport Related,CCA,01/03/2012,12-00423,2045.14,BN GIBSON LTD
Nottinghamshire County Council,1111/1001,Children and Young People,CYP,Transport Related,CCA,02/03/2012,12-00635,1084.16,TAXICOVER UK LTD
Nottinghamshire County Council,1111/1001,Children and Young People,CYP,Transport Related,CCA,02/03/2012,12-00636,2272.16,TAXICOVER UK LTD
Nottinghamshire County Council,1111/1001,Children and Young People,CYP,Transport Related,CCA,02/03/2012,12-00637,2591.68,TAXICOVER UK LTD
Nottinghamshire County Council,1111/1001,Children and Young People,CYP,Transport Related,CCA,02/03/2012,12-00638,2848,TAXICOVER UK LTD
Nottinghamshire County Council,1111/1001,Children and Young People,CYP,Transport Related,CCA,02/03/2012,12-00639,2587.36,TAXICOVER UK LTD
Nottinghamshire County Council,1111/1001,Children and Young People,CYP,Transport Related,CCA,02/03/2012,12-00640,2018.08,TAXICOVER UK LTD
Nottinghamshire County Council,1111/1001,Children and Young People,CYP,Transport Related,CCA,02/03/2012,12-00641,1312.5,TAXICOVER UK LTD
Nottinghamshire County Council,1111/1001,Children and Young People,CYP,Transport Related,CCA,02/03/2012,12-00642,2180,TAXICOVER UK LTD
Nottinghamshire County Council,1111/1001,Children and Young People,CYP,Transport Related,CCA,02/03/2012,12-00643,2610,TAXICOVER UK LTD
Nottinghamshire County Council,1111/1001,Children and Young People,CYP,Transport Related,CCA,02/03/2012,12-00644,2656,TAXICOVER UK LTD
Nottinghamshire County Council,1111/1001,Children and Young People,CYP,Transport Related,CCA,02/03/2012,12-00645,2631.36,TAXICOVER UK LTD
Nottinghamshire County Council,1111/1001,Children and Young People,CYP,Transport Related,CCA,02/03/2012,12-00646,2991.2,TAXICOVER UK LTD
Nottinghamshire County Council,1111/1001,Children and Young People,CYP,Transport Related,CCA,02/03/2012,12-00647,2385.6,TAXICOVER UK LTD
Nottinghamshire County Council,1111/1001,Children and Young People,CYP,Transport Related,CCA,02/03/2012,12-00648,2476.32,TAXICOVER UK LTD
Nottinghamshire County Council,1111/1001,Children and Young People,CYP,Transport Related,CCA,02/03/2012,12-00649,1920.03,TAXICOVER UK LTD
Nottinghamshire County Council,1111/1001,Children and Young People,CYP,Transport Related,CCA,02/03/2012,12-00650,2376.8,TAXICOVER UK LTD
Nottinghamshire County Council,1111/1001,Children and Young People,CYP,Transport Related,CCA,02/03/2012,12-00651,1200,TAXICOVER UK LTD
Nottinghamshire County Council,1111/1001,Children and Young People,CYP,Transport Related,CCA,02/03/2012,12-00652,1890,TAXICOVER UK LTD
Nottinghamshire County Council,1111/1001,Children and Young People,CYP,Transport Related,CCA,02/03/2012,12-00653,1406.25,TAXICOVER UK LTD
Nottinghamshire County Council,1111/1001,Children and Young People,CYP,Transport Related,CCA,02/03/2012,12-00654,884,ARROW SPECIALISED TRANSPORT LTD
Nottinghamshire County Council,1111/1001,Children and Young People,CYP,Transport Related,CCA,02/03/2012,12-00655,1632,ARROW SPECIALISED TRANSPORT LTD
Nottinghamshire County Council,1111/1001,Children and Young People,CYP,Transport Related,CCA,02/03/2012,12-00656,1616,ARROW SPECIALISED TRANSPORT LTD
Nottinghamshire County Council,1111/1001,Children and Young People,CYP,Transport Related,CCA,02/03/2012,12-00657,2000,ARROW SPECIALISED TRANSPORT LTD
Nottinghamshire County Council,1111/1001,Children and Young People,CYP,Transport Related,CCA,02/03/2012,12-00658,1424,ARROW SPECIALISED TRANSPORT LTD
Nottinghamshire County Council,1111/1001,Children and Young People,CYP,Transport Related,CCA,02/03/2012,12-00659,864,ARROW SPECIALISED TRANSPORT LTD
Nottinghamshire County Council,1111/1001,Children and Young People,CYP,Transport Related,CCA,02/03/2012,12-00660,1648,ARROW SPECIALISED TRANSPORT LTD
Nottinghamshire County Council,1111/1001,Children and Young People,CYP,Transport Related,CCA,02/03/2012,12-00661,928,ARROW SPECIALISED TRANSPORT LTD
Nottinghamshire County Council,1111/1001,Children and Young People,CYP,Transport Related,CCA,02/03/2012,12-00662,1441.6,ARROW SPECIALISED TRANSPORT LTD
Nottinghamshire County Council,1111/1001,Children and Young People,CYP,Transport Related,CCA,02/03/2012,12-00663,528,ARROW SPECIALISED TRANSPORT LTD
Nottinghamshire County Council,1111/1001,Children and Young People,CYP,Transport Related,CCA,02/03/2012,12-00664,1672.03,ARROW SPECIALISED TRANSPORT LTD
Nottinghamshire County Council,1111/1001,Children and Young People,CYP,Transport Related,CCA,02/03/2012,12-00665,610,ARROW SPECIALISED TRANSPORT LTD
Nottinghamshire County Council,1111/1001,Children and Young People,CYP,Transport Related,CCA,02/03/2012,12-00666,1504,ARROW SPECIALISED TRANSPORT LTD
Nottinghamshire County Council,1111/1001,Children and Young People,CYP,Transport Related,CCA,02/03/2012,12-00667,1760,ARROW SPECIALISED TRANSPORT LTD
Nottinghamshire County Council,1111/1001,Children and Young People,CYP,Transport Related,CCA,02/03/2012,12-00668,1723.84,ARROW SPECIALISED TRANSPORT LTD
Nottinghamshire County Council,1111/1001,Children and Young People,CYP,Transport Related,CCA,02/03/2012,12-00669,1736.64,ARROW SPECIALISED TRANSPORT LTD
Nottinghamshire County Council,1111/1001,Children and Young People,CYP,Transport Related,CCA,02/03/2012,12-00670,1384,ARROW SPECIALISED TRANSPORT LTD
Nottinghamshire County Council,1111/1001,Children and Young People,CYP,Transport Related,CCA,02/03/2012,12-00671,1560,ARROW SPECIALISED TRANSPORT LTD
Nottinghamshire County Council,1111/1001,Children and Young People,CYP,Transport Related,CCA,02/03/2012,12-00672,1275,ARROW SPECIALISED TRANSPORT LTD
Nottinghamshire County Council,1111/1001,Children and Young People,CYP,Transport Related,CCA,02/03/2012,12-00673,1104,ARROW SPECIALISED TRANSPORT LTD
Nottinghamshire County Council,1111/1001,Children and Young People,CYP,Transport Related,CCA,02/03/2012,12-00674,1059.5,ARROW SPECIALISED TRANSPORT LTD
Nottinghamshire County Council,1111/1001,Children and Young People,CYP,Transport Related,CCA,02/03/2012,12-00675,2100,ARROW SPECIALISED TRANSPORT LTD
Nottinghamshire County Council,1111/1001,Children and Young People,CYP,Transport Related,CCA,02/03/2012,12-00676,1893,ARROW SPECIALISED TRANSPORT LTD
Nottinghamshire County Council,1111/1001,Children and Young People,CYP,Transport Related,CCA,02/03/2012,12-00677,1461,ARROW SPECIALISED TRANSPORT LTD
Nottinghamshire County Council,1111/1001,Children and Young People,CYP,Transport Related,CCA,02/03/2012,12-00678,1896,ARROW SPECIALISED TRANSPORT LTD
Nottinghamshire County Council,1111/1001,Children and Young People,CYP,Transport Related,CCA,02/03/2012,12-00679,577.5,ARROW SPECIALISED TRANSPORT LTD
Nottinghamshire County Council,1111/1001,Children and Young People,CYP,Transport Related,CCA,02/03/2012,12-00680,1858.65,ARROW SPECIALISED TRANSPORT LTD
Nottinghamshire County Council,1111/1001,Children and Young People,CYP,Transport Related,CCA,02/03/2012,12-00681,1275,ARROW SPECIALISED TRANSPORT LTD
Nottinghamshire County Council,1111/1001,Children and Young People,CYP,Transport Related,CCA,02/03/2012,12-00682,1140,ARROW SPECIALISED TRANSPORT LTD
Nottinghamshire County Council,1111/1001,Children and Young People,CYP,Transport Related,CCA,02/03/2012,12-00683,1215,ARROW SPECIALISED TRANSPORT LTD
Nottinghamshire County Council,1111/1001,Children and Young People,CYP,Transport Related,CCA,02/03/2012,12-00684,1344,ARROW SPECIALISED TRANSPORT LTD
Nottinghamshire County Council,1111/1001,Children and Young People,CYP,Transport Related,CCA,02/03/2012,12-00685,861,ARROW SPECIALISED TRANSPORT LTD
Nottinghamshire County Council,1111/1001,Children and Young People,CYP,Transport Related,CCA,02/03/2012,12-00686,1674,ARROW SPECIALISED TRANSPORT LTD
Nottinghamshire County Council,1111/1001,Children and Young People,CYP,Transport Related,CCA,02/03/2012,12-00687,1710,ARROW SPECIALISED TRANSPORT LTD
Nottinghamshire County Council,1111/1001,Children and Young People,CYP,Transport Related,CCA,02/03/2012,12-00688,1040,ARROW SPECIALISED TRANSPORT LTD
Nottinghamshire County Council,1111/1001,Children and Young People,CYP,Transport Related,CCA,02/03/2012,12-00689,1085.6,FOZCABS NEWARK TAXIS
Nottinghamshire County Council,1111/1001,Children and Young People,CYP,Transport Related,CCA,02/03/2012,12-00690,924.8,FOZCABS NEWARK TAXIS
Nottinghamshire County Council,1111/1001,Children and Young People,CYP,Transport Related,CCA,02/03/2012,12-00691,521.6,FOZCABS NEWARK TAXIS
Nottinghamshire County Council,1111/1001,Children and Young People,CYP,Transport Related,CCA,02/03/2012,12-00692,1242,FOZCABS NEWARK TAXIS
Nottinghamshire County Council,1111/1001,Children and Young People,CYP,Transport Related,CCA,02/03/2012,12-00693,1272,FOZCABS NEWARK TAXIS
Nottinghamshire County Council,1111/1001,Children and Young People,CYP,Transport Related,CCA,02/03/2012,12-00698,4701.2,KETTLEWELL RETFORD LTD
Nottinghamshire County Council,1111/1001,Children and Young People,CYP,Transport Related,CCA,06/03/2012,12-01018,1856,ARROW SPECIALISED TRANSPORT LTD
Nottinghamshire County Council,1111/1001,Children and Young People,CYP,Transport Related,CCA,07/03/2012,12-01045,2251,TAXICOVER UK LTD
Nottinghamshire County Council,1111/1001,Children and Young People,CYP,Transport Related,CCA,07/03/2012,12-01046,1210.95,TAXICOVER UK LTD
Nottinghamshire County Council,1111/1001,Children and Young People,CYP,Transport Related,CCA,07/03/2012,12-01047,2557.65,TAXICOVER UK LTD
Nottinghamshire County Council,1111/1001,Children and Young People,CYP,Transport Related,CCA,07/03/2012,12-01048,2589.6,TAXICOVER UK LTD
Nottinghamshire County Council,1111/1001,Children and Young People,CYP,Transport Related,CCA,07/03/2012,12-01049,1184.5,SOUTHSIDE CARS
Nottinghamshire County Council,1111/1001,Children and Young People,CYP,Transport Related,CCA,07/03/2012,12-01050,1058.5,SOUTHSIDE CARS
Nottinghamshire County Council,1111/1001,Children and Young People,CYP,Transport Related,CCA,07/03/2012,12-01051,885,SOUTHSIDE CARS
Nottinghamshire County Council,1111/1001,Children and Young People,CYP,Transport Related,CCA,07/03/2012,12-01052,532,SOUTHSIDE CARS
Nottinghamshire County Council,1111/1001,Children and Young People,CYP,Transport Related,CCA,07/03/2012,12-01053,790.5,SOUTHSIDE CARS
Nottinghamshire County Council,1111/1001,Children and Young People,CYP,Transport Related,CCA,07/03/2012,12-01054,1545,SOUTHSIDE CARS
Nottinghamshire County Council,1111/1001,Children and Young People,CYP,Transport Related,CCA,07/03/2012,12-01055,705,SOUTHSIDE CARS
Nottinghamshire County Council,1111/1001,Children and Young People,CYP,Transport Related,CCA,07/03/2012,12-01056,558,SOUTHSIDE CARS
Nottinghamshire County Council,1111/1001,Children and Young People,CYP,Transport Related,CCA,07/03/2012,12-01057,1500.32,SOUTHSIDE CARS
Nottinghamshire County Council,1111/1001,Children and Young People,CYP,Transport Related,CCA,07/03/2012,12-01058,638,SOUTHSIDE CARS
Nottinghamshire County Council,1111/1001,Children and Young People,CYP,Transport Related,CCA,07/03/2012,12-01059,642.4,A C TAXIS
Nottinghamshire County Council,1111/1001,Children and Young People,CYP,Transport Related,CCA,07/03/2012,12-01060,984,ALL WAYZ TRAVEL
Nottinghamshire County Council,1111/1001,Children and Young People,CYP,Transport Related,CCA,07/03/2012,12-01061,825,ALL WAYZ TRAVEL
Nottinghamshire County Council,1111/1001,Children and Young People,CYP,Transport Related,CCA,07/03/2012,12-01062,867.6,CABLINE UK LTD
Nottinghamshire County Council,1111/1001,Children and Young People,CYP,Transport Related,CCA,07/03/2012,12-01063,960,CABLINE UK LTD
Nottinghamshire County Council,1111/1001,Children and Young People,CYP,Transport Related,CCA,07/03/2012,12-01064,960,CABLINE UK LTD
Nottinghamshire County Council,1111/1001,Children and Young People,CYP,Transport Related,CCA,07/03/2012,12-01065,900,CABLINE UK LTD
Nottinghamshire County Council,1111/1001,Children and Young People,CYP,Transport Related,CCA,07/03/2012,12-01066,1280,CABLINE UK LTD
Nottinghamshire County Council,1111/1001,Children and Young People,CYP,Transport Related,CCA,07/03/2012,12-01067,558,DIAL A TRIP
Nottinghamshire County Council,1111/1001,Children and Young People,CYP,Transport Related,CCA,07/03/2012,12-01068,2536.64,MARRIOTTS TRAVEL
Nottinghamshire County Council,1111/1001,Children and Young People,CYP,Transport Related,CCA,07/03/2012,12-01069,2249.12,MARRIOTTS TRAVEL
Nottinghamshire County Council,1111/1001,Children and Young People,CYP,Transport Related,CCA,07/03/2012,12-01072,4025,PREMIERE TRAVEL LTD
Nottinghamshire County Council,1111/1001,Children and Young People,CYP,Transport Related,CCA,07/03/2012,12-01079,1123.2,ACE OF MANSFIELD LTD
Nottinghamshire County Council,1111/1001,Children and Young People,CYP,Transport Related,CCA,07/03/2012,12-01080,1760,ARNOLD ACORN TRAVEL
Nottinghamshire County Council,1111/1001,Children and Young People,CYP,Transport Related,CCA,07/03/2012,12-01082,1704.48,ARROW SPECIALISED TRANSPORT LTD
Nottinghamshire County Council,1111/1001,Children and Young People,CYP,Transport Related,CCA,07/03/2012,12-01083,1472,ARROW SPECIALISED TRANSPORT LTD
Nottinghamshire County Council,1111/1001,Children and Young People,CYP,Transport Related,CCA,07/03/2012,12-01084,1162.59,ARROW SPECIALISED TRANSPORT LTD
Nottinghamshire County Council,1111/1001,Children and Young People,CYP,Transport Related,CCA,07/03/2012,12-01085,1786.5,ARROW SPECIALISED TRANSPORT LTD
Nottinghamshire County Council,1111/1001,Children and Young People,CYP,Transport Related,CCA,07/03/2012,12-01086,1677,ARROW SPECIALISED TRANSPORT LTD
Nottinghamshire County Council,1111/1001,Children and Young People,CYP,Transport Related,CCA,07/03/2012,12-01087,1024,ARROW SPECIALISED TRANSPORT LTD
Nottinghamshire County Council,1111/1001,Children and Young People,CYP,Transport Related,CCA,07/03/2012,12-01088,1152,ARROW SPECIALISED TRANSPORT LTD
Nottinghamshire County Council,1111/1001,Children and Young People,CYP,Transport Related,CCA,07/03/2012,12-01089,1072,ARROW SPECIALISED TRANSPORT LTD
Nottinghamshire County Council,1111/1001,Children and Young People,CYP,Transport Related,CCA,07/03/2012,12-01090,850.72,BRIDGES TRANSPORT SERVICES
Nottinghamshire County Council,1111/1001,Children and Young People,CYP,Transport Related,CCA,07/03/2012,12-01091,900,BRIDGES TRANSPORT SERVICES
Nottinghamshire County Council,1111/1001,Children and Young People,CYP,Transport Related,CCA,07/03/2012,12-01092,1049.6,BRIDGES TRANSPORT SERVICES
Nottinghamshire County Council,1111/1001,Children and Young People,CYP,Transport Related,CCA,07/03/2012,12-01093,611.68,BRIDGES TRANSPORT SERVICES
Nottinghamshire County Council,1111/1001,Children and Young People,CYP,Transport Related,CCA,07/03/2012,12-01094,1253.44,BRIDGES TRANSPORT SERVICES
Nottinghamshire County Council,1111/1001,Children and Young People,CYP,Transport Related,CCA,07/03/2012,12-01095,936,BRIDGES TRANSPORT SERVICES
Nottinghamshire County Council,1111/1001,Children and Young People,CYP,Transport Related,CCA,07/03/2012,12-01096,1155.36,BRIDGES TRANSPORT SERVICES
Nottinghamshire County Council,1111/1001,Children and Young People,CYP,Transport Related,CCA,07/03/2012,12-01097,627.68,BRIDGES TRANSPORT SERVICES
Nottinghamshire County Council,1111/1001,Children and Young People,CYP,Transport Related,CCA,07/03/2012,12-01099,1251.68,BRIDGES TRANSPORT SERVICES
Nottinghamshire County Council,1111/1001,Children and Young People,CYP,Transport Related,CCA,07/03/2012,12-01100,990.15,BRIDGES TRANSPORT SERVICES
Nottinghamshire County Council,1111/1001,Children and Young People,CYP,Transport Related,CCA,07/03/2012,12-01101,1050,BRIDGES TRANSPORT SERVICES
Nottinghamshire County Council,1111/1001,Children and Young People,CYP,Transport Related,CCA,07/03/2012,12-01102,1181.56,BRIDGES TRANSPORT SERVICES
Nottinghamshire County Council,1111/1001,Children and Young People,CYP,Transport Related,CCA,07/03/2012,12-01103,893.44,BRIDGES TRANSPORT SERVICES
Nottinghamshire County Council,1111/1001,Children and Young People,CYP,Transport Related,CCA,07/03/2012,12-01104,658.05,BRIDGES TRANSPORT SERVICES
Nottinghamshire County Council,1111/1001,Children and Young People,CYP,Transport Related,CCA,07/03/2012,12-01105,1184,D G PRIVATE HIRE LTD
Nottinghamshire County Council,1111/1001,Children and Young People,CYP,Transport Related,CCA,07/03/2012,12-01106,1488,D G PRIVATE HIRE LTD
Nottinghamshire County Council,1111/1001,Children and Young People,CYP,Transport Related,CCA,07/03/2012,12-01107,0.01,HAWKINS TAXIS & TRANSPORT
Nottinghamshire County Council,1111/1001,Children and Young People,CYP,Transport Related,CCA,07/03/2012,12-01108,1137.88,HAWKINS TAXIS & TRANSPORT
Nottinghamshire County Council,1111/1001,Children and Young People,CYP,Transport Related,CCA,07/03/2012,12-01109,1924.8,HORIZON TRAVEL
Nottinghamshire County Council,1111/1001,Children and Young People,CYP,Transport Related,CCA,07/03/2012,12-01110,1521.27,HORIZON TRAVEL
Nottinghamshire County Council,1111/1001,Children and Young People,CYP,Transport Related,CCA,07/03/2012,12-01111,2458.56,HORIZON TRAVEL
Nottinghamshire County Council,1111/1001,Children and Young People,CYP,Transport Related,CCA,07/03/2012,12-01113,1231.68,OASIS TAXIS MANSFIELD LTD
Nottinghamshire County Council,1111/1001,Children and Young People,CYP,Transport Related,CCA,07/03/2012,12-01114,1344,SPRAYS TRANSPORT LTD
Nottinghamshire County Council,1111/1001,Children and Young People,CYP,Transport Related,CCA,07/03/2012,12-01115,1360,SPRAYS TRANSPORT LTD
Nottinghamshire County Council,1111/1001,Children and Young People,CYP,Transport Related,CCA,07/03/2012,12-01116,1248,SPRAYS TRANSPORT LTD
Nottinghamshire County Council,1111/1001,Children and Young People,CYP,Transport Related,CCA,07/03/2012,12-01117,680,SPRAYS TRANSPORT LTD
Nottinghamshire County Council,1111/1001,Children and Young People,CYP,Transport Related,CCA,07/03/2012,12-01118,1360,SPRAYS TRANSPORT LTD
Nottinghamshire County Council,1111/1001,Children and Young People,CYP,Transport Related,CCA,07/03/2012,12-01119,1350,SPRAYS TRANSPORT LTD
Nottinghamshire County Council,1111/1001,Children and Young People,CYP,Transport Related,CCA,07/03/2012,12-01120,1536,SPRAYS TRANSPORT LTD
Nottinghamshire County Council,1111/1001,Children and Young People,CYP,Transport Related,CCA,07/03/2012,12-01121,1504,SPRAYS TRANSPORT LTD
Nottinghamshire County Council,1111/1001,Children and Young People,CYP,Transport Related,CCA,07/03/2012,12-01122,1280,SPRAYS TRANSPORT LTD
Nottinghamshire County Council,1111/1001,Children and Young People,CYP,Transport Related,CCA,07/03/2012,12-01123,1360,SPRAYS TRANSPORT LTD
Nottinghamshire County Council,1111/1001,Children and Young People,CYP,Transport Related,CCA,07/03/2012,12-01124,1312,SPRAYS TRANSPORT LTD
Nottinghamshire County Council,1111/1001,Children and Young People,CYP,Transport Related,CCA,07/03/2012,12-01125,1408,SPRAYS TRANSPORT LTD
Nottinghamshire County Council,1111/1001,Children and Young People,CYP,Transport Related,CCA,07/03/2012,12-01126,912,SPRAYS TRANSPORT LTD
Nottinghamshire County Council,1111/1001,Children and Young People,CYP,Transport Related,CCA,07/03/2012,12-01127,1360,SPRAYS TRANSPORT LTD
Nottinghamshire County Council,1111/1001,Children and Young People,CYP,Transport Related,CCA,07/03/2012,12-01128,1344,SPRAYS TRANSPORT LTD
Nottinghamshire County Council,1111/1001,Children and Young People,CYP,Transport Related,CCA,07/03/2012,12-01129,1725,SPRAYS TRANSPORT LTD
Nottinghamshire County Council,1111/1001,Children and Young People,CYP,Transport Related,CCA,07/03/2012,12-01130,1685.85,SPRAYS TRANSPORT LTD
Nottinghamshire County Council,1111/1001,Children and Young People,CYP,Transport Related,CCA,07/03/2012,12-01131,1643.4,SPRAYS TRANSPORT LTD
Nottinghamshire County Council,1111/1001,Children and Young People,CYP,Transport Related,CCA,07/03/2012,12-01132,1530,SPRAYS TRANSPORT LTD
Nottinghamshire County Council,1111/1001,Children and Young People,CYP,Transport Related,CCA,07/03/2012,12-01133,1622.4,SPRAYS TRANSPORT LTD
Nottinghamshire County Council,1111/1001,Children and Young People,CYP,Transport Related,CCA,07/03/2012,12-01134,1715.84,SPRAYS TRANSPORT LTD
Nottinghamshire County Council,1111/1001,Children and Young People,CYP,Transport Related,CCA,07/03/2012,12-01135,1959.75,SPRAYS TRANSPORT LTD
Nottinghamshire County Council,1111/1001,Children and Young People,CYP,Transport Related,CCA,07/03/2012,12-01136,1901.28,SPRAYS TRANSPORT LTD
Nottinghamshire County Council,1111/1001,Children and Young People,CYP,Transport Related,CCA,07/03/2012,12-01137,1901.7,SPRAYS TRANSPORT LTD
Nottinghamshire County Council,1111/1001,Children and Young People,CYP,Transport Related,CCA,07/03/2012,12-01138,996.56,SPRAYS TRANSPORT LTD
Nottinghamshire County Council,1111/1001,Children and Young People,CYP,Transport Related,CCA,07/03/2012,12-01139,2148.15,SPRAYS TRANSPORT LTD
Nottinghamshire County Council,1111/1001,Children and Young People,CYP,Transport Related,CCA,07/03/2012,12-01140,731.92,ELKINGTONS PARK GARAGE
Nottinghamshire County Council,1111/1001,Children and Young People,CYP,Transport Related,CCA,07/03/2012,12-01141,1787.5,K & S COACHES
Nottinghamshire County Council,1111/1001,Children and Young People,CYP,Transport Related,CCA,07/03/2012,12-01142,1319.1,P RHODES TRANSPORT LTD
Nottinghamshire County Council,1111/1001,Children and Young People,CYP,Transport Related,CCA,07/03/2012,12-01143,612,CW TAXIS
Nottinghamshire County Council,1111/1001,Children and Young People,CYP,Transport Related,CCA,07/03/2012,12-01145,868,CW TAXIS
Nottinghamshire County Council,1111/1001,Children and Young People,CYP,Transport Related,CCA,07/03/2012,12-01146,233.52,D G PRIVATE HIRE LTD
Nottinghamshire County Council,1111/1001,Children and Young People,CYP,Transport Related,CCA,07/03/2012,12-01147,2000,TRAVELWISE COACHES LTD
Nottinghamshire County Council,1111/1001,Children and Young People,CYP,Transport Related,CCA,07/03/2012,12-01148,1786.24,TRAVELWISE COACHES LTD
Nottinghamshire County Council,1111/1001,Children and Young People,CYP,Transport Related,CCA,07/03/2012,12-01149,1624.32,TRAVELWISE COACHES LTD
Nottinghamshire County Council,1111/1001,Children and Young People,CYP,Transport Related,CCA,07/03/2012,12-01150,1721.7,TRAVELWISE COACHES LTD
Nottinghamshire County Council,1111/1001,Children and Young People,CYP,Transport Related,CCA,07/03/2012,12-01151,1636.32,TRAVELWISE COACHES LTD
Nottinghamshire County Council,1111/1001,Children and Young People,CYP,Transport Related,CCA,07/03/2012,12-01152,1493.12,TRAVELWISE COACHES LTD
Nottinghamshire County Council,1111/1001,Children and Young People,CYP,Transport Related,CCA,07/03/2012,12-01153,1870.5,AMVALE LTD
Nottinghamshire County Council,1111/1001,Children and Young People,CYP,Transport Related,CCA,07/03/2012,12-01155,1440,GARYS COACHES LTD
Nottinghamshire County Council,1111/1001,Children and Young People,CYP,Transport Related,CCA,07/03/2012,12-01164,2572.8,MARSHALLS OF SUTTON ON TRENT LTD
Nottinghamshire County Council,1111/1001,Children and Young People,CYP,Transport Related,CCA,07/03/2012,12-01170,768.9,MEDEN TRAVEL
Nottinghamshire County Council,1111/1001,Children and Young People,CYP,Transport Related,CCA,07/03/2012,12-01172,756.18,NOTTM MINIBUSES & COACHES
Nottinghamshire County Council,1111/1001,Children and Young People,CYP,Transport Related,CCA,07/03/2012,12-01173,1088,P & P TAXIS
Nottinghamshire County Council,1111/1001,Children and Young People,CYP,Transport Related,CCA,07/03/2012,12-01178,2944.23,KETTLEWELL RETFORD LTD
Nottinghamshire County Council,1111/1001,Children and Young People,CYP,Transport Related,CCA,07/03/2012,12-01179,2556.6,KETTLEWELL RETFORD LTD
Nottinghamshire County Council,1111/1001,Children and Young People,CYP,Transport Related,CCA,07/03/2012,12-01180,1768.8,KETTLEWELL RETFORD LTD
Nottinghamshire County Council,1111/1001,Children and Young People,CYP,Transport Related,CCA,07/03/2012,12-01181,959.68,AAA TAXIS
Nottinghamshire County Council,1111/1001,Children and Young People,CYP,Transport Related,CCA,07/03/2012,12-01182,819,AAA TAXIS
Nottinghamshire County Council,1111/1001,Children and Young People,CYP,Transport Related,CCA,07/03/2012,12-01183,695.5,AAA TAXIS
Nottinghamshire County Council,1111/1001,Children and Young People,CYP,Transport Related,CCA,07/03/2012,12-01184,1480,AAA TAXIS
Nottinghamshire County Council,1111/1001,Children and Young People,CYP,Transport Related,CCA,07/03/2012,12-01185,1576,AAA TAXIS
Nottinghamshire County Council,1111/1001,Children and Young People,CYP,Transport Related,CCA,07/03/2012,12-01186,1659.2,AAA TAXIS
Nottinghamshire County Council,1111/1001,Children and Young People,CYP,Transport Related,CCA,07/03/2012,12-01187,1088,AAA TAXIS
Nottinghamshire County Council,1111/1001,Children and Young People,CYP,Transport Related,CCA,07/03/2012,12-01188,712,AAA TAXIS
Nottinghamshire County Council,1111/1001,Children and Young People,CYP,Transport Related,CCA,07/03/2012,12-01189,1036.8,AAA TAXIS
Nottinghamshire County Council,1111/1001,Children and Young People,CYP,Transport Related,CCA,07/03/2012,12-01190,572.64,AAA TAXIS
Nottinghamshire County Council,1111/1001,Children and Young People,CYP,Transport Related,CCA,07/03/2012,12-01193,2487.45,C W MOXON LTD
Nottinghamshire County Council,1111/1001,Children and Young People,CYP,Transport Related,CCA,07/03/2012,12-01202,1360,STUBBSY TRAVEL
Nottinghamshire County Council,1111/1001,Children and Young People,CYP,Transport Related,CCA,08/03/2012,12-01313,684,MAR TAXIS LTD
Nottinghamshire County Council,1111/1001,Children and Young People,CYP,Transport Related,CCA,08/03/2012,12-01314,603,MAR TAXIS LTD
Nottinghamshire County Council,1111/1001,Children and Young People,CYP,Transport Related,CCA,08/03/2012,12-01315,560,A LINE TAXIS
Nottinghamshire County Council,1111/1001,Children and Young People,CYP,Transport Related,CCA,08/03/2012,12-01316,1187.68,A LINE TAXIS
Nottinghamshire County Council,1111/1001,Children and Young People,CYP,Transport Related,CCA,08/03/2012,12-01318,1920,VALE TRAVEL
Nottinghamshire County Council,1111/1001,Children and Young People,CYP,Transport Related,CCA,08/03/2012,12-01319,1024,ARROW SPECIALISED TRANSPORT LTD
Nottinghamshire County Council,1111/1001,Children and Young People,CYP,Transport Related,CCA,08/03/2012,12-01320,2960,ARROW SPECIALISED TRANSPORT LTD
Nottinghamshire County Council,1111/1001,Children and Young People,CYP,Transport Related,CCA,08/03/2012,12-01321,1881.6,ARROW SPECIALISED TRANSPORT LTD
Nottinghamshire County Council,1111/1001,Children and Young People,CYP,Transport Related,CCA,08/03/2012,12-01322,1245,ARROW SPECIALISED TRANSPORT LTD
Nottinghamshire County Council,1111/1001,Children and Young People,CYP,Transport Related,CCA,08/03/2012,12-01323,2245.01,ARROW SPECIALISED TRANSPORT LTD
Nottinghamshire County Council,1111/1001,Children and Young People,CYP,Transport Related,CCA,08/03/2012,12-01324,753.75,D G PRIVATE HIRE LTD
Nottinghamshire County Council,1111/1001,Children and Young People,CYP,Transport Related,CCA,08/03/2012,12-01325,1758.12,HEADLAND TAXI SERVICES
Nottinghamshire County Council,1111/1001,Children and Young People,CYP,Transport Related,CCA,08/03/2012,12-01326,1190.16,HEADLAND TAXI SERVICES
Nottinghamshire County Council,1111/1001,Children and Young People,CYP,Transport Related,CCA,08/03/2012,12-01327,1867.2,MCT UK LTD
Nottinghamshire County Council,1111/1001,Children and Young People,CYP,Transport Related,CCA,08/03/2012,12-01328,2361.3,MIDFIELD TRAVEL
Nottinghamshire County Council,1111/1001,Children and Young People,CYP,Transport Related,CCA,08/03/2012,12-01329,1191.84,MIDFIELD TRAVEL
Nottinghamshire County Council,1111/1001,Children and Young People,CYP,Transport Related,CCA,08/03/2012,12-01330,1597.2,SPRAYS TRANSPORT LTD
Nottinghamshire County Council,1111/1001,Children and Young People,CYP,Transport Related,CCA,08/03/2012,12-01333,2110.5,F & J MARRIOTT T/A UNITY COACHES
Nottinghamshire County Council,1111/1001,Children and Young People,CYP,Transport Related,CCA,08/03/2012,12-01334,2110.5,F & J MARRIOTT T/A UNITY COACHES
Nottinghamshire County Council,1111/1001,Children and Young People,CYP,Transport Related,CCA,08/03/2012,12-01335,1633.6,VALLANCES COACHES
Nottinghamshire County Council,1111/1001,Children and Young People,CYP,Transport Related,CCA,08/03/2012,12-01336,1795.2,VALLANCES COACHES
Nottinghamshire County Council,1111/1001,Children and Young People,CYP,Transport Related,CCA,08/03/2012,12-01337,2698.56,GOLDSTAR TRAVEL NOTTM LTD
Nottinghamshire County Council,1111/1001,Children and Young People,CYP,Transport Related,CCA,08/03/2012,12-01338,1050,GOLDSTAR TRAVEL NOTTM LTD
Nottinghamshire County Council,1111/1001,Children and Young People,CYP,Transport Related,CCA,08/03/2012,12-01339,0.02,PREMIER TAXIS
Nottinghamshire County Council,1111/1001,Children and Young People,CYP,Transport Related,CCA,08/03/2012,12-01344,2480,TRAVEL WRIGHT LTD
Nottinghamshire County Council,1111/1001,Children and Young People,CYP,Transport Related,CCA,08/03/2012,12-01347,1479.36,ASHFIELD TRAVEL
Nottinghamshire County Council,1111/1001,Children and Young People,CYP,Transport Related,CCA,08/03/2012,12-01348,1589.28,JC COACHES
Nottinghamshire County Council,1111/1001,Children and Young People,CYP,Transport Related,CCA,08/03/2012,12-01351,1232,TOWN TAXIS LTD
Nottinghamshire County Council,1111/1001,Children and Young People,CYP,Transport Related,CCA,08/03/2012,12-01352,1043,TOWN TAXIS LTD
Nottinghamshire County Council,1111/1001,Children and Young People,CYP,Transport Related,CCA,08/03/2012,12-01353,618.2,TOWN TAXIS LTD
Nottinghamshire County Council,1111/1001,Children and Young People,CYP,Transport Related,CCA,08/03/2012,12-01354,655.2,TOWN TAXIS LTD
Nottinghamshire County Council,1111/1001,Children and Young People,CYP,Transport Related,CCA,08/03/2012,12-01355,600,TOWN TAXIS LTD
Nottinghamshire County Council,1111/1001,Children and Young People,CYP,Transport Related,CCA,08/03/2012,12-01357,3537.6,ISLE COACHES
Nottinghamshire County Council,1111/1001,Children and Young People,CYP,Transport Related,CCA,08/03/2012,12-01360,528,DIRECT CARS (LINCOLN) LTD
Nottinghamshire County Council,1111/1001,Children and Young People,CYP,Transport Related,CCA,09/03/2012,12-00016,2232.5,EREWASH COMMUNITY TRANSPORT
Nottinghamshire County Council,1111/1001,Children and Young People,CYP,Transport Related,CCA,09/03/2012,12-00017,1782.96,EREWASH COMMUNITY TRANSPORT
Nottinghamshire County Council,1111/1001,Children and Young People,CYP,Transport Related,CCA,09/03/2012,12-00018,1649.77,EREWASH COMMUNITY TRANSPORT
Nottinghamshire County Council,1111/1001,Children and Young People,CYP,Transport Related,CCA,09/03/2012,12-01569,3360,STAFFORDSHIRE COUNTY COUNCIL
Nottinghamshire County Council,1111/1001,Children and Young People,CYP,Transport Related,CCA,09/03/2012,12-01581,2206.4,SHARPES OF NOTTINGHAM
Nottinghamshire County Council,1111/1001,Children and Young People,CYP,Transport Related,CCA,09/03/2012,12-01586,1985.92,SHARPES OF NOTTINGHAM
Nottinghamshire County Council,1111/1001,Children and Young People,CYP,Transport Related,CCA,09/03/2012,12-01588,960,CENTRAL CARS NOTTM LTD
Nottinghamshire County Council,1111/1001,Children and Young People,CYP,Transport Related,CCA,09/03/2012,12-01590,2010.08,MARTINS TRAVEL
Nottinghamshire County Council,1111/1001,Children and Young People,CYP,Transport Related,CCA,09/03/2012,12-01598,889.6,ACORN TRAVEL
Nottinghamshire County Council,1111/1001,Children and Young People,CYP,Transport Related,CCA,09/03/2012,12-01599,521.44,ALPHA CARS
Nottinghamshire County Council,1111/1001,Children and Young People,CYP,Transport Related,CCA,09/03/2012,12-01600,1248,ARROW SPECIALISED TRANSPORT LTD
Nottinghamshire County Council,1111/1001,Children and Young People,CYP,Transport Related,CCA,09/03/2012,12-01601,2006.4,JA TRAVEL LTD
Nottinghamshire County Council,1111/1001,Children and Young People,CYP,Transport Related,CCA,09/03/2012,12-01602,2085,JA TRAVEL LTD
Nottinghamshire County Council,1111/1001,Children and Young People,CYP,Transport Related,CCA,09/03/2012,12-01603,2461,JA TRAVEL LTD
Nottinghamshire County Council,1111/1001,Children and Young People,CYP,Transport Related,CCA,09/03/2012,12-01604,1798.5,RON GASH & SONS LTD
Nottinghamshire County Council,1111/1001,Children and Young People,CYP,Transport Related,CCA,09/03/2012,12-01605,1248,123 TAXIS
Nottinghamshire County Council,1111/1001,Children and Young People,CYP,Transport Related,CCA,09/03/2012,12-01606,512.55,123 TAXIS
Nottinghamshire County Council,1111/1001,Children and Young People,CYP,Transport Related,CCA,09/03/2012,12-01613,2814.08,AOT COACHES
Nottinghamshire County Council,1111/1001,Children and Young People,CYP,Transport Related,CCA,09/03/2012,12-01614,746.25,AOT COACHES
Nottinghamshire County Council,1111/1001,Children and Young People,CYP,Transport Related,CCA,09/03/2012,12-01616,1040,K & R CARS
Nottinghamshire County Council,1111/1001,Children and Young People,CYP,Transport Related,CCA,09/03/2012,12-01617,607.5,SILVERDALE TOURS NOTTM LTD
Nottinghamshire County Council,1111/1001,Children and Young People,CYP,Transport Related,CCA,09/03/2012,12-01618,2400,STAGECOACH SERVICES LTD
Nottinghamshire County Council,1111/1001,Children and Young People,CYP,Transport Related,CCA,09/03/2012,12-01619,5120,STAGECOACH SERVICES LTD
Nottinghamshire County Council,1111/1001,Children and Young People,CYP,Transport Related,CCA,09/03/2012,12-01658,943.92,STAGECOACH SERVICES LTD
Nottinghamshire County Council,1111/1001,Children and Young People,CYP,Transport Related,CCA,09/03/2012,12-01662,2607.84,TRAVEL WRIGHT LTD
Nottinghamshire County Council,1111/1001,Children and Young People,CYP,Transport Related,CCA,09/03/2012,12-01663,10255.84,TRAVEL WRIGHT LTD
Nottinghamshire County Council,1111/1001,Children and Young People,CYP,Transport Related,CCA,09/03/2012,12-01664,2101.92,TRAVEL WRIGHT LTD
Nottinghamshire County Council,1111/1001,Children and Young People,CYP,Transport Related,CCA,12/03/2012,12-00024,1926.4,EREWASH COMMUNITY TRANSPORT
Nottinghamshire County Council,1111/1001,Children and Young People,CYP,Transport Related,CCA,12/03/2012,12-01780,1056,CENTRAL CARS NOTTM LTD
Nottinghamshire County Council,1111/1001,Children and Young People,CYP,Transport Related,CCA,12/03/2012,12-01781,704,CENTRAL CARS NOTTM LTD
Nottinghamshire County Council,1111/1001,Children and Young People,CYP,Transport Related,CCA,12/03/2012,12-01782,2713.6,CENTRAL CARS NOTTM LTD
Nottinghamshire County Council,1111/1001,Children and Young People,CYP,Transport Related,CCA,12/03/2012,12-01783,1172.16,CENTRAL CARS NOTTM LTD
Nottinghamshire County Council,1111/1001,Children and Young People,CYP,Transport Related,CCA,12/03/2012,12-01784,1216,CENTRAL CARS NOTTM LTD
Nottinghamshire County Council,1111/1001,Children and Young People,CYP,Transport Related,CCA,12/03/2012,12-01785,960,CENTRAL CARS NOTTM LTD
Nottinghamshire County Council,1111/1001,Children and Young People,CYP,Transport Related,CCA,12/03/2012,12-01786,1089.92,CENTRAL CARS NOTTM LTD
Nottinghamshire County Council,1111/1001,Children and Young People,CYP,Transport Related,CCA,12/03/2012,12-01787,768,CENTRAL CARS NOTTM LTD
Nottinghamshire County Council,1111/1001,Children and Young People,CYP,Transport Related,CCA,12/03/2012,12-01794,2894.4,REDFERN TRAVEL
Nottinghamshire County Council,1111/1001,Children and Young People,CYP,Transport Related,CCA,12/03/2012,12-01795,1120,CBC TAXIS LTD
Nottinghamshire County Council,1111/1001,Children and Young People,CYP,Transport Related,CCA,12/03/2012,12-01796,720,CBC TAXIS LTD
Nottinghamshire County Council,1111/1001,Children and Young People,CYP,Transport Related,CCA,12/03/2012,12-01797,1200,TRENT CARS
Nottinghamshire County Council,1111/1001,Children and Young People,CYP,Transport Related,CCA,12/03/2012,12-01798,540,TRENT CARS
Nottinghamshire County Council,1111/1001,Children and Young People,CYP,Transport Related,CCA,12/03/2012,12-01799,1985.44,1ST 4 CARE LTD
Nottinghamshire County Council,1111/1001,Children and Young People,CYP,Transport Related,CCA,12/03/2012,12-01800,2053.92,1ST 4 CARE LTD
Nottinghamshire County Council,1111/1001,Children and Young People,CYP,Transport Related,CCA,12/03/2012,12-01801,2014.4,1ST 4 CARE LTD
Nottinghamshire County Council,1111/1001,Children and Young People,CYP,Transport Related,CCA,12/03/2012,12-01802,1842.24,1ST 4 CARE LTD
Nottinghamshire County Council,1111/1001,Children and Young People,CYP,Transport Related,CCA,12/03/2012,12-01803,1905.12,1ST 4 CARE LTD
Nottinghamshire County Council,1111/1001,Children and Young People,CYP,Transport Related,CCA,12/03/2012,12-01804,1665,1ST 4 CARE LTD
Nottinghamshire County Council,1111/1001,Children and Young People,CYP,Transport Related,CCA,12/03/2012,12-01805,2727.2,1ST 4 CARE LTD
Nottinghamshire County Council,1111/1001,Children and Young People,CYP,Transport Related,CCA,12/03/2012,12-01807,845,1ST 4 CARE LTD
Nottinghamshire County Council,1111/1001,Children and Young People,CYP,Transport Related,CCA,12/03/2012,12-01808,997.92,1ST 4 CARE LTD
Nottinghamshire County Council,1111/1001,Children and Young People,CYP,Transport Related,CCA,12/03/2012,12-01809,3000,1ST 4 CARE LTD
Nottinghamshire County Council,1111/1001,Children and Young People,CYP,Transport Related,CCA,12/03/2012,12-01815,2636.96,TIGER EUROPEAN UK LTD
Nottinghamshire County Council,1111/1001,Children and Young People,CYP,Transport Related,CCA,12/03/2012,12-01819,1178,RIO CABS
Nottinghamshire County Council,1111/1001,Children and Young People,CYP,Transport Related,CCA,12/03/2012,12-01821,904.8,RIO CABS
Nottinghamshire County Council,1111/1001,Children and Young People,CYP,Transport Related,CCA,14/03/2012,12-02284,514.8,ALERT CARS LTD
Nottinghamshire County Council,1111/1001,Children and Young People,CYP,Transport Related,CCA,14/03/2012,12-02292,1245,REDFERN TRAVEL
Nottinghamshire County Council,1111/1001,Children and Young People,CYP,Transport Related,CCA,14/03/2012,12-02307,7711.65,ARROW SPECIALISED TRANSPORT LTD
Nottinghamshire County Council,1111/1001,Children and Young People,CYP,Transport Related,CCA,14/03/2012,12-02308,1096,ARROW SPECIALISED TRANSPORT LTD
Nottinghamshire County Council,1111/1001,Children and Young People,CYP,Transport Related,CCA,14/03/2012,12-02309,1807.8,HARRISON FORD
Nottinghamshire County Council,1111/1001,Children and Young People,CYP,Transport Related,CCA,14/03/2012,12-02315,2634.24,F & J MARRIOTT T/A UNITY COACHES
Nottinghamshire County Council,1111/1001,Children and Young People,CYP,Transport Related,CCA,14/03/2012,12-02327,3978.56,BN GIBSON LTD
Nottinghamshire County Council,1111/1001,Children and Young People,CYP,Transport Related,CCA,14/03/2012,12-02328,2577.76,BN GIBSON LTD
Nottinghamshire County Council,1111/1001,Children and Young People,CYP,Transport Related,CCA,14/03/2012,12-02329,2565.6,BN GIBSON LTD
Nottinghamshire County Council,1111/1001,Children and Young People,CYP,Transport Related,CCA,14/03/2012,12-02330,3198.24,BN GIBSON LTD
Nottinghamshire County Council,1111/1001,Children and Young People,CYP,Transport Related,CCA,14/03/2012,12-02331,2009.6,BN GIBSON LTD
Nottinghamshire County Council,1111/1001,Children and Young People,CYP,Transport Related,CCA,14/03/2012,12-02332,2591.84,BN GIBSON LTD
Nottinghamshire County Council,1111/1001,Children and Young People,CYP,Transport Related,CCA,14/03/2012,12-02333,3561.92,BN GIBSON LTD
Nottinghamshire County Council,1111/1001,Children and Young People,CYP,Transport Related,CCA,14/03/2012,12-02334,2411.64,BN GIBSON LTD
Nottinghamshire County Council,1111/1001,Children and Young People,CYP,Transport Related,CCA,14/03/2012,12-02336,2347.84,BN GIBSON LTD
Nottinghamshire County Council,1111/1001,Children and Young People,CYP,Transport Related,CCA,14/03/2012,12-02337,2336.26,BN GIBSON LTD
Nottinghamshire County Council,1111/1001,Children and Young People,CYP,Transport Related,CCA,14/03/2012,12-02338,1818.4,BN GIBSON LTD
Nottinghamshire County Council,1111/1001,Children and Young People,CYP,Transport Related,CCA,14/03/2012,12-02339,2550,BN GIBSON LTD
Nottinghamshire County Council,1111/1001,Children and Young People,CYP,Transport Related,CCA,14/03/2012,12-02340,1892.1,BN GIBSON LTD
Nottinghamshire County Council,1111/1001,Children and Young People,CYP,Transport Related,CCA,14/03/2012,12-02341,1184,BN GIBSON LTD
Nottinghamshire County Council,1111/1001,Children and Young People,CYP,Transport Related,CCA,14/03/2012,12-02342,2535.04,BN GIBSON LTD
Nottinghamshire County Council,1111/1001,Children and Young People,CYP,Transport Related,CCA,14/03/2012,12-02343,2177.76,BN GIBSON LTD
Nottinghamshire County Council,1111/1001,Children and Young People,CYP,Transport Related,CCA,14/03/2012,12-02344,2608.64,BN GIBSON LTD
Nottinghamshire County Council,1111/1001,Children and Young People,CYP,Transport Related,CCA,14/03/2012,12-02345,2058.4,BN GIBSON LTD
Nottinghamshire County Council,1111/1001,Children and Young People,CYP,Transport Related,CCA,14/03/2012,12-02346,1834.08,BN GIBSON LTD
Nottinghamshire County Council,1111/1001,Children and Young People,CYP,Transport Related,CCA,14/03/2012,12-02347,2312.64,BN GIBSON LTD
Nottinghamshire County Council,1111/1001,Children and Young People,CYP,Transport Related,CCA,14/03/2012,12-02348,3314.08,BN GIBSON LTD
Nottinghamshire County Council,1111/1001,Children and Young People,CYP,Transport Related,CCA,14/03/2012,12-02349,2308.8,BN GIBSON LTD
Nottinghamshire County Council,1111/1001,Children and Young People,CYP,Transport Related,CCA,14/03/2012,12-02350,2412,BN GIBSON LTD
Nottinghamshire County Council,1111/1001,Children and Young People,CYP,Transport Related,CCA,14/03/2012,12-02351,2948.8,BN GIBSON LTD
Nottinghamshire County Council,1111/1001,Children and Young People,CYP,Transport Related,CCA,14/03/2012,12-02352,2449.8,BN GIBSON LTD
Nottinghamshire County Council,1111/1001,Children and Young People,CYP,Transport Related,CCA,14/03/2012,12-02353,1509.6,BN GIBSON LTD
Nottinghamshire County Council,1111/1001,Children and Young People,CYP,Transport Related,CCA,14/03/2012,12-02354,1952,BN GIBSON LTD
Nottinghamshire County Council,1111/1001,Children and Young People,CYP,Transport Related,CCA,14/03/2012,12-02357,1246.7,BN GIBSON LTD
Nottinghamshire County Council,1111/1001,Children and Young People,CYP,Transport Related,CCA,14/03/2012,12-02358,2168.4,BN GIBSON LTD
Nottinghamshire County Council,1111/1001,Children and Young People,CYP,Transport Related,CCA,14/03/2012,12-02359,2306.55,BN GIBSON LTD
Nottinghamshire County Council,1111/1001,Children and Young People,CYP,Transport Related,CCA,14/03/2012,12-02360,1201.01,BN GIBSON LTD
Nottinghamshire County Council,1111/1001,Children and Young People,CYP,Transport Related,CCA,14/03/2012,12-02361,545.95,123 TAXIS
Nottinghamshire County Council,1111/1001,Children and Young People,CYP,Transport Related,CCA,14/03/2012,12-02365,1072.68,AOT COACHES
Nottinghamshire County Council,1111/1001,Children and Young People,CYP,Transport Related,CCA,14/03/2012,12-02380,459.34,P & P TAXIS
Nottinghamshire County Council,1111/1001,Children and Young People,CYP,Transport Related,CCA,14/03/2012,12-02390,1740,FREEWAY COACHES LTD
Nottinghamshire County Council,1111/1001,Children and Young People,CYP,Transport Related,CCA,14/03/2012,12-02391,2258,C W MOXON LTD
Nottinghamshire County Council,1111/1001,Children and Young People,CYP,Transport Related,CCA,16/03/2012,12-02794,585,CENTRAL CARS NOTTM LTD
Nottinghamshire County Council,1111/1001,Children and Young People,CYP,Transport Related,CCA,16/03/2012,12-02795,1964.8,JOHNSON BROS TOURS LTD
Nottinghamshire County Council,1111/1001,Children and Young People,CYP,Transport Related,CCA,16/03/2012,12-02796,1571.84,JOHNSON BROS TOURS LTD
Nottinghamshire County Council,1111/1001,Children and Young People,CYP,Transport Related,CCA,16/03/2012,12-02797,2160,REDFERN TRAVEL
Nottinghamshire County Council,1111/1001,Children and Young People,CYP,Transport Related,CCA,16/03/2012,12-02819,956.8,MOTORVATION TAXIS
Nottinghamshire County Council,1111/1001,Children and Young People,CYP,Transport Related,CCA,16/03/2012,12-02823,1755.04,SPRAYS TRANSPORT LTD
Nottinghamshire County Council,1111/1001,Children and Young People,CYP,Transport Related,CCA,16/03/2012,12-02824,1651.68,SPRAYS TRANSPORT LTD
Nottinghamshire County Council,1111/1001,Children and Young People,CYP,Transport Related,CCA,16/03/2012,12-02829,1692,1ST 4 CARE LTD
Nottinghamshire County Council,1111/1001,Children and Young People,CYP,Transport Related,CCA,16/03/2012,12-02830,1576.13,BN GIBSON LTD
Nottinghamshire County Council,1111/1001,Children and Young People,CYP,Transport Related,CCA,16/03/2012,12-02831,2550,BN GIBSON LTD
Nottinghamshire County Council,1111/1001,Children and Young People,CYP,Transport Related,CCA,16/03/2012,12-02832,1406.97,BN GIBSON LTD
Nottinghamshire County Council,1111/1001,Children and Young People,CYP,Transport Related,CCA,16/03/2012,12-02841,1524,TIGER EUROPEAN UK LTD
Nottinghamshire County Council,1111/1001,Children and Young People,CYP,Transport Related,CCA,23/03/2012,12-03829,1224.2,SHARPES OF NOTTINGHAM
Nottinghamshire County Council,1111/1001,Children and Young People,CYP,Transport Related,CCA,23/03/2012,12-03830,931,6 FIVE 2S
Nottinghamshire County Council,1111/1001,Children and Young People,CYP,Transport Related,CCA,23/03/2012,12-03831,996.8,6 FIVE 2S
Nottinghamshire County Council,1111/1001,Children and Young People,CYP,Transport Related,CCA,23/03/2012,12-03832,844.8,6 FIVE 2S
Nottinghamshire County Council,1111/1001,Children and Young People,CYP,Transport Related,CCA,23/03/2012,12-03833,1232,6 FIVE 2S
Nottinghamshire County Council,1111/1001,Children and Young People,CYP,Transport Related,CCA,23/03/2012,12-03834,1020,6 FIVE 2S
Nottinghamshire County Council,1111/1001,Children and Young People,CYP,Transport Related,CCA,23/03/2012,12-03835,632.32,6 FIVE 2S
Nottinghamshire County Council,1111/1001,Children and Young People,CYP,Transport Related,CCA,23/03/2012,12-03836,739.52,6 FIVE 2S
Nottinghamshire County Council,1111/1001,Children and Young People,CYP,Transport Related,CCA,23/03/2012,12-03837,666.24,6 FIVE 2S
Nottinghamshire County Council,1111/1001,Children and Young People,CYP,Transport Related,CCA,23/03/2012,12-03838,1251.3,6 FIVE 2S
Nottinghamshire County Council,1111/1001,Children and Young People,CYP,Transport Related,CCA,23/03/2012,12-03839,867.75,6 FIVE 2S
Nottinghamshire County Council,1111/1001,Children and Young People,CYP,Transport Related,CCA,23/03/2012,12-03840,837,6 FIVE 2S
Nottinghamshire County Council,1111/1001,Children and Young People,CYP,Transport Related,CCA,23/03/2012,12-03841,1118.4,6 FIVE 2S
Nottinghamshire County Council,1111/1001,Children and Young People,CYP,Transport Related,CCA,23/03/2012,12-03852,881.12,COUNTY CARS
Nottinghamshire County Council,1111/1001,Children and Young People,CYP,Transport Related,CCA,23/03/2012,12-03855,697.5,SILVERDALE TOURS NOTTM LTD
Nottinghamshire County Council,1111/1001,Children and Young People,CYP,Transport Related,CCA,30/03/2012,12-07360,1244.1,RIO CABS
Nottinghamshire County Council,1111/1001,Children and Young People,CYP,Transport Related,CCA,30/03/2012,12-07361,1644,RIO CABS
Nottinghamshire County Council,1111/1001,Children and Young People,CYP,Transport Related,CDA,02/03/2012,12-00612,512,1ST 4 CARE LTD
Nottinghamshire County Council,1111/1001,Children and Young People,CYP,Transport Related,CDA,02/03/2012,12-00679,577.5,ARROW SPECIALISED TRANSPORT LTD
Nottinghamshire County Council,1111/1001,Children and Young People,CYP,Transport Related,CDA,02/03/2012,12-00685,861,ARROW SPECIALISED TRANSPORT LTD
Nottinghamshire County Council,1111/1001,Children and Young People,CYP,Transport Related,CDA,07/03/2012,12-01079,124.8,ACE OF MANSFIELD LTD
Nottinghamshire County Council,1111/1001,Children and Young People,CYP,Transport Related,CDA,07/03/2012,12-01098,748.8,BRIDGES TRANSPORT SERVICES
Nottinghamshire County Council,1111/1001,Children and Young People,CYP,Transport Related,CDA,07/03/2012,12-01102,236.36,BRIDGES TRANSPORT SERVICES
Nottinghamshire County Council,1111/1001,Children and Young People,CYP,Transport Related,CDA,07/03/2012,12-01117,680,SPRAYS TRANSPORT LTD
Nottinghamshire County Council,1111/1001,Children and Young People,CYP,Transport Related,CDA,07/03/2012,12-01138,996.56,SPRAYS TRANSPORT LTD
Nottinghamshire County Council,1111/1001,Children and Young People,CYP,Transport Related,CDA,07/03/2012,12-01142,1319.1,P RHODES TRANSPORT LTD
Nottinghamshire County Council,1111/1001,Children and Young People,CYP,Transport Related,CDA,07/03/2012,12-01146,466.48,D G PRIVATE HIRE LTD
Nottinghamshire County Council,1111/1001,Children and Young People,CYP,Transport Related,CDA,07/03/2012,12-01188,712,AAA TAXIS
Nottinghamshire County Council,1111/1001,Children and Young People,CYP,Transport Related,CDA,08/03/2012,12-01323,448.78,ARROW SPECIALISED TRANSPORT LTD
Nottinghamshire County Council,1111/1001,Children and Young People,CYP,Transport Related,CDA,12/03/2012,12-01821,301.6,RIO CABS
Nottinghamshire County Council,1111/1001,Children and Young People,CYP,Transport Related,CDA,14/03/2012,12-02334,273.48,BN GIBSON LTD
Nottinghamshire County Council,1111/1001,Children and Young People,CYP,Transport Related,CDA,14/03/2012,12-02357,748,BN GIBSON LTD
Nottinghamshire County Council,1111/1001,Children and Young People,CYP,Transport Related,CDA,14/03/2012,12-02380,65.62,P & P TAXIS
Nottinghamshire County Council,1111/1001,Children and Young People,CYP,Transport Related,CDA,29/03/2012,12-07076,701,ELIZABETHAN HIGH COMPREHENSIVE SCHO
Nottinghamshire County Council,1111/1001,Children and Young People,CYP,Transport Related,CDA,30/03/2012,12-07360,414.7,RIO CABS
Nottinghamshire County Council,1111/1001,Children and Young People,CYP,Transport Related,CEA,28/03/2012,12-06886,450,MAKING IT! ENTERPRISES LTD
Nottinghamshire County Council,1111/1001,Children and Young People,CYP,Transport Related,CEA,28/03/2012,12-06888,450,MAKING IT! ENTERPRISES LTD
Nottinghamshire County Council,1111/1001,Children and Young People,CYP,Supplies & Services,DAA,01/03/2012,12-00053,900,TUXFORD ACADEMY
Nottinghamshire County Council,1111/1001,Children and Young People,CYP,Supplies & Services,DAA,01/03/2012,12-00101,11600,TUXFORD ACADEMY
Nottinghamshire County Council,1111/1001,Children and Young People,CYP,Supplies & Services,DAA,01/03/2012,12-00102,39000,TUXFORD ACADEMY
Nottinghamshire County Council,1111/1001,Children and Young People,CYP,Supplies & Services,DAA,02/03/2012,12-00372,62, SUTTON CENT COMM COLL
Nottinghamshire County Council,1111/1001,Children and Young People,CYP,Supplies & Services,DAA,02/03/2012,12-00559,81629,GEDLING BOROUGH COUNCIL
Nottinghamshire County Council,1111/1001,Children and Young People,CYP,Supplies & Services,DAA,05/03/2012,12-00767,796,SUPPLY DESK LTD
Nottinghamshire County Council,1111/1001,Children and Young People,CYP,Supplies & Services,DAA,05/03/2012,12-00768,6600,JOSEPH WHITTAKER ACADEMY
Nottinghamshire County Council,1111/1001,Children and Young People,CYP,Supplies & Services,DAA,06/03/2012,12-00387,695,EZYGLIDE LTD
Nottinghamshire County Council,1111/1001,Children and Young People,CYP,Supplies & Services,DAA,07/03/2012,12-00287,5639.71,SUTTON CENTRE COMMUNITY CENTRE
Nottinghamshire County Council,1111/1001,Children and Young People,CYP,Supplies & Services,DAA,07/03/2012,12-01235,837,THE GROVE SCHOOL
Nottinghamshire County Council,1111/1001,Children and Young People,CYP,Supplies & Services,DAA,07/03/2012,12-07406,527.74,BLACKWELLS UNIVERSITY BOOKSHOP
Nottinghamshire County Council,1111/1001,Children and Young People,CYP,Supplies & Services,DAA,09/03/2012,12-07386,890.35,COUNTY SUPPLIES (NCC)
Nottinghamshire County Council,1111/1001,Children and Young People,CYP,Supplies & Services,DAA,13/03/2012,12-02049,15000,THE BRUNTS ACADEMY
Nottinghamshire County Council,1111/1001,Children and Young People,CYP,Supplies & Services,DAA,14/03/2012,12-00376,1705.4,NOTTINGHAM TRENT UNIVERSITY
Nottinghamshire County Council,1111/1001,Children and Young People,CYP,Supplies & Services,DAA,14/03/2012,12-02079,3951,TANBRY CONSTRUCTION LTD
Nottinghamshire County Council,1111/1001,Children and Young People,CYP,Supplies & Services,DAA,14/03/2012,12-02432,75000,THE BRUNTS ACADEMY
Nottinghamshire County Council,1111/1001,Children and Young People,CYP,Supplies & Services,DAA,14/03/2012,12-02433,2500,YEOMAN PARK SCHOOL
Nottinghamshire County Council,1111/1001,Children and Young People,CYP,Supplies & Services,DAA,14/03/2012,12-07398,6480,HANGFAST
Nottinghamshire County Council,1111/1001,Children and Young People,CYP,Supplies & Services,DAA,15/03/2012,12-02525,1179,CORRINGHAM C OF E SCHOOL
Nottinghamshire County Council,1111/1001,Children and Young People,CYP,Supplies & Services,DAA,16/03/2012,12-01720,78.66,THE DUKERIES COLLEGE
Nottinghamshire County Council,1111/1001,Children and Young People,CYP,Supplies & Services,DAA,16/03/2012,12-02930,3000,THE BRUNTS ACADEMY
Nottinghamshire County Council,1111/1001,Children and Young People,CYP,Supplies & Services,DAA,20/03/2012,12-07414,1125,ADOPTION UK
Nottinghamshire County Council,1111/1001,Children and Young People,CYP,Supplies & Services,DAA,21/03/2012,12-03319,10000,THE BRUNTS ACADEMY
Nottinghamshire County Council,1111/1001,Children and Young People,CYP,Supplies & Services,DAA,21/03/2012,12-03320,9000,TOOTHILL ACADEMY
Nottinghamshire County Council,1111/1001,Children and Young People,CYP,Supplies & Services,DAA,21/03/2012,12-03321,10000,TOOTHILL ACADEMY
Nottinghamshire County Council,1111/1001,Children and Young People,CYP,Supplies & Services,DAA,21/03/2012,12-07487,2455,NOTTINGHAM DRUM CENTRE LTD
Nottinghamshire County Council,1111/1001,Children and Young People,CYP,Supplies & Services,DAA,22/03/2012,12-03679,632,CHUTER EDE PRIMARY SCHOOL
Nottinghamshire County Council,1111/1001,Children and Young People,CYP,Supplies & Services,DAA,23/03/2012,12-01723,193.24,THE DUKERIES COLLEGE
Nottinghamshire County Council,1111/1001,Children and Young People,CYP,Supplies & Services,DAA,23/03/2012,12-03490,1080,CITY OF YORK COUNCIL
Nottinghamshire County Council,1111/1001,Children and Young People,CYP,Supplies & Services,DAA,23/03/2012,12-03507,1083,KNOTTINGLEY HIGH SCHOOL & SPORTS CO
Nottinghamshire County Council,1111/1001,Children and Young People,CYP,Supplies & Services,DAA,30/03/2012,12-02458,4675.72,NORBRIDGE ACADEMY TRUST
Nottinghamshire County Council,1111/1001,Children and Young People,CYP,Supplies & Services,DAA,30/03/2012,12-07001,1674.87,SAMWORTH ACADEMY
Nottinghamshire County Council,1111/1001,Children and Young People,CYP,Supplies & Services,DAA,30/03/2012,12-07256,103000,TOOTHILL ACADEMY
Nottinghamshire County Council,1111/1001,Children and Young People,CYP,Supplies & Services,DAA,30/03/2012,12-07268,5000,A PLACE TO CALL OUR OWN LTD
Nottinghamshire County Council,1111/1001,Children and Young People,CYP,Supplies & Services,DAA,30/03/2012,12-07290,700,SEMPERIOR LTD
Nottinghamshire County Council,1111/1001,Children and Young People,CYP,Supplies & Services,DBA,01/03/2012,12-00439,159.79,BRAKE BROS LTD
Nottinghamshire County Council,1111/1001,Children and Young People,CYP,Supplies & Services,DBA,01/03/2012,12-00440,683.51,BRAKE BROS LTD
Nottinghamshire County Council,1111/1001,Children and Young People,CYP,Supplies & Services,DBA,01/03/2012,12-00441,276.73,BRAKE BROS LTD
Nottinghamshire County Council,1111/1001,Children and Young People,CYP,Supplies & Services,DBA,01/03/2012,12-00447,905.62,BRAKE BROS LTD
Nottinghamshire County Council,1111/1001,Children and Young People,CYP,Supplies & Services,DBA,07/03/2012,12-01044,333.68,HALLAM COUNTRY FRESH FOODS LTD
Nottinghamshire County Council,1111/1001,Children and Young People,CYP,Supplies & Services,DBA,08/03/2012,12-01527,233.85,M MALONEY COUNTRY BUTCHERS & B LTD
Nottinghamshire County Council,1111/1001,Children and Young People,CYP,Supplies & Services,DBA,08/03/2012,12-01528,291,M MALONEY COUNTRY BUTCHERS & B LTD
Nottinghamshire County Council,1111/1001,Children and Young People,CYP,Supplies & Services,DBA,09/03/2012,12-01677,186.39,ARNOLD DAIRIES LTD
Nottinghamshire County Council,1111/1001,Children and Young People,CYP,Supplies & Services,DBA,09/03/2012,12-01679,196.72,ARNOLD DAIRIES LTD
Nottinghamshire County Council,1111/1001,Children and Young People,CYP,Supplies & Services,DBA,12/03/2012,12-01772,894.35,BRAKE BROS LTD
Nottinghamshire County Council,1111/1001,Children and Young People,CYP,Supplies & Services,DBA,12/03/2012,12-01773,572.93,BRAKE BROS LTD
Nottinghamshire County Council,1111/1001,Children and Young People,CYP,Supplies & Services,DBA,13/03/2012,12-02008,144.68,BRAKE BROS LTD
Nottinghamshire County Council,1111/1001,Children and Young People,CYP,Supplies & Services,DBA,13/03/2012,12-02010,391.07,BRAKE BROS LTD
Nottinghamshire County Council,1111/1001,Children and Young People,CYP,Supplies & Services,DBA,16/03/2012,12-01720,138,THE DUKERIES COLLEGE
Nottinghamshire County Council,1111/1001,Children and Young People,CYP,Supplies & Services,DBA,16/03/2012,12-02734,247,BRAKE BROS LTD
Nottinghamshire County Council,1111/1001,Children and Young People,CYP,Supplies & Services,DBA,16/03/2012,12-02736,310.1,M MALONEY COUNTRY BUTCHERS & B LTD
Nottinghamshire County Council,1111/1001,Children and Young People,CYP,Supplies & Services,DBA,16/03/2012,12-02933,351.22,HALLAM COUNTRY FRESH FOODS LTD
Nottinghamshire County Council,1111/1001,Children and Young People,CYP,Supplies & Services,DBA,16/03/2012,12-02937,168.36,BRAKE BROS LTD
Nottinghamshire County Council,1111/1001,Children and Young People,CYP,Supplies & Services,DBA,16/03/2012,12-02938,410.61,BRAKE BROS LTD
Nottinghamshire County Council,1111/1001,Children and Young People,CYP,Supplies & Services,DBA,16/03/2012,12-02939,221.56,BRAKE BROS LTD
Nottinghamshire County Council,1111/1001,Children and Young People,CYP,Supplies & Services,DBA,20/03/2012,12-03237,183.47,ARNOLD DAIRIES LTD
Nottinghamshire County Council,1111/1001,Children and Young People,CYP,Supplies & Services,DBA,21/03/2012,12-03298,384.23,HALLAM COUNTRY FRESH FOODS LTD
Nottinghamshire County Council,1111/1001,Children and Young People,CYP,Supplies & Services,DBA,23/03/2012,12-03800,343.35,M MALONEY COUNTRY BUTCHERS & B LTD
Nottinghamshire County Council,1111/1001,Children and Young People,CYP,Supplies & Services,DBA,23/03/2012,12-03802,198.07,ARNOLD DAIRIES LTD
Nottinghamshire County Council,1111/1001,Children and Young People,CYP,Supplies & Services,DBA,23/03/2012,12-03805,757.96,BRAKE BROS LTD
Nottinghamshire County Council,1111/1001,Children and Young People,CYP,Supplies & Services,DBA,23/03/2012,12-03814,496.72,BRAKE BROS LTD
Nottinghamshire County Council,1111/1001,Children and Young People,CYP,Supplies & Services,DBA,23/03/2012,12-03816,416.49,BRAKE BROS LTD
Nottinghamshire County Council,1111/1001,Children and Young People,CYP,Supplies & Services,DBA,27/03/2012,12-06769,286.46,HALLAM COUNTRY FRESH FOODS LTD
Nottinghamshire County Council,1111/1001,Children and Young People,CYP,Supplies & Services,DDA,02/03/2012,12-00372,19.61, SUTTON CENT COMM COLL
Nottinghamshire County Council,1111/1001,Children and Young People,CYP,Supplies & Services,DDA,07/03/2012,12-00287,258.46,SUTTON CENTRE COMMUNITY CENTRE
Nottinghamshire County Council,1111/1001,Children and Young People,CYP,Supplies & Services,DDA,16/03/2012,12-01720,144.37,THE DUKERIES COLLEGE
Nottinghamshire County Council,1111/1001,Children and Young People,CYP,Supplies & Services,DDA,21/03/2012,12-03318,508,FP EXECUTIVE AGENCY LTD
Nottinghamshire County Council,1111/1001,Children and Young People,CYP,Supplies & Services,DDA,21/03/2012,12-07563,500,BESQ LTD
Nottinghamshire County Council,1111/1001,Children and Young People,CYP,Supplies & Services,DEA,01/03/2012,12-00386,510,OPEN UNIVERSITY FINANCE DIVISION
Nottinghamshire County Council,1111/1001,Children and Young People,CYP,Supplies & Services,DEA,02/03/2012,12-00039,3479.75,THE DUKERIES COLLEGE
Nottinghamshire County Council,1111/1001,Children and Young People,CYP,Supplies & Services,DEA,02/03/2012,12-00372,843.55, SUTTON CENT COMM COLL
Nottinghamshire County Council,1111/1001,Children and Young People,CYP,Supplies & Services,DEA,02/03/2012,12-00664,51.17,ARROW SPECIALISED TRANSPORT LTD
Nottinghamshire County Council,1111/1001,Children and Young People,CYP,Supplies & Services,DEA,07/03/2012,12-00287,2103.45,SUTTON CENTRE COMMUNITY CENTRE
Nottinghamshire County Council,1111/1001,Children and Young People,CYP,Supplies & Services,DEA,07/03/2012,12-01237,6176,TRIXCHILDCARE LTD
Nottinghamshire County Council,1111/1001,Children and Young People,CYP,Supplies & Services,DEA,07/03/2012,12-07391,700,OPEN UNIVERSITY FINANCE DIVISION
Nottinghamshire County Council,1111/1001,Children and Young People,CYP,Supplies & Services,DEA,07/03/2012,12-07392,770,OPEN UNIVERSITY FINANCE DIVISION
Nottinghamshire County Council,1111/1001,Children and Young People,CYP,Supplies & Services,DEA,07/03/2012,12-07393,2100,OPEN UNIVERSITY FINANCE DIVISION
Nottinghamshire County Council,1111/1001,Children and Young People,CYP,Supplies & Services,DEA,07/03/2012,12-07394,2170,OPEN UNIVERSITY FINANCE DIVISION
Nottinghamshire County Council,1111/1001,Children and Young People,CYP,Supplies & Services,DEA,08/03/2012,12-01556,550,JPAC LTD
Nottinghamshire County Council,1111/1001,Children and Young People,CYP,Supplies & Services,DEA,08/03/2012,12-01559,1204.32,LEARNING LADDER CHILDCARE LTD
Nottinghamshire County Council,1111/1001,Children and Young People,CYP,Supplies & Services,DEA,12/03/2012,12-01867,1130.5,ASSESSMENT & QUALIFICATION ALLIANCE
Nottinghamshire County Council,1111/1001,Children and Young People,CYP,Supplies & Services,DEA,13/03/2012,12-02012,540,R FOWLER
Nottinghamshire County Council,1111/1001,Children and Young People,CYP,Supplies & Services,DEA,13/03/2012,12-02081,583.4,REAL EDUCATION LTD
Nottinghamshire County Council,1111/1001,Children and Young People,CYP,Supplies & Services,DEA,15/03/2012,12-02714,759.5,NEWARK & SHERWOOD PLAY SUPPORT SCH
Nottinghamshire County Council,1111/1001,Children and Young People,CYP,Supplies & Services,DEA,16/03/2012,12-01720,9052.98,THE DUKERIES COLLEGE
Nottinghamshire County Council,1111/1001,Children and Young People,CYP,Supplies & Services,DEA,23/03/2012,12-01723,8834.57,THE DUKERIES COLLEGE
Nottinghamshire County Council,1111/1001,Children and Young People,CYP,Supplies & Services,DEA,23/03/2012,12-03766,1234,NOTTS ENTERPRISES LTD
Nottinghamshire County Council,1111/1001,Children and Young People,CYP,Supplies & Services,DEA,28/03/2012,12-06796,818,OLLERTON OUT OF SCHOOL CARE
Nottinghamshire County Council,1111/1001,Children and Young People,CYP,Supplies & Services,DEA,28/03/2012,12-06890,3285,BAAF
Nottinghamshire County Council,1111/1001,Children and Young People,CYP,Supplies & Services,DFA,02/03/2012,12-00372,2.3, SUTTON CENT COMM COLL
Nottinghamshire County Council,1111/1001,Children and Young People,CYP,Supplies & Services,DFA,07/03/2012,12-00287,240.88,SUTTON CENTRE COMMUNITY CENTRE
Nottinghamshire County Council,1111/1001,Children and Young People,CYP,Supplies & Services,DFA,13/03/2012,12-07425,4000,FRANK MACH TOP UPS ONLY NEOPOST LTD
Nottinghamshire County Council,1111/1001,Children and Young People,CYP,Supplies & Services,DFA,16/03/2012,12-01720,294.63,THE DUKERIES COLLEGE
Nottinghamshire County Council,1111/1001,Children and Young People,CYP,Supplies & Services,DFA,20/03/2012,12-03220,839.2,POSTAGE BY PHONE
Nottinghamshire County Council,1111/1001,Children and Young People,CYP,Supplies & Services,DFA,28/03/2012,12-06886,330.85,MAKING IT! ENTERPRISES LTD
Nottinghamshire County Council,1111/1001,Children and Young People,CYP,Supplies & Services,DFA,28/03/2012,12-06888,369.57,MAKING IT! ENTERPRISES LTD
Nottinghamshire County Council,1111/1001,Children and Young People,CYP,Supplies & Services,DGA,02/03/2012,12-00372,5.95, SUTTON CENT COMM COLL
Nottinghamshire County Council,1111/1001,Children and Young People,CYP,Supplies & Services,DGA,28/03/2012,12-06826,90,HORIZON SOCIAL HOUSING LTD
Nottinghamshire County Council,1111/1001,Children and Young People,CYP,Supplies & Services,DHA,06/03/2012,12-00773,900,HEADWAY NOTTINGHAM
Nottinghamshire County Council,1111/1001,Children and Young People,CYP,Supplies & Services,DHA,06/03/2012,12-00963,66308.25,NCMA SERVICES LTD
Nottinghamshire County Council,1111/1001,Children and Young People,CYP,Supplies & Services,DHA,07/03/2012,12-01040,13392,MESSRS BALL LEES
Nottinghamshire County Council,1111/1001,Children and Young People,CYP,Supplies & Services,DKA,01/03/2012,12-00060,500,BRIGHT LIGHT THERAPIES
Nottinghamshire County Council,1111/1001,Children and Young People,CYP,Supplies & Services,DKA,01/03/2012,12-00366,1400,JOSEPH WHITTAKER ACADEMY
Nottinghamshire County Council,1111/1001,Children and Young People,CYP,Supplies & Services,DKA,01/03/2012,12-00391,1053,S & A INDUSTRIAL PROPERTY
Nottinghamshire County Council,1111/1001,Children and Young People,CYP,Supplies & Services,DKA,02/03/2012,12-00211,12138.53,PROGRESSIVE CARE
Nottinghamshire County Council,1111/1001,Children and Young People,CYP,Supplies & Services,DKA,02/03/2012,12-00587,4870,REDHILL ACADEMY
Nottinghamshire County Council,1111/1001,Children and Young People,CYP,Supplies & Services,DKA,02/03/2012,12-00588,3800,THE BECKET CATHOLIC VOLUNTARY ACADA
Nottinghamshire County Council,1111/1001,Children and Young People,CYP,Supplies & Services,DKA,02/03/2012,12-00590,5230,CARLTON LE WILLOWS ACADEMY
Nottinghamshire County Council,1111/1001,Children and Young People,CYP,Supplies & Services,DKA,02/03/2012,12-00603,5254.5,NOTTINGHAM MENCAP
Nottinghamshire County Council,1111/1001,Children and Young People,CYP,Supplies & Services,DKA,02/03/2012,12-00649,239.97,TAXICOVER UK LTD
Nottinghamshire County Council,1111/1001,Children and Young People,CYP,Supplies & Services,DKA,05/03/2012,12-00719,2820,COMPASS SERVICES FOR CHILDREN LTD
Nottinghamshire County Council,1111/1001,Children and Young People,CYP,Supplies & Services,DKA,05/03/2012,12-00722,658.4,DARREN C COE
Nottinghamshire County Council,1111/1001,Children and Young People,CYP,Supplies & Services,DKA,05/03/2012,12-00723,2914,COMPASS SERVICES FOR CHILDREN LTD
Nottinghamshire County Council,1111/1001,Children and Young People,CYP,Supplies & Services,DKA,05/03/2012,12-00724,2808,HOPE FOSTERING SERVICES LTD
Nottinghamshire County Council,1111/1001,Children and Young People,CYP,Supplies & Services,DKA,05/03/2012,12-00727,1025,WYN TRAINING & CONSULTANCY LTD
Nottinghamshire County Council,1111/1001,Children and Young People,CYP,Supplies & Services,DKA,08/03/2012,12-01560,1191.04,THE KIRKBY TRUST
Nottinghamshire County Council,1111/1001,Children and Young People,CYP,Supplies & Services,DKA,08/03/2012,12-01561,744.4,THE KIRKBY TRUST
Nottinghamshire County Council,1111/1001,Children and Young People,CYP,Supplies & Services,DKA,13/03/2012,12-02014,606.67,HOME LEISURE DIRECT LTD
Nottinghamshire County Council,1111/1001,Children and Young People,CYP,Supplies & Services,DKA,14/03/2012,12-02206,5852.24,CUCKNEY PRIMARY SCHOOL
Nottinghamshire County Council,1111/1001,Children and Young People,CYP,Supplies & Services,DKA,14/03/2012,12-02413,2760,IN TRAC TRAINING & CONSULTANCY LTD
Nottinghamshire County Council,1111/1001,Children and Young People,CYP,Supplies & Services,DKA,14/03/2012,12-02414,1380,IN TRAC TRAINING & CONSULTANCY LTD
Nottinghamshire County Council,1111/1001,Children and Young People,CYP,Supplies & Services,DKA,15/03/2012,12-02514,2150,WYN TRAINING & CONSULTANCY LTD
Nottinghamshire County Council,1111/1001,Children and Young People,CYP,Supplies & Services,DKA,15/03/2012,12-02586,2000,DAGFA HOUSE SCHOOL
Nottinghamshire County Council,1111/1001,Children and Young People,CYP,Supplies & Services,DKA,16/03/2012,12-00364,6352,QUEEN ELIZABETH SCHOOL
Nottinghamshire County Council,1111/1001,Children and Young People,CYP,Supplies & Services,DKA,16/03/2012,12-00365,12068,THE CARLTON ACADEMY
Nottinghamshire County Council,1111/1001,Children and Young People,CYP,Supplies & Services,DKA,16/03/2012,12-00367,6370,NATIONAL ACADEMY
Nottinghamshire County Council,1111/1001,Children and Young People,CYP,Supplies & Services,DKA,16/03/2012,12-00375,34408,NATIONAL ACADEMY
Nottinghamshire County Council,1111/1001,Children and Young People,CYP,Supplies & Services,DKA,19/03/2012,12-03044,900,RURAL COMMUNITY ACTION NOTTS
Nottinghamshire County Council,1111/1001,Children and Young People,CYP,Supplies & Services,DKA,19/03/2012,12-03140,8790,NOTTM & NOTTS FUTURES LTD
Nottinghamshire County Council,1111/1001,Children and Young People,CYP,Supplies & Services,DKA,20/03/2012,12-03243,520.25,CAFE CONNECT OF NEWARK LTD
Nottinghamshire County Council,1111/1001,Children and Young People,CYP,Supplies & Services,DKA,20/03/2012,12-03248,825.4,RENNE P MARKS ASSOCIATES LTD
Nottinghamshire County Council,1111/1001,Children and Young People,CYP,Supplies & Services,DKA,20/03/2012,12-03293,2500,FOSTERING LIAISON & ADVISORY GROUP
Nottinghamshire County Council,1111/1001,Children and Young People,CYP,Supplies & Services,DKA,21/03/2012,12-03305,5074,PORTLAND SCHOOL
Nottinghamshire County Council,1111/1001,Children and Young People,CYP,Supplies & Services,DKA,21/03/2012,12-03306,4131,THE CARLTON ACADEMY
Nottinghamshire County Council,1111/1001,Children and Young People,CYP,Supplies & Services,DKA,21/03/2012,12-03363,657.84,NOTTM COMMUNITY HOUSING ASS
Nottinghamshire County Council,1111/1001,Children and Young People,CYP,Supplies & Services,DKA,21/03/2012,12-03431,541,BAAF
Nottinghamshire County Council,1111/1001,Children and Young People,CYP,Supplies & Services,DKA,22/03/2012,12-03505,505.14,CHURCH VALE PRIMARY & NURSERY SCHOO
Nottinghamshire County Council,1111/1001,Children and Young People,CYP,Supplies & Services,DKA,22/03/2012,12-03514,800,JOSEPH WHITTAKER ACADEMY
Nottinghamshire County Council,1111/1001,Children and Young People,CYP,Supplies & Services,DKA,22/03/2012,12-03515,700,ARNOLD HILL ACADEMY
Nottinghamshire County Council,1111/1001,Children and Young People,CYP,Supplies & Services,DKA,22/03/2012,12-03628,1136.42,PHS GROUP PLC
Nottinghamshire County Council,1111/1001,Children and Young People,CYP,Supplies & Services,DKA,23/03/2012,12-00589,72112,THE MANOR ACADEMY
Nottinghamshire County Council,1111/1001,Children and Young People,CYP,Supplies & Services,DKA,23/03/2012,12-00596,5683,THE MANOR ACADEMY
Nottinghamshire County Council,1111/1001,Children and Young People,CYP,Supplies & Services,DKA,23/03/2012,12-00614,15126,THE MANOR ACADEMY
Nottinghamshire County Council,1111/1001,Children and Young People,CYP,Supplies & Services,DKA,23/03/2012,12-00615,2325,THE CARLTON ACADEMY
Nottinghamshire County Council,1111/1001,Children and Young People,CYP,Supplies & Services,DKA,23/03/2012,12-02013,2875,CENTER PARCS
Nottinghamshire County Council,1111/1001,Children and Young People,CYP,Supplies & Services,DKA,23/03/2012,12-03673,500,CHURCHILL LETTINGS
Nottinghamshire County Council,1111/1001,Children and Young People,CYP,Supplies & Services,DKA,23/03/2012,12-03818,3275.55,FOSTER CARE ASSOCIATES LTD
Nottinghamshire County Council,1111/1001,Children and Young People,CYP,Supplies & Services,DKA,23/03/2012,12-03819,2880,HOPE FOSTERING SERVICES LTD
Nottinghamshire County Council,1111/1001,Children and Young People,CYP,Supplies & Services,DKA,23/03/2012,12-03820,1500,HORIZON SOCIAL HOUSING LTD
Nottinghamshire County Council,1111/1001,Children and Young People,CYP,Supplies & Services,DKA,26/03/2012,12-03937,1500,HORIZON SOCIAL HOUSING LTD
Nottinghamshire County Council,1111/1001,Children and Young People,CYP,Supplies & Services,DKA,26/03/2012,12-03938,1550,CAREFIRST SERVICES
Nottinghamshire County Council,1111/1001,Children and Young People,CYP,Supplies & Services,DKA,28/03/2012,12-02524,1500,CGR ASSOCIATES
Nottinghamshire County Council,1111/1001,Children and Young People,CYP,Supplies & Services,DKA,28/03/2012,12-03020,4800,CGR ASSOCIATES
Nottinghamshire County Council,1111/1001,Children and Young People,CYP,Supplies & Services,DKA,28/03/2012,12-06816,1895.37,LEICESTER HOUSING ASSOCIATION
Nottinghamshire County Council,1111/1001,Children and Young People,CYP,Supplies & Services,DKA,28/03/2012,12-06817,1500,HORIZON SOCIAL HOUSING LTD
Nottinghamshire County Council,1111/1001,Children and Young People,CYP,Supplies & Services,DKA,28/03/2012,12-06818,1438.92,STEPPING STONES
Nottinghamshire County Council,1111/1001,Children and Young People,CYP,Supplies & Services,DKA,28/03/2012,12-06819,1438.92,STEPPING STONES
Nottinghamshire County Council,1111/1001,Children and Young People,CYP,Supplies & Services,DKA,28/03/2012,12-06820,754,STEPPING STONES
Nottinghamshire County Council,1111/1001,Children and Young People,CYP,Supplies & Services,DKA,28/03/2012,12-06821,3163.11,STEPPING STONES
Nottinghamshire County Council,1111/1001,Children and Young People,CYP,Supplies & Services,DKA,28/03/2012,12-06822,1250,CAREFIRST SERVICES
Nottinghamshire County Council,1111/1001,Children and Young People,CYP,Supplies & Services,DKA,28/03/2012,12-06823,1500,HORIZON SOCIAL HOUSING LTD
Nottinghamshire County Council,1111/1001,Children and Young People,CYP,Supplies & Services,DKA,28/03/2012,12-06826,400,HORIZON SOCIAL HOUSING LTD
Nottinghamshire County Council,1111/1001,Children and Young People,CYP,Supplies & Services,DKA,28/03/2012,12-06827,1500,HORIZON SOCIAL HOUSING LTD
Nottinghamshire County Council,1111/1001,Children and Young People,CYP,Supplies & Services,DKA,28/03/2012,12-06972,6400,HARRY CARLTON COMPREHENSIVE SCHOOL
Nottinghamshire County Council,1111/1001,Children and Young People,CYP,Supplies & Services,DKA,29/03/2012,12-07067,3001.25,NOTTS COUNTY CRICKET CLUB
Nottinghamshire County Council,1111/1001,Children and Young People,CYP,Supplies & Services,DKA,29/03/2012,12-07077,14500,FOXWOOD SCHOOL
Nottinghamshire County Council,1111/1001,Children and Young People,CYP,Supplies & Services,DKA,29/03/2012,12-07078,1500,JOSEPH WHITTAKER ACADEMY
Nottinghamshire County Council,1111/1001,Children and Young People,CYP,Supplies & Services,DKA,29/03/2012,12-07079,1000,SOUTHWELL MINSTER C E COMP SCHOOL
Nottinghamshire County Council,1111/1001,Children and Young People,CYP,Supplies & Services,DKA,29/03/2012,12-07080,3500,HOLGATE SCHOOL
Nottinghamshire County Council,1111/1001,Children and Young People,CYP,Supplies & Services,DKA,29/03/2012,12-07081,1000,NEWARK ORCHARD SCHOOL
Nottinghamshire County Council,1111/1001,Children and Young People,CYP,Supplies & Services,DKA,29/03/2012,12-07085,1100,RED HOT CUISINE LTD
Nottinghamshire County Council,1111/1001,Children and Young People,CYP,Supplies & Services,DKA,29/03/2012,12-07086,550,RED HOT CUISINE LTD
Nottinghamshire County Council,1111/1001,Children and Young People,CYP,Supplies & Services,DKA,30/03/2012,12-01034,7500,ASHLEA SPECIAL SCHOOL
Nottinghamshire County Council,1111/1001,Children and Young People,CYP,Supplies & Services,DKA,30/03/2012,12-01035,10000,ASHLEA SPECIAL SCHOOL
Nottinghamshire County Council,1111/1001,Children and Young People,CYP,Supplies & Services,DKA,30/03/2012,12-02931,2332,SODEXO PRESTIGE LTD
Nottinghamshire County Council,1111/1001,Children and Young People,CYP,Supplies & Services,DKA,30/03/2012,12-03208,600,BRIGHT LIGHT THERAPIES
Nottinghamshire County Council,1111/1001,Children and Young People,CYP,Supplies & Services,DKA,30/03/2012,12-06717,1299,NEWARK & SHERWOOD PLAY SUPPORT SCH
Nottinghamshire County Council,1111/1001,Children and Young People,CYP,Supplies & Services,DKA,30/03/2012,12-07203,740,G S MAHAL & CO LTD
Nottinghamshire County Council,1111/1001,Children and Young People,CYP,Supplies & Services,DKA,30/03/2012,12-07225,3500,THE KIMBERLEY SCHOOL
Nottinghamshire County Council,1111/1001,Children and Young People,CYP,Supplies & Services,DKA,30/03/2012,12-07255,950,PARAMOUNT HOTEL
Nottinghamshire County Council,1111/1001,Children and Young People,CYP,Supplies & Services,DKA,30/03/2012,12-07267,750,JOSEPH WHITTAKER ACADEMY
Nottinghamshire County Council,1111/1001,Children and Young People,CYP,Supplies & Services,DKA,30/03/2012,12-07274,30000,FOXWOOD SCHOOL
Nottinghamshire County Council,1111/1001,Children and Young People,CYP,Supplies & Services,DKA,30/03/2012,12-07276,4015,THE BRUNTS ACADEMY
Nottinghamshire County Council,1111/1001,Children and Young People,CYP,Supplies & Services,DKA,30/03/2012,12-07278,2747,CARLTON LE WILLOWS ACADEMY
Nottinghamshire County Council,1111/1001,Children and Young People,CYP,Supplies & Services,DKA,30/03/2012,12-07279,1248,ARNOLD HILL ACADEMY
Nottinghamshire County Council,1111/1001,Children and Young People,CYP,Supplies & Services,DKA,30/03/2012,12-07281,3039,GEORGE SPENCER ACADAMY
Nottinghamshire County Council,1111/1001,Children and Young People,CYP,Supplies & Services,DKA,30/03/2012,12-07283,6667,GEORGE SPENCER ACADAMY
Nottinghamshire County Council,1111/1001,Children and Young People,CYP,Supplies & Services,DKA,30/03/2012,12-07285,2615,NORSACA SOCIETY OFFICE
Nottinghamshire County Council,1111/1001,Children and Young People,CYP,Supplies & Services,DKA,30/03/2012,12-07286,3375,WEST BRIDGFORD ACADEMY
Nottinghamshire County Council,1111/1001,Children and Young People,CYP,Supplies & Services,DKA,30/03/2012,12-07288,750,YORKSHIRE WATER
Nottinghamshire County Council,1111/1001,Children and Young People,CYP,Supplies & Services,DKA,30/03/2012,12-07362,950,SEND PROJECT
Nottinghamshire County Council,1111/1001,Children and Young People,CYP,Third Party Payments,EBA,06/03/2012,12-01016,9701.76,GEDLING BOROUGH COUNCIL
Nottinghamshire County Council,1111/1001,Children and Young People,CYP,Third Party Payments,EBA,16/03/2012,12-00774,9701.76,GEDLING BOROUGH COUNCIL
Nottinghamshire County Council,1111/1001,Children and Young People,CYP,Third Party Payments,EBA,30/03/2012,12-07272,16750,A PLACE TO CALL OUR OWN LTD
Nottinghamshire County Council,1111/1001,Children and Young People,CYP,Third Party Payments,EBA,30/03/2012,12-07280,8880,NORTHAMPTONSHIRE COUNTY COUNCIL
Nottinghamshire County Council,1111/1001,Children and Young People,CYP,Third Party Payments,EBA,30/03/2012,12-07477,37441.75,PRE SCHOOL LEARNING ALLIANCE
Nottinghamshire County Council,1111/1001,Children and Young People,CYP,Third Party Payments,ECA,21/03/2012,12-03315,195466.64,NORTH NOTTS COLLEGE
Nottinghamshire County Council,1111/1001,Children and Young People,CYP,Third Party Payments,ECA,28/03/2012,12-06968,666433.82,NOTTS HEALTHCARE NHS TRUST CHARITAB
Nottinghamshire County Council,1111/1001,Children and Young People,CYP,Third Party Payments,EFA,01/03/2012,12-00421,1100,UNIQUE COFFEE BAR
Nottinghamshire County Council,1111/1001,Children and Young People,CYP,Third Party Payments,EFA,02/03/2012,12-00193,2460,EDUCATIONAL EXCELLENCE
Nottinghamshire County Council,1111/1001,Children and Young People,CYP,Third Party Payments,EFA,05/03/2012,12-00720,1500,HORIZON SOCIAL HOUSING LTD
Nottinghamshire County Council,1111/1001,Children and Young People,CYP,Third Party Payments,EFA,08/03/2012,12-01554,789.96,YARDSDALE LTD
Nottinghamshire County Council,1111/1001,Children and Young People,CYP,Third Party Payments,EFA,08/03/2012,12-01562,606.95,MILFORD PRIMARY SCHOOL
Nottinghamshire County Council,1111/1001,Children and Young People,CYP,Third Party Payments,EFA,09/03/2012,12-01568,1424.3,7KS CORPORATE & FINANCE
Nottinghamshire County Council,1111/1001,Children and Young People,CYP,Third Party Payments,EFA,12/03/2012,12-00420,1860,EDUCATIONAL EXCELLENCE
Nottinghamshire County Council,1111/1001,Children and Young People,CYP,Third Party Payments,EFA,14/03/2012,12-02467,1015,ROCKING HORSE NURSERY BUTLERS HILL
Nottinghamshire County Council,1111/1001,Children and Young People,CYP,Third Party Payments,EFA,15/03/2012,12-02516,3000,HOPE FOSTERING SERVICES LTD
Nottinghamshire County Council,1111/1001,Children and Young People,CYP,Third Party Payments,EFA,20/03/2012,12-03206,2808,HOPE FOSTERING SERVICES LTD
Nottinghamshire County Council,1111/1001,Children and Young People,CYP,Third Party Payments,EFA,21/03/2012,12-03304,25461.87,SENAD LTD
Nottinghamshire County Council,1111/1001,Children and Young People,CYP,Third Party Payments,EFA,21/03/2012,12-03375,3458,NOTTINGHAMSHIRE HEALTHCARE NHS TRUS
Nottinghamshire County Council,1111/1001,Children and Young People,CYP,Third Party Payments,EFA,21/03/2012,12-03376,858,NOTTINGHAMSHIRE HEALTHCARE NHS TRUS
Nottinghamshire County Council,1111/1001,Children and Young People,CYP,Third Party Payments,EFA,21/03/2012,12-03377,5248,NOTTINGHAMSHIRE HEALTHCARE NHS TRUS
Nottinghamshire County Council,1111/1001,Children and Young People,CYP,Third Party Payments,EFA,21/03/2012,12-03411,606.95,BUSY BEES CHILDRENS DAY NURSERY
Nottinghamshire County Council,1111/1001,Children and Young People,CYP,Third Party Payments,EFA,21/03/2012,12-07562,2280,WHEELBASE MOTOR PROJECT
Nottinghamshire County Council,1111/1001,Children and Young People,CYP,Third Party Payments,EFA,23/03/2012,12-03760,920,UNIQUE COFFEE BAR
Nottinghamshire County Council,1111/1001,Children and Young People,CYP,Third Party Payments,EFA,26/03/2012,12-03910,1560,STONE SOUP PROJECT
Nottinghamshire County Council,1111/1001,Children and Young People,CYP,Third Party Payments,EFA,26/03/2012,12-03911,1430,STONE SOUP PROJECT
Nottinghamshire County Council,1111/1001,Children and Young People,CYP,Third Party Payments,EFA,29/03/2012,12-07055,679.39,FOSTERING PEOPLE LTD
Nottinghamshire County Council,1111/1001,Children and Young People,CYP,Third Party Payments,EFA,30/03/2012,12-07227,2170.7,REAL EDUCATION LTD
Nottinghamshire County Council,1111/1001,Children and Young People,CYP,Third Party Payments,EFA,30/03/2012,12-07229,856.46,REAL EDUCATION LTD
Nottinghamshire County Council,1111/1001,Children and Young People,CYP,Third Party Payments,EFA,30/03/2012,12-07230,631.88,REAL EDUCATION LTD
Nottinghamshire County Council,1111/1001,Children and Young People,CYP,Third Party Payments,EFA,30/03/2012,12-07231,1323.74,REAL EDUCATION LTD
Nottinghamshire County Council,1111/1001,Children and Young People,CYP,Third Party Payments,EFA,30/03/2012,12-07233,1499.51,REAL EDUCATION LTD
Nottinghamshire County Council,1111/1001,Children and Young People,CYP,Third Party Payments,EFA,30/03/2012,12-07236,2407.66,REAL EDUCATION LTD
Nottinghamshire County Council,1111/1001,Children and Young People,CYP,Third Party Payments,EFA,30/03/2012,12-07237,3908.81,REAL EDUCATION LTD
Nottinghamshire County Council,1111/1001,Children and Young People,CYP,Third Party Payments,EFA,30/03/2012,12-07238,3211.7,REAL EDUCATION LTD
Nottinghamshire County Council,1111/1001,Children and Young People,CYP,Third Party Payments,EFA,30/03/2012,12-07239,3284.72,REAL EDUCATION LTD
Nottinghamshire County Council,1111/1001,Children and Young People,CYP,Third Party Payments,EFA,30/03/2012,12-07240,735,REAL EDUCATION LTD
Nottinghamshire County Council,1111/1001,Children and Young People,CYP,Third Party Payments,EFA,30/03/2012,12-07241,816.11,REAL EDUCATION LTD
Nottinghamshire County Council,1111/1001,Children and Young People,CYP,Third Party Payments,EFA,30/03/2012,12-07242,2556.81,REAL EDUCATION LTD
Nottinghamshire County Council,1111/1001,Children and Young People,CYP,Third Party Payments,EFA,30/03/2012,12-07243,1350.81,REAL EDUCATION LTD
Nottinghamshire County Council,1111/1001,Children and Young People,CYP,Third Party Payments,EFA,30/03/2012,12-07244,530,REAL EDUCATION LTD
Nottinghamshire County Council,1111/1001,Children and Young People,CYP,Third Party Payments,EFA,30/03/2012,12-07245,1872.39,REAL EDUCATION LTD
Nottinghamshire County Council,1111/1001,Children and Young People,CYP,Third Party Payments,EFA,30/03/2012,12-07246,1310.72,REAL EDUCATION LTD
Nottinghamshire County Council,1111/1001,Children and Young People,CYP,Third Party Payments,EFA,30/03/2012,12-07247,1508.01,REAL EDUCATION LTD
Nottinghamshire County Council,1111/1001,Children and Young People,CYP,Third Party Payments,EFA,30/03/2012,12-07248,735.8,REAL EDUCATION LTD
Nottinghamshire County Council,1111/1001,Children and Young People,CYP,Third Party Payments,EFA,30/03/2012,12-07264,1424.3,KEYS CHILDCARE LTD
Nottinghamshire County Council,1111/1001,Children and Young People,CYP,Third Party Payments,EFA,30/03/2012,12-07265,3343.85,I CAN SERVICES LTD
Nottinghamshire County Council,1111/1001,Children and Young People,CYP,Third Party Payments,EFA,30/03/2012,12-07266,1252.49,SENAD LTD
Nottinghamshire County Council,1111/1001,Children and Young People,CYP,Third Party Payments,EFA,30/03/2012,12-07269,1841.63,REAL EDUCATION LTD
Nottinghamshire County Council,1111/1001,Children and Young People,CYP,Third Party Payments,EFA,30/03/2012,12-07270,1653.74,REAL EDUCATION LTD
Nottinghamshire County Council,1111/1001,Children and Young People,CYP,Third Party Payments,EFA,30/03/2012,12-07273,15657.67,SENAD LTD
Nottinghamshire County Council,1111/1001,Children and Young People,CYP,Third Party Payments,EGA,01/03/2012,12-00083,3049.16,16 PLUS
Nottinghamshire County Council,1111/1001,Children and Young People,CYP,Third Party Payments,EGA,01/03/2012,12-00084,11071.34,BROADWOOD EDUCATIONAL SERVICES LTD
Nottinghamshire County Council,1111/1001,Children and Young People,CYP,Third Party Payments,EGA,01/03/2012,12-00085,1496.85,16 PLUS
Nottinghamshire County Council,1111/1001,Children and Young People,CYP,Third Party Payments,EGA,01/03/2012,12-00114,845.25,QUAYSIDE CARE LTD
Nottinghamshire County Council,1111/1001,Children and Young People,CYP,Third Party Payments,EGA,01/03/2012,12-00207,2236.34,16 PLUS
Nottinghamshire County Council,1111/1001,Children and Young People,CYP,Third Party Payments,EGA,01/03/2012,12-00208,2236.34,16 PLUS
Nottinghamshire County Council,1111/1001,Children and Young People,CYP,Third Party Payments,EGA,01/03/2012,12-07378,6900,CAPSTONE CARE PROVIDER LIMITED
Nottinghamshire County Council,1111/1001,Children and Young People,CYP,Third Party Payments,EGA,01/03/2012,12-07404,9300,CAPSTONE CARE PROVIDER LIMITED
Nottinghamshire County Council,1111/1001,Children and Young People,CYP,Third Party Payments,EGA,02/03/2012,12-00008,746.9,SAFE HAVEN DAY NURSERY
Nottinghamshire County Council,1111/1001,Children and Young People,CYP,Third Party Payments,EGA,02/03/2012,12-00012,12138.53,PROGRESSIVE CARE
Nottinghamshire County Council,1111/1001,Children and Young People,CYP,Third Party Payments,EGA,02/03/2012,12-00082,40320,TURNAROUND
Nottinghamshire County Council,1111/1001,Children and Young People,CYP,Third Party Payments,EGA,02/03/2012,12-00087,17607.14,TURNAROUND
Nottinghamshire County Council,1111/1001,Children and Young People,CYP,Third Party Payments,EGA,02/03/2012,12-00111,897,QUAYSIDE CARE LTD
Nottinghamshire County Council,1111/1001,Children and Young People,CYP,Third Party Payments,EGA,02/03/2012,12-00112,845.25,QUAYSIDE CARE LTD
Nottinghamshire County Council,1111/1001,Children and Young People,CYP,Third Party Payments,EGA,02/03/2012,12-00113,845.25,QUAYSIDE CARE LTD
Nottinghamshire County Council,1111/1001,Children and Young People,CYP,Third Party Payments,EGA,02/03/2012,12-00159,600,OXFORD BROOKES UNIVERSITY
Nottinghamshire County Council,1111/1001,Children and Young People,CYP,Third Party Payments,EGA,02/03/2012,12-00369,1650,TURNAROUND
Nottinghamshire County Council,1111/1001,Children and Young People,CYP,Third Party Payments,EGA,02/03/2012,12-00585,1561,ST GILES SCHOOL
Nottinghamshire County Council,1111/1001,Children and Young People,CYP,Third Party Payments,EGA,02/03/2012,12-00586,609,ST GILES SCHOOL
Nottinghamshire County Council,1111/1001,Children and Young People,CYP,Third Party Payments,EGA,02/03/2012,12-07384,3538.34,PARALLEL PARENTS
Nottinghamshire County Council,1111/1001,Children and Young People,CYP,Third Party Payments,EGA,05/03/2012,12-00729,9480.75,PATHWAY CARE SOLUTIONS LTD
Nottinghamshire County Council,1111/1001,Children and Young People,CYP,Third Party Payments,EGA,05/03/2012,12-00730,11342.03,PATHWAY CARE SOLUTIONS LTD
Nottinghamshire County Council,1111/1001,Children and Young People,CYP,Third Party Payments,EGA,05/03/2012,12-00732,5355,FOSTER CARE ASSOCIATES LTD
Nottinghamshire County Council,1111/1001,Children and Young People,CYP,Third Party Payments,EGA,06/03/2012,12-00349,2236.34,KEYS 16PLUS INDEPENDENT LIVING SERV
Nottinghamshire County Council,1111/1001,Children and Young People,CYP,Third Party Payments,EGA,07/03/2012,12-01220,1261.26,FOSTERING SOLUTIONS LTD
Nottinghamshire County Council,1111/1001,Children and Young People,CYP,Third Party Payments,EGA,07/03/2012,12-01221,1393.79,HILLCREST NURSING HOME
Nottinghamshire County Council,1111/1001,Children and Young People,CYP,Third Party Payments,EGA,08/03/2012,12-00025,712.95,EASTWOOD CHILDCARE
Nottinghamshire County Council,1111/1001,Children and Young People,CYP,Third Party Payments,EGA,09/03/2012,12-00110,879.75,QUAYSIDE CARE LTD
Nottinghamshire County Council,1111/1001,Children and Young People,CYP,Third Party Payments,EGA,09/03/2012,12-01571,341555,NOTTINGHAMSHIRE HEALTHCARE NHS TRUS
Nottinghamshire County Council,1111/1001,Children and Young People,CYP,Third Party Payments,EGA,09/03/2012,12-01575,7817.1,PAPERMOON DAY NURSERY
Nottinghamshire County Council,1111/1001,Children and Young People,CYP,Third Party Payments,EGA,09/03/2012,12-01576,13457.01,PAPERMOON DAY NURSERY SUTTON IN ASH
Nottinghamshire County Council,1111/1001,Children and Young People,CYP,Third Party Payments,EGA,09/03/2012,12-01577,7781.28,PAPERMOON DAY NURSERY
Nottinghamshire County Council,1111/1001,Children and Young People,CYP,Third Party Payments,EGA,09/03/2012,12-01578,10825.56,PAPERMOON DAY NURSERY
Nottinghamshire County Council,1111/1001,Children and Young People,CYP,Third Party Payments,EGA,09/03/2012,12-01728,5562.95,COMPASS SERVICES FOR CHILDREN LTD
Nottinghamshire County Council,1111/1001,Children and Young People,CYP,Third Party Payments,EGA,09/03/2012,12-01729,1611.84,STEPPING STONES
Nottinghamshire County Council,1111/1001,Children and Young People,CYP,Third Party Payments,EGA,12/03/2012,12-00058,1120.35,KIRKBY CROSS PLAYGROUP
Nottinghamshire County Council,1111/1001,Children and Young People,CYP,Third Party Payments,EGA,12/03/2012,12-00134,882,ARNOLD HOUSE DAY NURSERY
Nottinghamshire County Council,1111/1001,Children and Young People,CYP,Third Party Payments,EGA,12/03/2012,12-00136,567,WOLLATON VILLAGE DAY NURSERY-DUPLIC
Nottinghamshire County Council,1111/1001,Children and Young People,CYP,Third Party Payments,EGA,12/03/2012,12-00215,931.5,QUAYSIDE CARE LTD
Nottinghamshire County Council,1111/1001,Children and Young People,CYP,Third Party Payments,EGA,12/03/2012,12-00221,945,THE GROVE PRE-SCHOOL
Nottinghamshire County Council,1111/1001,Children and Young People,CYP,Third Party Payments,EGA,12/03/2012,12-00731,40320,TURNAROUND
Nottinghamshire County Council,1111/1001,Children and Young People,CYP,Third Party Payments,EGA,12/03/2012,12-01570,358964,NOTTINGHAMSHIRE HEALTHCARE NHS TRUS
Nottinghamshire County Council,1111/1001,Children and Young People,CYP,Third Party Payments,EGA,12/03/2012,12-01886,1586.84,STEPPING STONES
Nottinghamshire County Council,1111/1001,Children and Young People,CYP,Third Party Payments,EGA,12/03/2012,12-01887,1586.84,STEPPING STONES
Nottinghamshire County Council,1111/1001,Children and Young People,CYP,Third Party Payments,EGA,12/03/2012,12-01888,1751.84,STEPPING STONES
Nottinghamshire County Council,1111/1001,Children and Young People,CYP,Third Party Payments,EGA,12/03/2012,12-01889,693,DISCOVERY CHILDCARE
Nottinghamshire County Council,1111/1001,Children and Young People,CYP,Third Party Payments,EGA,12/03/2012,12-01898,49357.5,CRUCKTON HALL SCHOOL
Nottinghamshire County Council,1111/1001,Children and Young People,CYP,Third Party Payments,EGA,12/03/2012,12-01899,5971.68,CRUCKTON HALL SCHOOL
Nottinghamshire County Council,1111/1001,Children and Young People,CYP,Third Party Payments,EGA,12/03/2012,12-01900,49537.5,CRUCKTON HALL SCHOOL
Nottinghamshire County Council,1111/1001,Children and Young People,CYP,Third Party Payments,EGA,12/03/2012,12-01981,49537.5,CRUCKTON HALL SCHOOL
Nottinghamshire County Council,1111/1001,Children and Young People,CYP,Third Party Payments,EGA,12/03/2012,12-07443,19233.25,S YORKS VICTIM OFFENDER MEDIATION S
Nottinghamshire County Council,1111/1001,Children and Young People,CYP,Third Party Payments,EGA,13/03/2012,12-01896,917.28,FOSTERING SOLUTIONS LTD
Nottinghamshire County Council,1111/1001,Children and Young People,CYP,Third Party Payments,EGA,13/03/2012,12-01897,687.96,FOSTERING SOLUTIONS LTD
Nottinghamshire County Council,1111/1001,Children and Young People,CYP,Third Party Payments,EGA,13/03/2012,12-02072,513.39,GOOD FOUNDATIONS DAY NURSERY
Nottinghamshire County Council,1111/1001,Children and Young People,CYP,Third Party Payments,EGA,13/03/2012,12-02073,539.02,SAFE HAVEN DAY NURSERY
Nottinghamshire County Council,1111/1001,Children and Young People,CYP,Third Party Payments,EGA,13/03/2012,12-07433,2696.06,FOSTERING SOLUTIONS LTD
Nottinghamshire County Council,1111/1001,Children and Young People,CYP,Third Party Payments,EGA,14/03/2012,12-00370,5797.62,LINCOLNSHIRE COUNTY COUNCIL
Nottinghamshire County Council,1111/1001,Children and Young People,CYP,Third Party Payments,EGA,14/03/2012,12-02074,3769.63,ABACUS PRE-SCHOOL
Nottinghamshire County Council,1111/1001,Children and Young People,CYP,Third Party Payments,EGA,14/03/2012,12-02075,4022.6,ALPHABET HOUSE DAY NURSERY
Nottinghamshire County Council,1111/1001,Children and Young People,CYP,Third Party Payments,EGA,14/03/2012,12-02076,1924.96,ALPHABET HOUSE DAY NURSERY WB
Nottinghamshire County Council,1111/1001,Children and Young People,CYP,Third Party Payments,EGA,14/03/2012,12-02077,6458.98,ALPHABET HOUSE NURSERY
Nottinghamshire County Council,1111/1001,Children and Young People,CYP,Third Party Payments,EGA,14/03/2012,12-02078,9969.39,APPLEGARTH DAY NURSERY
Nottinghamshire County Council,1111/1001,Children and Young People,CYP,Third Party Payments,EGA,14/03/2012,12-02080,1492.92,APPLETON DAY NURSERY
Nottinghamshire County Council,1111/1001,Children and Young People,CYP,Third Party Payments,EGA,14/03/2012,12-02084,2500.64,ASHFIELD PLAZA DAY NURSERY
Nottinghamshire County Council,1111/1001,Children and Young People,CYP,Third Party Payments,EGA,14/03/2012,12-02085,5606.75,ATTENBOROUGH CHURCH PRE-SCHOOL
Nottinghamshire County Council,1111/1001,Children and Young People,CYP,Third Party Payments,EGA,14/03/2012,12-02086,1716.86,ATTENBOROUGH DAY NURSERY & PRE-SCH
Nottinghamshire County Council,1111/1001,Children and Young People,CYP,Third Party Payments,EGA,14/03/2012,12-02087,2712.14,AWSWORTH SCHOOLHOUSE DAY NURSERY
Nottinghamshire County Council,1111/1001,Children and Young People,CYP,Third Party Payments,EGA,14/03/2012,12-02088,3301.02,BEACON HILL DAY NURSERY
Nottinghamshire County Council,1111/1001,Children and Young People,CYP,Third Party Payments,EGA,14/03/2012,12-02089,1461.82,BENNER & BOLTON CHILDMINDERS
Nottinghamshire County Council,1111/1001,Children and Young People,CYP,Third Party Payments,EGA,14/03/2012,12-02090,7054.05,BINGHAM DAY NURSERY & PRE SCHOOL
Nottinghamshire County Council,1111/1001,Children and Young People,CYP,Third Party Payments,EGA,14/03/2012,12-02091,7060.28,BIZZY KIDZ
Nottinghamshire County Council,1111/1001,Children and Young People,CYP,Third Party Payments,EGA,14/03/2012,12-02092,2638.62,BLYTH PRE-SCHOOL PLAYGROUP
Nottinghamshire County Council,1111/1001,Children and Young People,CYP,Third Party Payments,EGA,14/03/2012,12-02093,5126.96,BRIGHT SPARKS DAY NURSERY
Nottinghamshire County Council,1111/1001,Children and Young People,CYP,Third Party Payments,EGA,14/03/2012,12-02094,4292.15,BROOKLYN DAY NURSERY
Nottinghamshire County Council,1111/1001,Children and Young People,CYP,Third Party Payments,EGA,14/03/2012,12-02095,3296.86,BURNSIDE HALL PLAYGROUP
Nottinghamshire County Council,1111/1001,Children and Young People,CYP,Third Party Payments,EGA,14/03/2012,12-02096,4325.33,BURTON JOYCE WRAPAROUND CARE GROUP
Nottinghamshire County Council,1111/1001,Children and Young People,CYP,Third Party Payments,EGA,14/03/2012,12-02097,6329.08,BUSY BEES (DAYBROOK)
Nottinghamshire County Council,1111/1001,Children and Young People,CYP,Third Party Payments,EGA,14/03/2012,12-02098,3383.96,CROSSDALE BUSY BEES PRE-SCHOOL
Nottinghamshire County Council,1111/1001,Children and Young People,CYP,Third Party Payments,EGA,14/03/2012,12-02099,2264.26,BUSY BEES PLAYGROUP
Nottinghamshire County Council,1111/1001,Children and Young People,CYP,Third Party Payments,EGA,14/03/2012,12-02100,1083.71,BUSY BEES PRE-SCHOOL
Nottinghamshire County Council,1111/1001,Children and Young People,CYP,Third Party Payments,EGA,14/03/2012,12-02101,881.8,BUTTERFLIES NURSERY (WEST NOTTS COL
Nottinghamshire County Council,1111/1001,Children and Young People,CYP,Third Party Payments,EGA,14/03/2012,12-02102,1318.75,CARLTON HILL PLAYGROUP
Nottinghamshire County Council,1111/1001,Children and Young People,CYP,Third Party Payments,EGA,14/03/2012,12-02103,7062.35,CARNARVON PRE-SCHOOL
Nottinghamshire County Council,1111/1001,Children and Young People,CYP,Third Party Payments,EGA,14/03/2012,12-02104,6998.08,CHERUBS CHILDRENS CENTRE WYNNDALE
Nottinghamshire County Council,1111/1001,Children and Young People,CYP,Third Party Payments,EGA,14/03/2012,12-02105,2778.49,CHERUBS CHILDRENS CENTRE PLEASLEY
Nottinghamshire County Council,1111/1001,Children and Young People,CYP,Third Party Payments,EGA,14/03/2012,12-02106,7474.99,CHERUBS DAY NURSERY
Nottinghamshire County Council,1111/1001,Children and Young People,CYP,Third Party Payments,EGA,14/03/2012,12-02107,3240.31,CHETWYND BARRACKS PRE-SCHOOL
Nottinghamshire County Council,1111/1001,Children and Young People,CYP,Third Party Payments,EGA,14/03/2012,12-02108,2298.39,BREEDON HOUSE NURSERY
Nottinghamshire County Council,1111/1001,Children and Young People,CYP,Third Party Payments,EGA,14/03/2012,12-02109,9759.99,BREEDON HOUSE NURSRIES LTD
Nottinghamshire County Council,1111/1001,Children and Young People,CYP,Third Party Payments,EGA,14/03/2012,12-02110,1192.26,CHILDREN 1ST @ BREEDON HOUSE
Nottinghamshire County Council,1111/1001,Children and Young People,CYP,Third Party Payments,EGA,14/03/2012,12-02111,4769.05,CHILDREN'S HOUSE NURSERY SCHOOL
Nottinghamshire County Council,1111/1001,Children and Young People,CYP,Third Party Payments,EGA,14/03/2012,12-02112,6117.52,CHRISTCHURCH HALL PRE-SCHOOL PLAYGR
Nottinghamshire County Council,1111/1001,Children and Young People,CYP,Third Party Payments,EGA,14/03/2012,12-02113,1924.23,CLAREMONT EARLY YEARS LTD
Nottinghamshire County Council,1111/1001,Children and Young People,CYP,Third Party Payments,EGA,14/03/2012,12-02114,2015.44,CLAREMONT HOUSE NURSERY SCHOOL
Nottinghamshire County Council,1111/1001,Children and Young People,CYP,Third Party Payments,EGA,14/03/2012,12-02115,3657.65,COLLINGHAM & DISTRICT PRE-SCHOOL
Nottinghamshire County Council,1111/1001,Children and Young People,CYP,Third Party Payments,EGA,14/03/2012,12-02116,684.25,COLSTON BASSETT PREPARATORY SCHOOL
Nottinghamshire County Council,1111/1001,Children and Young People,CYP,Third Party Payments,EGA,14/03/2012,12-02117,2750.59,COLWICK PRE SCHOOL PLAYGROUP
Nottinghamshire County Council,1111/1001,Children and Young People,CYP,Third Party Payments,EGA,14/03/2012,12-02119,2537.96,COSTOCK PRE SCHOOL
Nottinghamshire County Council,1111/1001,Children and Young People,CYP,Third Party Payments,EGA,14/03/2012,12-02122,5298.73,COTESWOOD HOUSE SCHOOL
Nottinghamshire County Council,1111/1001,Children and Young People,CYP,Third Party Payments,EGA,14/03/2012,12-02123,1891.03,DAISIES DAY NURSERY
Nottinghamshire County Council,1111/1001,Children and Young People,CYP,Third Party Payments,EGA,14/03/2012,12-02124,2463.32,DAISIES DAY NURSERY
Nottinghamshire County Council,1111/1001,Children and Young People,CYP,Third Party Payments,EGA,14/03/2012,12-02126,4391.67,DISCOVERY DAY NURSERY
Nottinghamshire County Council,1111/1001,Children and Young People,CYP,Third Party Payments,EGA,14/03/2012,12-02127,1938.74,DUNCROFT DAY NURSERY
Nottinghamshire County Council,1111/1001,Children and Young People,CYP,Third Party Payments,EGA,14/03/2012,12-02128,2724.58,NORTH NOTTS COLLEGE - DUPLICATE
Nottinghamshire County Council,1111/1001,Children and Young People,CYP,Third Party Payments,EGA,14/03/2012,12-02129,11648.17,EAST LEAKE DAY NURSERY & PRE-SCHOOL
Nottinghamshire County Council,1111/1001,Children and Young People,CYP,Third Party Payments,EGA,14/03/2012,12-02130,3364.05,EAST LEAKE PRE-SCHOOL PLAYGROUP
Nottinghamshire County Council,1111/1001,Children and Young People,CYP,Third Party Payments,EGA,14/03/2012,12-02131,5573.57,EDWALTON DAY NURSERY
Nottinghamshire County Council,1111/1001,Children and Young People,CYP,Third Party Payments,EGA,14/03/2012,12-02132,721.16,EDWINSTOWE PRE-SCHOOL PLAYGROUP
Nottinghamshire County Council,1111/1001,Children and Young People,CYP,Third Party Payments,EGA,14/03/2012,12-02133,2637.49,ELSTON PRE-SCHOOL PLAYGROUP NEWARK
Nottinghamshire County Council,1111/1001,Children and Young People,CYP,Third Party Payments,EGA,14/03/2012,12-02135,3327.97,FARNDON ST PETERS EARLY YEARS
Nottinghamshire County Council,1111/1001,Children and Young People,CYP,Third Party Payments,EGA,14/03/2012,12-02137,7225.74,FARNSFIELD PRE-SCHOOL
Nottinghamshire County Council,1111/1001,Children and Young People,CYP,Third Party Payments,EGA,14/03/2012,12-02138,3694.14,FLEDGLINGS PLAYGROUP
Nottinghamshire County Council,1111/1001,Children and Young People,CYP,Third Party Payments,EGA,14/03/2012,12-02140,639.88,FOSSE PADDOCK KINDERGARTEN
Nottinghamshire County Council,1111/1001,Children and Young People,CYP,Third Party Payments,EGA,14/03/2012,12-02141,1393.39,FOXY CREEK PRE-SCHOOL PLAYGROUP
Nottinghamshire County Council,1111/1001,Children and Young People,CYP,Third Party Payments,EGA,14/03/2012,12-02142,1790.37,FRIARY PLAYSCHOOL
Nottinghamshire County Council,1111/1001,Children and Young People,CYP,Third Party Payments,EGA,14/03/2012,12-02143,6662.65,GOOD FOUNDATIONS DAY NURSERY
Nottinghamshire County Council,1111/1001,Children and Young People,CYP,Third Party Payments,EGA,14/03/2012,12-02144,4059.91,GRANBY HOUSE NURSERY
Nottinghamshire County Council,1111/1001,Children and Young People,CYP,Third Party Payments,EGA,14/03/2012,12-02146,1368.51,GROVE PRE-SCHOOL-DUPLICATE
Nottinghamshire County Council,1111/1001,Children and Young People,CYP,Third Party Payments,EGA,14/03/2012,12-02147,2674.83,HAYWOOD ROAD PRE-SCHOOL PLAYGROUP
Nottinghamshire County Council,1111/1001,Children and Young People,CYP,Third Party Payments,EGA,14/03/2012,12-02148,5366.59,HAZEL HURST SCHOOL
Nottinghamshire County Council,1111/1001,Children and Young People,CYP,Third Party Payments,EGA,14/03/2012,12-02149,5846.35,HICKORY HOUSE DAY NURSERY
Nottinghamshire County Council,1111/1001,Children and Young People,CYP,Third Party Payments,EGA,14/03/2012,12-02150,2965.12,HIGHFIELDS SCHOOL & NURSERY
Nottinghamshire County Council,1111/1001,Children and Young People,CYP,Third Party Payments,EGA,14/03/2012,12-02151,3879.52,HOMESTEAD DAY NURSERY
Nottinghamshire County Council,1111/1001,Children and Young People,CYP,Third Party Payments,EGA,14/03/2012,12-02152,3026.56,QUINTON DAY NURSERIES T/A HONEY BEE
Nottinghamshire County Council,1111/1001,Children and Young People,CYP,Third Party Payments,EGA,14/03/2012,12-02153,2239.38,HONEY POT DAY PRIVATE DAY NURSERY L
Nottinghamshire County Council,1111/1001,Children and Young People,CYP,Third Party Payments,EGA,14/03/2012,12-02154,3825.64,HORSENDALE PLAYGROUP
Nottinghamshire County Council,1111/1001,Children and Young People,CYP,Third Party Payments,EGA,14/03/2012,12-02155,2235.23,HUCKNALL DAY NURSERY
Nottinghamshire County Council,1111/1001,Children and Young People,CYP,Third Party Payments,EGA,14/03/2012,12-02156,5362.07,HUCKNALL PRE-SCHOOL PLAYGROUP
Nottinghamshire County Council,1111/1001,Children and Young People,CYP,Third Party Payments,EGA,14/03/2012,12-02157,3969.81,HUTHWAITE CHILDREN'S CENTRE
Nottinghamshire County Council,1111/1001,Children and Young People,CYP,Third Party Payments,EGA,14/03/2012,12-02158,746.46,INHAM PARK PRE SCHOOL PLAYGROUP
Nottinghamshire County Council,1111/1001,Children and Young People,CYP,Third Party Payments,EGA,14/03/2012,12-02159,746.46,KIDZGROVE
Nottinghamshire County Council,1111/1001,Children and Young People,CYP,Third Party Payments,EGA,14/03/2012,12-02160,7889.69,KILLISICK PRE-SCHOOL
Nottinghamshire County Council,1111/1001,Children and Young People,CYP,Third Party Payments,EGA,14/03/2012,12-02161,3976.98,KNEESALL PRE SCHOOL LEARNING ALLIAN
Nottinghamshire County Council,1111/1001,Children and Young People,CYP,Third Party Payments,EGA,14/03/2012,12-02165,3583.01,LAMBLEY DAY NURSERY LTD
Nottinghamshire County Council,1111/1001,Children and Young People,CYP,Third Party Payments,EGA,14/03/2012,12-02169,6958.67,LEARNING LADDER CHILDCARE LTD
Nottinghamshire County Council,1111/1001,Children and Young People,CYP,Third Party Payments,EGA,14/03/2012,12-02170,14965.77,LEEN MILLS PRE SCHOOL PLAYGROUP
Nottinghamshire County Council,1111/1001,Children and Young People,CYP,Third Party Payments,EGA,14/03/2012,12-02171,1697.5,ST MARY'S PRE-SCHOOL
Nottinghamshire County Council,1111/1001,Children and Young People,CYP,Third Party Payments,EGA,14/03/2012,12-02173,6738.88,LEOSCHILDRENS NURSERIES LTD
Nottinghamshire County Council,1111/1001,Children and Young People,CYP,Third Party Payments,EGA,14/03/2012,12-02174,4839.55,LEO'S CHILDRENS NURSERIES LTD
Nottinghamshire County Council,1111/1001,Children and Young People,CYP,Third Party Payments,EGA,14/03/2012,12-02175,2309.7,NORTH LEVERTON PRE-SCHOOL PLAYGROUP
Nottinghamshire County Council,1111/1001,Children and Young People,CYP,Third Party Payments,EGA,14/03/2012,12-02176,4979.25,LITTLE ACORNS SHIREOAKS
Nottinghamshire County Council,1111/1001,Children and Young People,CYP,Third Party Payments,EGA,14/03/2012,12-02177,7423.13,LITTLE ACORNS PRE SCHOOL
Nottinghamshire County Council,1111/1001,Children and Young People,CYP,Third Party Payments,EGA,14/03/2012,12-02178,5909.47,LITTLE BEARS DAY NURSERY
Nottinghamshire County Council,1111/1001,Children and Young People,CYP,Third Party Payments,EGA,14/03/2012,12-02179,3016.97,LITTLE FRIENDS DAY NURSERY
Nottinghamshire County Council,1111/1001,Children and Young People,CYP,Third Party Payments,EGA,14/03/2012,12-02180,6884.03,LITTLE NIPPERS PRE-SCHOOL
Nottinghamshire County Council,1111/1001,Children and Young People,CYP,Third Party Payments,EGA,14/03/2012,12-02181,9290.09,LITTLE OAKS NURSERY
Nottinghamshire County Council,1111/1001,Children and Young People,CYP,Third Party Payments,EGA,14/03/2012,12-02182,4310.67,ST JOHN'S COLLEGE NOTTINGHAM
Nottinghamshire County Council,1111/1001,Children and Young People,CYP,Third Party Payments,EGA,14/03/2012,12-02183,3771.88,LITTLE RASCALS PRE-SCHOOL
Nottinghamshire County Council,1111/1001,Children and Young People,CYP,Third Party Payments,EGA,14/03/2012,12-02184,6456.09,LONGDALE NURSERY SCHOOL
Nottinghamshire County Council,1111/1001,Children and Young People,CYP,Third Party Payments,EGA,14/03/2012,12-02186,5416.03,LOWATER STREET PLAYGROUP
Nottinghamshire County Council,1111/1001,Children and Young People,CYP,Third Party Payments,EGA,14/03/2012,12-02187,2674.81,MANSFIELD CHILDRENS COMMUNITY
Nottinghamshire County Council,1111/1001,Children and Young People,CYP,Third Party Payments,EGA,14/03/2012,12-02188,3221.44,MILLFIELD NURSERY SCHOOL
Nottinghamshire County Council,1111/1001,Children and Young People,CYP,Third Party Payments,EGA,14/03/2012,12-02189,2974.53,MISSON PRE-SCHOOL
Nottinghamshire County Council,1111/1001,Children and Young People,CYP,Third Party Payments,EGA,14/03/2012,12-02190,2777.74,SALTERFORD HOUSE SCHOOL
Nottinghamshire County Council,1111/1001,Children and Young People,CYP,Third Party Payments,EGA,14/03/2012,12-02193,3694.61,NOAHS ARK PLAYGROUP
Nottinghamshire County Council,1111/1001,Children and Young People,CYP,Third Party Payments,EGA,14/03/2012,12-02195,2872.65,NORTH MUSKHAM PLAYGROUP
Nottinghamshire County Council,1111/1001,Children and Young People,CYP,Third Party Payments,EGA,14/03/2012,12-02196,3607.89,NOTTINGHAM MONTESSORI SCHOOL
Nottinghamshire County Council,1111/1001,Children and Young People,CYP,Third Party Payments,EGA,14/03/2012,12-02197,5038.6,NURSERYWORLD & FRIENDS NURSERY & PR
Nottinghamshire County Council,1111/1001,Children and Young People,CYP,Third Party Payments,EGA,14/03/2012,12-02198,1115.55,OLD COOPERATIVE DAY NURSERY
Nottinghamshire County Council,1111/1001,Children and Young People,CYP,Third Party Payments,EGA,14/03/2012,12-02199,1936.65,OLD STATION NURSERY
Nottinghamshire County Council,1111/1001,Children and Young People,CYP,Third Party Payments,EGA,14/03/2012,12-02200,8571.85,THE ORCHARD DAY NURSERY
Nottinghamshire County Council,1111/1001,Children and Young People,CYP,Third Party Payments,EGA,14/03/2012,12-02201,2633.35,ORCHARD SCHOOL NURSERY
Nottinghamshire County Council,1111/1001,Children and Young People,CYP,Third Party Payments,EGA,14/03/2012,12-02202,1401.31,ORDSALL PRE-SCHOOL
Nottinghamshire County Council,1111/1001,Children and Young People,CYP,Third Party Payments,EGA,14/03/2012,12-02203,4269.35,PAPPLEWICK PRE-SCHOOL PLAYGROUP
Nottinghamshire County Council,1111/1001,Children and Young People,CYP,Third Party Payments,EGA,14/03/2012,12-02204,2262.96,PEA POD DAY NURSERY LTD
Nottinghamshire County Council,1111/1001,Children and Young People,CYP,Third Party Payments,EGA,14/03/2012,12-02208,5554.49,PIPPINS PRE-SCHOOL
Nottinghamshire County Council,1111/1001,Children and Young People,CYP,Third Party Payments,EGA,14/03/2012,12-02209,4081.55,PLUMTREE SCHOOL
Nottinghamshire County Council,1111/1001,Children and Young People,CYP,Third Party Payments,EGA,14/03/2012,12-02210,7883.46,PRE-SCHOOL 345
Nottinghamshire County Council,1111/1001,Children and Young People,CYP,Third Party Payments,EGA,14/03/2012,12-02211,7739.82,PUDDLEDUCKS PRE-SCHOOL
Nottinghamshire County Council,1111/1001,Children and Young People,CYP,Third Party Payments,EGA,14/03/2012,12-02212,1101.03,PUMP FARM DAY NURSERY
Nottinghamshire County Council,1111/1001,Children and Young People,CYP,Third Party Payments,EGA,14/03/2012,12-02213,3929.29,RADCLIFFE ON TRENT DAY NURSERY
Nottinghamshire County Council,1111/1001,Children and Young People,CYP,Third Party Payments,EGA,14/03/2012,12-02214,3110.3,RAILWAY CHILDREN PLAYGROUP
Nottinghamshire County Council,1111/1001,Children and Young People,CYP,Third Party Payments,EGA,14/03/2012,12-02215,3296.86,RAINBOW DAY NURSERY
Nottinghamshire County Council,1111/1001,Children and Young People,CYP,Third Party Payments,EGA,14/03/2012,12-02216,2179.06,RAINBOWS DAY NURSERY
Nottinghamshire County Council,1111/1001,Children and Young People,CYP,Third Party Payments,EGA,14/03/2012,12-02217,2861.43,WOODARD SCHS NOTTS LTD RANBY SCHOLA
Nottinghamshire County Council,1111/1001,Children and Young People,CYP,Third Party Payments,EGA,14/03/2012,12-02218,5083.87,RANSKILL NURSERY
Nottinghamshire County Council,1111/1001,Children and Young People,CYP,Third Party Payments,EGA,14/03/2012,12-02219,4027.31,RAVENSHEAD PRE-SCHOOL PLAYGROUP
Nottinghamshire County Council,1111/1001,Children and Young People,CYP,Third Party Payments,EGA,14/03/2012,12-02220,9918.87,THE ROCKING HORSE CHILD CAR CENTRES
Nottinghamshire County Council,1111/1001,Children and Young People,CYP,Third Party Payments,EGA,14/03/2012,12-02221,8024.45,RUDDINGTON NURSERY AND PRE-SCHOOL
Nottinghamshire County Council,1111/1001,Children and Young People,CYP,Third Party Payments,EGA,14/03/2012,12-02222,5325.58,RUSHCLIFFE PRE-SCHOOL CIC
Nottinghamshire County Council,1111/1001,Children and Young People,CYP,Third Party Payments,EGA,14/03/2012,12-02223,6158.29,SAFE HAVEN DAY NURSERY
Nottinghamshire County Council,1111/1001,Children and Young People,CYP,Third Party Payments,EGA,14/03/2012,12-02224,3506.1,SAVILLE HOUSE SCHOOL
Nottinghamshire County Council,1111/1001,Children and Young People,CYP,Third Party Payments,EGA,14/03/2012,12-02225,1876.54,SCOTTSWOOD PDN LTD
Nottinghamshire County Council,1111/1001,Children and Young People,CYP,Third Party Payments,EGA,14/03/2012,12-02226,1903.47,SCONCE HILLS PRE-SCHOOL PLAYGROUP
Nottinghamshire County Council,1111/1001,Children and Young People,CYP,Third Party Payments,EGA,14/03/2012,12-02227,3193.21,SCOTTS WOOD PRIVATE DAY NURSERY
Nottinghamshire County Council,1111/1001,Children and Young People,CYP,Third Party Payments,EGA,14/03/2012,12-02228,4333.61,SHAPING FUTURES OAKHAM DAY NURSERY
Nottinghamshire County Council,1111/1001,Children and Young People,CYP,Third Party Payments,EGA,14/03/2012,12-02229,927.42,SHAPING FUTURES LTD
Nottinghamshire County Council,1111/1001,Children and Young People,CYP,Third Party Payments,EGA,14/03/2012,12-02230,2604.14,SMARTIES PRIVATE DAY NURSERY
Nottinghamshire County Council,1111/1001,Children and Young People,CYP,Third Party Payments,EGA,14/03/2012,12-02231,1397.53,SOUTHWELL PRE-SCHOOL
Nottinghamshire County Council,1111/1001,Children and Young People,CYP,Third Party Payments,EGA,14/03/2012,12-02232,2485.72,SPECKLED FROGS PRE-SCHOOL
Nottinghamshire County Council,1111/1001,Children and Young People,CYP,Third Party Payments,EGA,14/03/2012,12-02233,2748.33,ST GILES PLAYGROUP
Nottinghamshire County Council,1111/1001,Children and Young People,CYP,Third Party Payments,EGA,14/03/2012,12-02234,4205.06,ST JOHNS PLAYGROUP
Nottinghamshire County Council,1111/1001,Children and Young People,CYP,Third Party Payments,EGA,14/03/2012,12-02235,970.4,STAPLEFORD DAY NURSERY
Nottinghamshire County Council,1111/1001,Children and Young People,CYP,Third Party Payments,EGA,14/03/2012,12-02236,933.07,STATION HOUSE DAY NURSERY LTD
Nottinghamshire County Council,1111/1001,Children and Young People,CYP,Third Party Payments,EGA,14/03/2012,12-02237,4993.9,STAUNTON NURSERY SCHOOL
Nottinghamshire County Council,1111/1001,Children and Young People,CYP,Third Party Payments,EGA,14/03/2012,12-02238,3144.18,STEPPING STONES 11
Nottinghamshire County Council,1111/1001,Children and Young People,CYP,Third Party Payments,EGA,14/03/2012,12-02239,736.09,SUNBEAMS PRE-SCHOOL
Nottinghamshire County Council,1111/1001,Children and Young People,CYP,Third Party Payments,EGA,14/03/2012,12-02240,2081.04,NOTTINGHAMSHIRE HELATHCARE NHS TRUS
Nottinghamshire County Council,1111/1001,Children and Young People,CYP,Third Party Payments,EGA,14/03/2012,12-02241,4997.16,SUTTON CENTRE UNDER 5'S PLAYGROUP
Nottinghamshire County Council,1111/1001,Children and Young People,CYP,Third Party Payments,EGA,14/03/2012,12-02245,3656.9,ARNOLD HOUSE DAY NURSERY
Nottinghamshire County Council,1111/1001,Children and Young People,CYP,Third Party Payments,EGA,14/03/2012,12-02246,2464.66,ARNOLD ST MARY'S PRE-SCHOOL
Nottinghamshire County Council,1111/1001,Children and Young People,CYP,Third Party Payments,EGA,14/03/2012,12-02247,2166.82,BUMBLE BEE CHILDREN'S DAY NURSERY
Nottinghamshire County Council,1111/1001,Children and Young People,CYP,Third Party Payments,EGA,14/03/2012,12-02248,4825.42,CARLTON & GEDLING DAY NURSERY-DUPLI
Nottinghamshire County Council,1111/1001,Children and Young People,CYP,Third Party Payments,EGA,14/03/2012,12-02250,4549.26,CHILDRENS CORNER DAY NURSERY
Nottinghamshire County Council,1111/1001,Children and Young People,CYP,Third Party Payments,EGA,14/03/2012,12-02251,5020.78,TINY TALKERS DAY NURSERY
Nottinghamshire County Council,1111/1001,Children and Young People,CYP,Third Party Payments,EGA,14/03/2012,12-02253,1552.89,HERMITAGE PRE-SCHOOL
Nottinghamshire County Council,1111/1001,Children and Young People,CYP,Third Party Payments,EGA,14/03/2012,12-02255,528.75,JUBILEE HOUSE CHRISTIAN SCHOOL
Nottinghamshire County Council,1111/1001,Children and Young People,CYP,Third Party Payments,EGA,14/03/2012,12-02256,3417.51,KIMBERLEY PRE-SCHOOL PLAYGROUP
Nottinghamshire County Council,1111/1001,Children and Young People,CYP,Third Party Payments,EGA,14/03/2012,12-02257,5286.48,LEAHURST ROAD PRE-SCHOOL
Nottinghamshire County Council,1111/1001,Children and Young People,CYP,Third Party Payments,EGA,14/03/2012,12-02258,2761.9,PREBEND PRE-SCHOOL PLAYGROUP
Nottinghamshire County Council,1111/1001,Children and Young People,CYP,Third Party Payments,EGA,14/03/2012,12-02260,1374.16,ROCKING HORSE NURSERY BUTLERS HILL
Nottinghamshire County Council,1111/1001,Children and Young People,CYP,Third Party Payments,EGA,14/03/2012,12-02264,1955.32,SOUTHFIELDS PRE-SCHOOL
Nottinghamshire County Council,1111/1001,Children and Young People,CYP,Third Party Payments,EGA,14/03/2012,12-02265,4769.06,SUTTON BONINGTON PLAYGROUP
Nottinghamshire County Council,1111/1001,Children and Young People,CYP,Third Party Payments,EGA,14/03/2012,12-02266,895.75,TINY TOTS PLAYGROUP
Nottinghamshire County Council,1111/1001,Children and Young People,CYP,Third Party Payments,EGA,14/03/2012,12-02267,7719.63,TOLLERTON PLAYGROUP
Nottinghamshire County Council,1111/1001,Children and Young People,CYP,Third Party Payments,EGA,14/03/2012,12-02268,949.67,TOTON TOTS PRE-SCHOOL
Nottinghamshire County Council,1111/1001,Children and Young People,CYP,Third Party Payments,EGA,14/03/2012,12-02271,7529.83,WILLOW PRE-SCHOOL PLAYGROUP
Nottinghamshire County Council,1111/1001,Children and Young People,CYP,Third Party Payments,EGA,14/03/2012,12-02273,1762.48,YOUNG RASCALS DAY NURSERY
Nottinghamshire County Council,1111/1001,Children and Young People,CYP,Third Party Payments,EGA,14/03/2012,12-02276,4465.19,SOUTH NOTTINGHAM COLLEGE NURSERY
Nottinghamshire County Council,1111/1001,Children and Young People,CYP,Third Party Payments,EGA,14/03/2012,12-02277,3618.27,HOLLIES  DAY NURSERIES LIMITED
Nottinghamshire County Council,1111/1001,Children and Young People,CYP,Third Party Payments,EGA,14/03/2012,12-02392,3781.79,PELHAM PRE-SCHOOL
Nottinghamshire County Council,1111/1001,Children and Young People,CYP,Third Party Payments,EGA,14/03/2012,12-02460,3628.63,THE GRANGE NURSERY LTD
Nottinghamshire County Council,1111/1001,Children and Young People,CYP,Third Party Payments,EGA,14/03/2012,12-02461,4704.96,THE LEARNING TREE NURSERY
Nottinghamshire County Council,1111/1001,Children and Young People,CYP,Third Party Payments,EGA,14/03/2012,12-02462,2425.99,THE LEARNING TREE DAY NURSERY 2
Nottinghamshire County Council,1111/1001,Children and Young People,CYP,Third Party Payments,EGA,14/03/2012,12-02463,3147.57,THE SECRET GARDEN PRIVATE DAY NURSE
Nottinghamshire County Council,1111/1001,Children and Young People,CYP,Third Party Payments,EGA,14/03/2012,12-02464,663.58,THRUMPTON KIDS CLUBS
Nottinghamshire County Council,1111/1001,Children and Young People,CYP,Third Party Payments,EGA,14/03/2012,12-02465,1368.51,TINY TEDDIES DAY NURSERY
Nottinghamshire County Council,1111/1001,Children and Young People,CYP,Third Party Payments,EGA,14/03/2012,12-02466,1144.57,TREETOPS NURSERY (CLIPSTONE)
Nottinghamshire County Council,1111/1001,Children and Young People,CYP,Third Party Payments,EGA,14/03/2012,12-02468,9985.98,TREETOPS NURSERY
Nottinghamshire County Council,1111/1001,Children and Young People,CYP,Third Party Payments,EGA,14/03/2012,12-02469,2293.3,TROWELL PRE SCHOOL
Nottinghamshire County Council,1111/1001,Children and Young People,CYP,Third Party Payments,EGA,14/03/2012,12-02470,1752.11,VALMARYS CHILDRENS CENTRE 2
Nottinghamshire County Council,1111/1001,Children and Young People,CYP,Third Party Payments,EGA,14/03/2012,12-02471,7837.83,VILLAGE DAY NURSERY
Nottinghamshire County Council,1111/1001,Children and Young People,CYP,Third Party Payments,EGA,14/03/2012,12-02472,3058.61,WATNALL PRE-SCHOOL PLAYGROUP
Nottinghamshire County Council,1111/1001,Children and Young People,CYP,Third Party Payments,EGA,14/03/2012,12-02473,8030.31,WEAVERTHORPE PRE-SCHOOL PLAYGROUP
Nottinghamshire County Council,1111/1001,Children and Young People,CYP,Third Party Payments,EGA,14/03/2012,12-02474,2073.5,WELLIN LANE PLAYGROUP
Nottinghamshire County Council,1111/1001,Children and Young People,CYP,Third Party Payments,EGA,14/03/2012,12-02475,2922.12,WELLOW HOUSE SCHOOL
Nottinghamshire County Council,1111/1001,Children and Young People,CYP,Third Party Payments,EGA,14/03/2012,12-02476,6158.29,WEST BRIDGFORD OUT OF SCHOOL CARE L
Nottinghamshire County Council,1111/1001,Children and Young People,CYP,Third Party Payments,EGA,14/03/2012,12-02477,933.07,WEST STREET PRE-SCHOOL
Nottinghamshire County Council,1111/1001,Children and Young People,CYP,Third Party Payments,EGA,14/03/2012,12-02478,2107.43,WESTBOURNE HOUSE NURSERY SCHOOL
Nottinghamshire County Council,1111/1001,Children and Young People,CYP,Third Party Payments,EGA,14/03/2012,12-02479,13317.98,WESTDALE PRE SCHOOL
Nottinghamshire County Council,1111/1001,Children and Young People,CYP,Third Party Payments,EGA,14/03/2012,12-02480,10139.41,WHITEHOUSE DAY NURSERY
Nottinghamshire County Council,1111/1001,Children and Young People,CYP,Third Party Payments,EGA,14/03/2012,12-02481,1264.84,WILLOUGHBY ON THE WOLDS PLAYGROUP
Nottinghamshire County Council,1111/1001,Children and Young People,CYP,Third Party Payments,EGA,14/03/2012,12-02482,3408.08,WILLOW BROOK PRE-SCHOOL
Nottinghamshire County Council,1111/1001,Children and Young People,CYP,Third Party Payments,EGA,14/03/2012,12-02483,3487.64,WINDMILL KINDERGARTEN PLAYGROUP
Nottinghamshire County Council,1111/1001,Children and Young People,CYP,Third Party Payments,EGA,14/03/2012,12-02484,2052.76,WINDMILLS PRE-SCHOOL PLAYGROUP
Nottinghamshire County Council,1111/1001,Children and Young People,CYP,Third Party Payments,EGA,14/03/2012,12-02485,8053.48,WISHING WELL DAY NURSERY
Nottinghamshire County Council,1111/1001,Children and Young People,CYP,Third Party Payments,EGA,14/03/2012,12-02486,2156.45,WOLLATON VILLAGE DAY NURSERIES LIMI
Nottinghamshire County Council,1111/1001,Children and Young People,CYP,Third Party Payments,EGA,14/03/2012,12-02487,5495.53,WOLLATON VILLAGE DAY NURSERIES LTD.
Nottinghamshire County Council,1111/1001,Children and Young People,CYP,Third Party Payments,EGA,14/03/2012,12-02488,6801.1,WOODBOROUGH VILLAGE PRE SCHOOL
Nottinghamshire County Council,1111/1001,Children and Young People,CYP,Third Party Payments,EGA,14/03/2012,12-02489,7464.68,WOODTHORPE DAY NURSERY LTD
Nottinghamshire County Council,1111/1001,Children and Young People,CYP,Third Party Payments,EGA,14/03/2012,12-02493,8746.02,FERNWOOD DAY NURSERY
Nottinghamshire County Council,1111/1001,Children and Young People,CYP,Third Party Payments,EGA,14/03/2012,12-07446,2897.1,FOSTERING PEOPLE LTD
Nottinghamshire County Council,1111/1001,Children and Young People,CYP,Third Party Payments,EGA,15/03/2012,12-01890,6136.99,HESLEY GROUP LTD
Nottinghamshire County Council,1111/1001,Children and Young People,CYP,Third Party Payments,EGA,15/03/2012,12-02697,2459.82,HILLCREST NURSING HOME
Nottinghamshire County Council,1111/1001,Children and Young People,CYP,Third Party Payments,EGA,15/03/2012,12-02700,5816.38,JANI HOMES
Nottinghamshire County Council,1111/1001,Children and Young People,CYP,Third Party Payments,EGA,15/03/2012,12-02701,20000,HESLEY GROUP LTD
Nottinghamshire County Council,1111/1001,Children and Young People,CYP,Third Party Payments,EGA,15/03/2012,12-02702,6136.99,HESLEY GROUP LTD
Nottinghamshire County Council,1111/1001,Children and Young People,CYP,Third Party Payments,EGA,15/03/2012,12-02703,14553.43,HESLEY GROUP LTD
Nottinghamshire County Council,1111/1001,Children and Young People,CYP,Third Party Payments,EGA,15/03/2012,12-02704,20000,HESLEY GROUP LTD
Nottinghamshire County Council,1111/1001,Children and Young People,CYP,Third Party Payments,EGA,15/03/2012,12-02705,60000,HESLEY GROUP LTD
Nottinghamshire County Council,1111/1001,Children and Young People,CYP,Third Party Payments,EGA,15/03/2012,12-02707,17207,WINGS EDUCATION LTD
Nottinghamshire County Council,1111/1001,Children and Young People,CYP,Third Party Payments,EGA,15/03/2012,12-02708,11647,WINGS EDUCATION LTD
Nottinghamshire County Council,1111/1001,Children and Young People,CYP,Third Party Payments,EGA,15/03/2012,12-02709,2162.86,STEPPING STONES
Nottinghamshire County Council,1111/1001,Children and Young People,CYP,Third Party Payments,EGA,15/03/2012,12-02711,18410.96,HESLEY GROUP LTD
Nottinghamshire County Council,1111/1001,Children and Young People,CYP,Third Party Payments,EGA,15/03/2012,12-02712,14553.43,HESLEY GROUP LTD
Nottinghamshire County Council,1111/1001,Children and Young People,CYP,Third Party Payments,EGA,15/03/2012,12-02713,2488.25,NEWARK EMMAUS TRUST
Nottinghamshire County Council,1111/1001,Children and Young People,CYP,Third Party Payments,EGA,15/03/2012,12-02716,949,CORE CHILDRENS SERVICES
Nottinghamshire County Council,1111/1001,Children and Young People,CYP,Third Party Payments,EGA,16/03/2012,12-00011,15500,HALLIWELL HOMES
Nottinghamshire County Council,1111/1001,Children and Young People,CYP,Third Party Payments,EGA,16/03/2012,12-00013,15500,HALLIWELL HOMES
Nottinghamshire County Council,1111/1001,Children and Young People,CYP,Third Party Payments,EGA,16/03/2012,12-00368,3746.57,PROGRESSIVE CARE
Nottinghamshire County Council,1111/1001,Children and Young People,CYP,Third Party Payments,EGA,16/03/2012,12-02043,32567,NOTTINGHAMSHIRE HEALTHCARE NHS TRUS
Nottinghamshire County Council,1111/1001,Children and Young People,CYP,Third Party Payments,EGA,16/03/2012,12-02715,32567,NOTTINGHAMSHIRE HEALTHCARE NHS TRUS
Nottinghamshire County Council,1111/1001,Children and Young People,CYP,Third Party Payments,EGA,16/03/2012,12-02717,675.22,FOSTERING SOLUTIONS LTD
Nottinghamshire County Council,1111/1001,Children and Young People,CYP,Third Party Payments,EGA,16/03/2012,12-02733,3877.46,CHERUBS CHILD CARE CENTRE
Nottinghamshire County Council,1111/1001,Children and Young People,CYP,Third Party Payments,EGA,16/03/2012,12-02758,3498.57,HILLCREST NURSING HOME
Nottinghamshire County Council,1111/1001,Children and Young People,CYP,Third Party Payments,EGA,16/03/2012,12-02759,1042.15,NEWARK EMMAUS TRUST
Nottinghamshire County Council,1111/1001,Children and Young People,CYP,Third Party Payments,EGA,16/03/2012,12-02780,5385.71,HOPE FOSTERING SERVICES LTD
Nottinghamshire County Council,1111/1001,Children and Young People,CYP,Third Party Payments,EGA,16/03/2012,12-02782,2092.06,KEYS 16PLUS INDEPENDENT LIVING SERV
Nottinghamshire County Council,1111/1001,Children and Young People,CYP,Third Party Payments,EGA,16/03/2012,12-02783,1728.52,LLOYDS TSB COMMERCIAL FINANCE
Nottinghamshire County Council,1111/1001,Children and Young People,CYP,Third Party Payments,EGA,16/03/2012,12-02784,845.25,QUAYSIDE CARE LTD
Nottinghamshire County Council,1111/1001,Children and Young People,CYP,Third Party Payments,EGA,16/03/2012,12-02786,15300,COUNTRY CARE
Nottinghamshire County Council,1111/1001,Children and Young People,CYP,Third Party Payments,EGA,16/03/2012,12-02787,2697.3,FOSTERING PEOPLE LTD
Nottinghamshire County Council,1111/1001,Children and Young People,CYP,Third Party Payments,EGA,16/03/2012,12-02865,5712.51,BIRCOTES PRE-SCHOOL
Nottinghamshire County Council,1111/1001,Children and Young People,CYP,Third Party Payments,EGA,16/03/2012,12-02867,6666.3,BRAMCOTE PRE-SCHOOL PLAYGROUP
Nottinghamshire County Council,1111/1001,Children and Young People,CYP,Third Party Payments,EGA,16/03/2012,12-02869,1741.74,BROOKHILL HOUSE DAY NURSERY
Nottinghamshire County Council,1111/1001,Children and Young People,CYP,Third Party Payments,EGA,16/03/2012,12-02870,7499.72,BUTTERCROSS PRE SCHOOL
Nottinghamshire County Council,1111/1001,Children and Young People,CYP,Third Party Payments,EGA,16/03/2012,12-02871,534.96,CAROUSEL UNDER 5'S PLAYGROUP
Nottinghamshire County Council,1111/1001,Children and Young People,CYP,Third Party Payments,EGA,16/03/2012,12-02872,984.93,CHERUBS DAY NURSERY (MANSFIELD WH)
Nottinghamshire County Council,1111/1001,Children and Young People,CYP,Third Party Payments,EGA,16/03/2012,12-02874,1648.58,EARLY YEARS PLAYGROUP
Nottinghamshire County Council,1111/1001,Children and Young People,CYP,Third Party Payments,EGA,16/03/2012,12-02876,5548.69,GOOD SHEPHERD PRE-SCHOOL
Nottinghamshire County Council,1111/1001,Children and Young People,CYP,Third Party Payments,EGA,16/03/2012,12-02877,6326.08,LITTLE MILLERS DAY NURSERY
Nottinghamshire County Council,1111/1001,Children and Young People,CYP,Third Party Payments,EGA,16/03/2012,12-02878,1492.92,MATTERSEY PLAYGROUP
Nottinghamshire County Council,1111/1001,Children and Young People,CYP,Third Party Payments,EGA,16/03/2012,12-02880,6002.78,OCEANS DAY NURSERY
Nottinghamshire County Council,1111/1001,Children and Young People,CYP,Third Party Payments,EGA,16/03/2012,12-02881,2218.65,RAINBOW DAY NURSERY
Nottinghamshire County Council,1111/1001,Children and Young People,CYP,Third Party Payments,EGA,16/03/2012,12-02886,2799.22,SERENDIPITYS DAY NURSERY & PRE SCHO
Nottinghamshire County Council,1111/1001,Children and Young People,CYP,Third Party Payments,EGA,16/03/2012,12-02887,2923.63,SERENDIPITYS DAY NURSERY COTGRAVE
Nottinghamshire County Council,1111/1001,Children and Young People,CYP,Third Party Payments,EGA,16/03/2012,12-02888,3290.08,SERENDIPITYS DAY NURSERY & PRE-SCHO
Nottinghamshire County Council,1111/1001,Children and Young People,CYP,Third Party Payments,EGA,16/03/2012,12-02889,7366.31,SERENDIPITY'S DAY NURSERY & PRE-SCH
Nottinghamshire County Council,1111/1001,Children and Young People,CYP,Third Party Payments,EGA,16/03/2012,12-02890,1886.88,ST MARY'S PRE-SCHOOL
Nottinghamshire County Council,1111/1001,Children and Young People,CYP,Third Party Payments,EGA,16/03/2012,12-02892,4953.78,TINY WORLD MANSFIELD
Nottinghamshire County Council,1111/1001,Children and Young People,CYP,Third Party Payments,EGA,16/03/2012,12-02893,8831.61,TREETOPS NURSERY
Nottinghamshire County Council,1111/1001,Children and Young People,CYP,Third Party Payments,EGA,16/03/2012,12-02956,2893.91,KEYS 16PLUS INDEPENDENT LIVING SERV
Nottinghamshire County Council,1111/1001,Children and Young People,CYP,Third Party Payments,EGA,16/03/2012,12-02960,13149.42,PATHWAY CARE SOLUTIONS LTD
Nottinghamshire County Council,1111/1001,Children and Young People,CYP,Third Party Payments,EGA,16/03/2012,12-02961,5383.5,COMPASS SERVICES FOR CHILDREN LTD
Nottinghamshire County Council,1111/1001,Children and Young People,CYP,Third Party Payments,EGA,16/03/2012,12-02962,6346.14,PROGRESSIVE CARE DERBYSHIRE
Nottinghamshire County Council,1111/1001,Children and Young People,CYP,Third Party Payments,EGA,16/03/2012,12-02964,2852.44,KEYS 16PLUS INDEPENDENT LIVING SERV
Nottinghamshire County Council,1111/1001,Children and Young People,CYP,Third Party Payments,EGA,16/03/2012,12-02965,833.72,NEWARK EMMAUS TRUST
Nottinghamshire County Council,1111/1001,Children and Young People,CYP,Third Party Payments,EGA,16/03/2012,12-02966,2539.53,KEYS 16PLUS INDEPENDENT LIVING SERV
Nottinghamshire County Council,1111/1001,Children and Young People,CYP,Third Party Payments,EGA,16/03/2012,12-02973,5441.14,PATHWAY CARE SOLUTIONS LTD
Nottinghamshire County Council,1111/1001,Children and Young People,CYP,Third Party Payments,EGA,16/03/2012,12-02974,17000,BLUE MOUNTAIN HOMES LTD
Nottinghamshire County Council,1111/1001,Children and Young People,CYP,Third Party Payments,EGA,16/03/2012,12-02977,36883,WINGS EDUCATION LTD
Nottinghamshire County Council,1111/1001,Children and Young People,CYP,Third Party Payments,EGA,16/03/2012,12-02979,2092.06,KEYS 16PLUS INDEPENDENT LIVING SERV
Nottinghamshire County Council,1111/1001,Children and Young People,CYP,Third Party Payments,EGA,16/03/2012,12-03002,4105.53,ALPHABET HOUSE DAY NURSERY WORKSOP
Nottinghamshire County Council,1111/1001,Children and Young People,CYP,Third Party Payments,EGA,16/03/2012,12-03003,14840.05,BALDERTON PRE-SCHOOL
Nottinghamshire County Council,1111/1001,Children and Young People,CYP,Third Party Payments,EGA,16/03/2012,12-03004,2101.78,CHERUBS RYTON PARK
Nottinghamshire County Council,1111/1001,Children and Young People,CYP,Third Party Payments,EGA,16/03/2012,12-03005,4039.19,CRANMER PRE-SCHOOL
Nottinghamshire County Council,1111/1001,Children and Young People,CYP,Third Party Payments,EGA,16/03/2012,12-03006,3626.55,DAGFA HOUSE SCHOOL
Nottinghamshire County Council,1111/1001,Children and Young People,CYP,Third Party Payments,EGA,16/03/2012,12-03007,2426.02,EAST BRIDGFORD PRE-SCHOOL
Nottinghamshire County Council,1111/1001,Children and Young People,CYP,Third Party Payments,EGA,16/03/2012,12-03008,622.07,HICKLING PRE-SCHOOL
Nottinghamshire County Council,1111/1001,Children and Young People,CYP,Third Party Payments,EGA,16/03/2012,12-03009,2985.84,JUST LEARNING LTD
Nottinghamshire County Council,1111/1001,Children and Young People,CYP,Third Party Payments,EGA,16/03/2012,12-03010,2098.38,RADCLIFFE ON TRENT PRE-SCHOOL PLAYG
Nottinghamshire County Council,1111/1001,Children and Young People,CYP,Third Party Payments,EGA,16/03/2012,12-03011,4366.79,WALESBY SCHOOL PLAYGROUP
Nottinghamshire County Council,1111/1001,Children and Young People,CYP,Third Party Payments,EGA,16/03/2012,12-03012,622.05,THE ROCKING HORSE CHILD CAR CENTRES
Nottinghamshire County Council,1111/1001,Children and Young People,CYP,Third Party Payments,EGA,19/03/2012,12-02172,1493.8,ALL ABOARD DAY NURSERY
Nottinghamshire County Council,1111/1001,Children and Young People,CYP,Third Party Payments,EGA,19/03/2012,12-03013,5440.11,ALL ABOARD DAY NURSERY
Nottinghamshire County Council,1111/1001,Children and Young People,CYP,Third Party Payments,EGA,19/03/2012,12-03014,8720.01,ALLSORTS PLAYGROUP
Nottinghamshire County Council,1111/1001,Children and Young People,CYP,Third Party Payments,EGA,19/03/2012,12-03016,1996.8,LADY BAY PRE SCHOOL PLAYGROUP
Nottinghamshire County Council,1111/1001,Children and Young People,CYP,Third Party Payments,EGA,19/03/2012,12-03025,4375.08,PRE SCHOOL LEARNING ALLIANCE
Nottinghamshire County Council,1111/1001,Children and Young People,CYP,Third Party Payments,EGA,19/03/2012,12-03027,3670.12,ALPHABET HOUSE DAY NURSERY
Nottinghamshire County Council,1111/1001,Children and Young People,CYP,Third Party Payments,EGA,19/03/2012,12-03063,4171.89,BALDERTON VILLAGE DAY NURSERY
Nottinghamshire County Council,1111/1001,Children and Young People,CYP,Third Party Payments,EGA,19/03/2012,12-07432,2696.06,FOSTERING SOLUTIONS LTD
Nottinghamshire County Council,1111/1001,Children and Young People,CYP,Third Party Payments,EGA,20/03/2012,12-07501,3270.5,FOSTER CARE ASSOCIATES LTD
Nottinghamshire County Council,1111/1001,Children and Young People,CYP,Third Party Payments,EGA,21/03/2012,12-01731,13675.04,PATHWAY CARE SOLUTIONS II LTD
Nottinghamshire County Council,1111/1001,Children and Young People,CYP,Third Party Payments,EGA,21/03/2012,12-02507,1830,HAYWOOD RD PRE-SCHOOL PLAYGROUP
Nottinghamshire County Council,1111/1001,Children and Young People,CYP,Third Party Payments,EGA,21/03/2012,12-02542,190933.57,NORTH NOTTS COLLEGE
Nottinghamshire County Council,1111/1001,Children and Young People,CYP,Third Party Payments,EGA,21/03/2012,12-02543,153054.35,NORTH NOTTS COLLEGE
Nottinghamshire County Council,1111/1001,Children and Young People,CYP,Third Party Payments,EGA,21/03/2012,12-03307,728,LITTLE OAKS LTD
Nottinghamshire County Council,1111/1001,Children and Young People,CYP,Third Party Payments,EGA,21/03/2012,12-03448,3186.49,THE NATIONAL FOSTERING AGENCY
Nottinghamshire County Council,1111/1001,Children and Young People,CYP,Third Party Payments,EGA,21/03/2012,12-03449,1875.64,KEYS 16PLUS INDEPENDENT LIVING SERV
Nottinghamshire County Council,1111/1001,Children and Young People,CYP,Third Party Payments,EGA,21/03/2012,12-03450,3417.65,CAPSTONE FOSTER CARE LTD
Nottinghamshire County Council,1111/1001,Children and Young People,CYP,Third Party Payments,EGA,21/03/2012,12-03451,785.5,G4S POLICING SOLUTIONS LTD
Nottinghamshire County Council,1111/1001,Children and Young People,CYP,Third Party Payments,EGA,21/03/2012,12-03452,48907.5,CRUCKTON HALL SCHOOL
Nottinghamshire County Council,1111/1001,Children and Young People,CYP,Third Party Payments,EGA,21/03/2012,12-03454,15131.39,PATHWAY CARE SOLUTIONS II LTD
Nottinghamshire County Council,1111/1001,Children and Young People,CYP,Third Party Payments,EGA,21/03/2012,12-03455,9480.75,PATHWAY CARE SOLUTIONS II LTD
Nottinghamshire County Council,1111/1001,Children and Young People,CYP,Third Party Payments,EGA,21/03/2012,12-03456,6242.78,TREEHOUSE CARE FOSTERING SOLUTIONS
Nottinghamshire County Council,1111/1001,Children and Young People,CYP,Third Party Payments,EGA,21/03/2012,12-03457,5840.02,TREEHOUSE CARE FOSTERING SOLUTIONS
Nottinghamshire County Council,1111/1001,Children and Young People,CYP,Third Party Payments,EGA,21/03/2012,12-03459,2657.14,PATHWAY CARE SOLUTIONS LTD
Nottinghamshire County Council,1111/1001,Children and Young People,CYP,Third Party Payments,EGA,21/03/2012,12-07510,3267,HOPE HOUSE SCHOOL LTD
Nottinghamshire County Council,1111/1001,Children and Young People,CYP,Third Party Payments,EGA,21/03/2012,12-07512,2875.93,JAY FOSTERING
Nottinghamshire County Council,1111/1001,Children and Young People,CYP,Third Party Payments,EGA,21/03/2012,12-07513,4118.66,BY THE BRIDGE
Nottinghamshire County Council,1111/1001,Children and Young People,CYP,Third Party Payments,EGA,21/03/2012,12-07518,4118.57,BY THE BRIDGE
Nottinghamshire County Council,1111/1001,Children and Young People,CYP,Third Party Payments,EGA,21/03/2012,12-07521,3177.82,THE NATIONAL FOSTERING AGENCY
Nottinghamshire County Council,1111/1001,Children and Young People,CYP,Third Party Payments,EGA,21/03/2012,12-07522,3777.35,TEAM FOSTERING
Nottinghamshire County Council,1111/1001,Children and Young People,CYP,Third Party Payments,EGA,21/03/2012,12-07524,1426.85,MENCAP ACCOUNTS REGION 2
Nottinghamshire County Council,1111/1001,Children and Young People,CYP,Third Party Payments,EGA,22/03/2012,12-01579,26334.31,BARNBY ROAD ACADEMY PRIM & NURSERY
Nottinghamshire County Council,1111/1001,Children and Young People,CYP,Third Party Payments,EGA,22/03/2012,12-01673,15800.07,NORBRIDGE ACADEMY TRUST
Nottinghamshire County Council,1111/1001,Children and Young People,CYP,Third Party Payments,EGA,22/03/2012,12-01674,21161.01,SERLBY PARK ACADEMY
Nottinghamshire County Council,1111/1001,Children and Young People,CYP,Third Party Payments,EGA,22/03/2012,12-03437,7954.7,PRE SCHOOL LEARNING ALLIANCE
Nottinghamshire County Council,1111/1001,Children and Young People,CYP,Third Party Payments,EGA,22/03/2012,12-03461,9450,CASTLE HOMES CARE LTD
Nottinghamshire County Council,1111/1001,Children and Young People,CYP,Third Party Payments,EGA,22/03/2012,12-03462,3253.8,ANGLIA FOSTERING AGENCY
Nottinghamshire County Council,1111/1001,Children and Young People,CYP,Third Party Payments,EGA,22/03/2012,12-03463,14056.28,PATHWAY CARE SOLUTIONS LTD
Nottinghamshire County Council,1111/1001,Children and Young People,CYP,Third Party Payments,EGA,22/03/2012,12-03471,1067,SMARTIES PRIVATE DAY NURSERY
Nottinghamshire County Council,1111/1001,Children and Young People,CYP,Third Party Payments,EGA,22/03/2012,12-03472,1988.5,SMARTIES PRIVATE DAY NURSERY
Nottinghamshire County Council,1111/1001,Children and Young People,CYP,Third Party Payments,EGA,23/03/2012,12-03015,2065.21,GOTHAM PRE-SCHOOL PLAYGROUP
Nottinghamshire County Council,1111/1001,Children and Young People,CYP,Third Party Payments,EGA,26/03/2012,12-02168,3089.52,LANGAR CHIDCARE SERVICES
Nottinghamshire County Council,1111/1001,Children and Young People,CYP,Third Party Payments,EGA,26/03/2012,12-03874,5204.05,COMPASS SERVICES FOR CHILDREN LTD
Nottinghamshire County Council,1111/1001,Children and Young People,CYP,Third Party Payments,EGA,26/03/2012,12-03875,11793.25,PATHWAY CARE SOLUTIONS II LTD
Nottinghamshire County Council,1111/1001,Children and Young People,CYP,Third Party Payments,EGA,26/03/2012,12-03876,10819.28,PATHWAY CARE SOLUTIONS II LTD
Nottinghamshire County Council,1111/1001,Children and Young People,CYP,Third Party Payments,EGA,26/03/2012,12-03877,971.43,BLUE MOUNTAIN HOMES LTD
Nottinghamshire County Council,1111/1001,Children and Young People,CYP,Third Party Payments,EGA,27/03/2012,12-02145,5530.03,GREASLEY BEAUVALE CHICDCARE CENTRE
Nottinghamshire County Council,1111/1001,Children and Young People,CYP,Third Party Payments,EGA,27/03/2012,12-02191,985.05,NEW WOODS CHILDCARE CENTRE
Nottinghamshire County Council,1111/1001,Children and Young People,CYP,Third Party Payments,EGA,27/03/2012,12-02698,1864.12,FOSTER CARE ASSOCIATES LTD
Nottinghamshire County Council,1111/1001,Children and Young People,CYP,Third Party Payments,EGA,27/03/2012,12-02699,1864.12,FOSTER CARE ASSOCIATES LTD
Nottinghamshire County Council,1111/1001,Children and Young People,CYP,Third Party Payments,EGA,27/03/2012,12-02969,2579.25,FOSTER CARE ASSOCIATES LTD
Nottinghamshire County Council,1111/1001,Children and Young People,CYP,Third Party Payments,EGA,27/03/2012,12-02971,2579.25,FOSTER CARE ASSOCIATES LTD
Nottinghamshire County Council,1111/1001,Children and Young People,CYP,Third Party Payments,EGA,27/03/2012,12-03460,1145.5,FOSTER CARE ASSOCIATES LTD
Nottinghamshire County Council,1111/1001,Children and Young People,CYP,Third Party Payments,EGA,27/03/2012,12-06750,610,DAISIES DAY NURSERY
Nottinghamshire County Council,1111/1001,Children and Young People,CYP,Third Party Payments,EGA,27/03/2012,12-06771,622.05,BUSY BEES PLAYGROUP
Nottinghamshire County Council,1111/1001,Children and Young People,CYP,Third Party Payments,EGA,28/03/2012,12-02718,1180.06,STEPPING STONES
Nottinghamshire County Council,1111/1001,Children and Young People,CYP,Third Party Payments,EGA,28/03/2012,12-02719,1586.84,STEPPING STONES
Nottinghamshire County Council,1111/1001,Children and Young People,CYP,Third Party Payments,EGA,28/03/2012,12-02720,1751.84,STEPPING STONES
Nottinghamshire County Council,1111/1001,Children and Young People,CYP,Third Party Payments,EGA,28/03/2012,12-02721,1751.84,STEPPING STONES
Nottinghamshire County Council,1111/1001,Children and Young People,CYP,Third Party Payments,EGA,28/03/2012,12-06969,379557.6,NOTTINGHAMSHIRE HEALTHCARE NHS TRUS
Nottinghamshire County Council,1111/1001,Children and Young People,CYP,Third Party Payments,EGA,28/03/2012,12-06980,5305.21,CHURCH HOUSE DAY NURSERY
Nottinghamshire County Council,1111/1001,Children and Young People,CYP,Third Party Payments,EGA,28/03/2012,12-06981,5257.74,PRE SCHOOL LEARNING ALLIANCE
Nottinghamshire County Council,1111/1001,Children and Young People,CYP,Third Party Payments,EGA,29/03/2012,12-02710,3900,TURNAROUND
Nottinghamshire County Council,1111/1001,Children and Young People,CYP,Third Party Payments,EGA,29/03/2012,12-06876,870,OCEANS DAY NURSERY
Nottinghamshire County Council,1111/1001,Children and Young People,CYP,Third Party Payments,EGA,29/03/2012,12-07012,3270.5,FOSTERING PEOPLE LTD
Nottinghamshire County Council,1111/1001,Children and Young People,CYP,Third Party Payments,EGA,29/03/2012,12-07013,3270.5,FOSTERING PEOPLE LTD
Nottinghamshire County Council,1111/1001,Children and Young People,CYP,Third Party Payments,EGA,29/03/2012,12-07015,2709.59,NEWARK EMMAUS TRUST
Nottinghamshire County Council,1111/1001,Children and Young People,CYP,Third Party Payments,EGA,29/03/2012,12-07018,1248,FOSTER CARE ASSOCIATES LTD
Nottinghamshire County Council,1111/1001,Children and Young People,CYP,Third Party Payments,EGA,29/03/2012,12-07020,1546.15,NEWARK EMMAUS TRUST
Nottinghamshire County Council,1111/1001,Children and Young People,CYP,Third Party Payments,EGA,29/03/2012,12-07026,2714.67,KEYS 16PLUS INDEPENDENT LIVING SERV
Nottinghamshire County Council,1111/1001,Children and Young People,CYP,Third Party Payments,EGA,29/03/2012,12-07048,1367.7,WESTBOURNE HOUSE NURSERY SCHOOL
Nottinghamshire County Council,1111/1001,Children and Young People,CYP,Third Party Payments,EGA,29/03/2012,12-07049,3096.9,FOSTERING PEOPLE LTD
Nottinghamshire County Council,1111/1001,Children and Young People,CYP,Third Party Payments,EGA,29/03/2012,12-07217,546,CHILDRENS HOUSE LTD
Nottinghamshire County Council,1111/1001,Children and Young People,CYP,Third Party Payments,EGA,30/03/2012,12-00509,518.95,DISCOVERY CHILDCARE
Nottinghamshire County Council,1111/1001,Children and Young People,CYP,Third Party Payments,EGA,30/03/2012,12-02706,15500,HALLIWELL HOMES
Nottinghamshire County Council,1111/1001,Children and Young People,CYP,Third Party Payments,EGA,30/03/2012,12-02958,14171.43,TURNAROUND
Nottinghamshire County Council,1111/1001,Children and Young People,CYP,Third Party Payments,EGA,30/03/2012,12-02963,3553.08,BARNARDO SERVICES LTD
Nottinghamshire County Council,1111/1001,Children and Young People,CYP,Third Party Payments,EGA,30/03/2012,12-02970,3243.94,BARNARDOS
Nottinghamshire County Council,1111/1001,Children and Young People,CYP,Third Party Payments,EGA,30/03/2012,12-02976,10357.06,BROADWOOD EDUCATIONAL SERVICES LTD
Nottinghamshire County Council,1111/1001,Children and Young People,CYP,Third Party Payments,EGA,30/03/2012,12-03453,12904.86,PROGRESSIVE CARE
Nottinghamshire County Council,1111/1001,Children and Young People,CYP,Third Party Payments,EGA,30/03/2012,12-03458,11071.34,BROADWOOD EDUCATIONAL SERVICES LTD
Nottinghamshire County Council,1111/1001,Children and Young People,CYP,Third Party Payments,EGA,30/03/2012,12-03873,15821.43,TURNAROUND
Nottinghamshire County Council,1111/1001,Children and Young People,CYP,Third Party Payments,EGA,30/03/2012,12-03878,2574,BROADWOOD EDUCATIONAL SERVICES LTD
Nottinghamshire County Council,1111/1001,Children and Young People,CYP,Third Party Payments,EGA,30/03/2012,12-07011,12975.71,PROGRESSIVE CARE
Nottinghamshire County Council,1111/1001,Children and Young People,CYP,Third Party Payments,EGA,30/03/2012,12-07019,6121.32,JAY FOSTERING
Nottinghamshire County Council,1111/1001,Children and Young People,CYP,Third Party Payments,EGA,30/03/2012,12-07220,546,DUNCROFT DAY NURSERY
Nottinghamshire County Council,1111/1001,Children and Young People,CYP,Third Party Payments,EGA,30/03/2012,12-07292,699.3,FOSTERING PEOPLE LTD
Nottinghamshire County Council,1111/1001,Children and Young People,CYP,Third Party Payments,EGA,30/03/2012,12-07293,738.5,FOSTERING PEOPLE LTD
Nottinghamshire County Council,1111/1001,Children and Young People,CYP,Third Party Payments,EGA,30/03/2012,12-07341,3423,FOSTER CARE ASSOCIATES LTD
Nottinghamshire County Council,1111/1001,Children and Young People,CYP,Third Party Payments,EGA,30/03/2012,12-07342,1725.44,STEPPING STONES
Nottinghamshire County Council,1111/1001,Children and Young People,CYP,Third Party Payments,EGA,30/03/2012,12-07343,16371.43,TURNAROUND
Nottinghamshire County Council,1111/1001,Children and Young People,CYP,Third Party Payments,EGA,30/03/2012,12-07345,897,QUAYSIDE CARE LTD
Nottinghamshire County Council,1111/1001,Children and Young People,CYP,Third Party Payments,EHA,30/03/2012,12-07249,935.54,REAL EDUCATION LTD
Nottinghamshire County Council,1111/1001,Children and Young People,CYP,Third Party Payments,EHA,30/03/2012,12-07250,1729.32,REAL EDUCATION LTD
Nottinghamshire County Council,1111/1001,Children and Young People,CYP,Third Party Payments,EHA,30/03/2012,12-07251,1557.53,REAL EDUCATION LTD
Nottinghamshire County Council,1111/1001,Children and Young People,CYP,Third Party Payments,EHA,30/03/2012,12-07252,1310,REAL EDUCATION LTD
Nottinghamshire County Council,1111/1001,Children and Young People,CYP,Third Party Payments,EHA,30/03/2012,12-07253,3460,REAL EDUCATION LTD
Nottinghamshire County Council,1111/1001,Children and Young People,CYP,Third Party Payments,EHA,30/03/2012,12-07254,2475.92,REAL EDUCATION LTD
Nottinghamshire County Council,1111/1001,Children and Young People,CYP,Third Party Payments,EHA,30/03/2012,12-07275,2098.65,REAL EDUCATION LTD
Nottinghamshire County Council,1111/1001,Children and Young People,CYP,Third Party Payments,EHA,30/03/2012,12-07282,3838.32,REAL EDUCATION LTD
Nottinghamshire County Council,1111/1001,Children and Young People,CYP,Third Party Payments,EHA,30/03/2012,12-07284,1653.74,REAL EDUCATION LTD
Nottinghamshire County Council,1111/1001,Children and Young People,CYP,Transfer Payments,GAA,16/03/2012,12-01720,300,THE DUKERIES COLLEGE
Nottinghamshire County Council,1111/1001,Children and Young People,CYP,Support Services,HAA,02/03/2012,12-00694,1689,LOWES COACHES LTD
Nottinghamshire County Council,1111/1001,Children and Young People,CYP,Support Services,HAA,02/03/2012,12-00695,1794.35,LOWES COACHES LTD
Nottinghamshire County Council,1111/1001,Children and Young People,CYP,Support Services,HAA,02/03/2012,12-00696,2720,LOWES COACHES LTD
Nottinghamshire County Council,1111/1001,Children and Young People,CYP,Support Services,HAA,07/03/2012,12-00287,654.17,SUTTON CENTRE COMMUNITY CENTRE
Nottinghamshire County Council,1111/1001,Children and Young People,CYP,Support Services,HAA,07/03/2012,12-01070,2610,MIDLAND FLEET MAINTENANCE
Nottinghamshire County Council,1111/1001,Children and Young People,CYP,Support Services,HAA,07/03/2012,12-01073,14898.9,PREMIERE TRAVEL LTD
Nottinghamshire County Council,1111/1001,Children and Young People,CYP,Support Services,HAA,07/03/2012,12-01074,35307.83,PREMIERE TRAVEL LTD
Nottinghamshire County Council,1111/1001,Children and Young People,CYP,Support Services,HAA,07/03/2012,12-01075,3373.46,PREMIERE TRAVEL LTD
Nottinghamshire County Council,1111/1001,Children and Young People,CYP,Support Services,HAA,07/03/2012,12-01077,2307,PREMIERE TRAVEL LTD
Nottinghamshire County Council,1111/1001,Children and Young People,CYP,Support Services,HAA,07/03/2012,12-01078,2390.7,PREMIERE TRAVEL LTD
Nottinghamshire County Council,1111/1001,Children and Young People,CYP,Support Services,HAA,07/03/2012,12-01081,1644.8,ARNOLD ACORN TRAVEL
Nottinghamshire County Council,1111/1001,Children and Young People,CYP,Support Services,HAA,07/03/2012,12-01112,2354.59,LOWES COACHES LTD
Nottinghamshire County Council,1111/1001,Children and Young People,CYP,Support Services,HAA,07/03/2012,12-01154,1744,GARYS COACHES LTD
Nottinghamshire County Council,1111/1001,Children and Young People,CYP,Support Services,HAA,07/03/2012,12-01156,1583.5,MARSHALLS OF SUTTON ON TRENT LTD
Nottinghamshire County Council,1111/1001,Children and Young People,CYP,Support Services,HAA,07/03/2012,12-01159,1980.15,MARSHALLS OF SUTTON ON TRENT LTD
Nottinghamshire County Council,1111/1001,Children and Young People,CYP,Support Services,HAA,07/03/2012,12-01166,2384,MARSHALLS OF SUTTON ON TRENT LTD
Nottinghamshire County Council,1111/1001,Children and Young People,CYP,Support Services,HAA,07/03/2012,12-01171,966,NOTTM MINIBUSES & COACHES
Nottinghamshire County Council,1111/1001,Children and Young People,CYP,Support Services,HAA,07/03/2012,12-01176,9944.55,K & H DOYLE COACHES LTD
Nottinghamshire County Council,1111/1001,Children and Young People,CYP,Support Services,HAA,07/03/2012,12-01191,2070,C W MOXON LTD
Nottinghamshire County Council,1111/1001,Children and Young People,CYP,Support Services,HAA,07/03/2012,12-01192,2108.5,C W MOXON LTD
Nottinghamshire County Council,1111/1001,Children and Young People,CYP,Support Services,HAA,07/03/2012,12-01194,2419.85,C W MOXON LTD
Nottinghamshire County Council,1111/1001,Children and Young People,CYP,Support Services,HAA,07/03/2012,12-01195,2003.75,DUNN MOTOR TRACTION
Nottinghamshire County Council,1111/1001,Children and Young People,CYP,Support Services,HAA,07/03/2012,12-01196,1446.68,DUNN MOTOR TRACTION
Nottinghamshire County Council,1111/1001,Children and Young People,CYP,Support Services,HAA,07/03/2012,12-01197,2582.19,DUNN MOTOR TRACTION
Nottinghamshire County Council,1111/1001,Children and Young People,CYP,Support Services,HAA,07/03/2012,12-01198,7654.2,DUNN MOTOR TRACTION
Nottinghamshire County Council,1111/1001,Children and Young People,CYP,Support Services,HAA,07/03/2012,12-01199,4987.5,DUNN MOTOR TRACTION
Nottinghamshire County Council,1111/1001,Children and Young People,CYP,Support Services,HAA,07/03/2012,12-01201,2428.96,NOTTM CITY TRANSPORT LTD
Nottinghamshire County Council,1111/1001,Children and Young People,CYP,Support Services,HAA,08/03/2012,12-01317,1438.4,VALE TRAVEL
Nottinghamshire County Council,1111/1001,Children and Young People,CYP,Support Services,HAA,08/03/2012,12-01331,4992.04,F & J MARRIOTT T/A UNITY COACHES
Nottinghamshire County Council,1111/1001,Children and Young People,CYP,Support Services,HAA,08/03/2012,12-01332,1494.32,F & J MARRIOTT T/A UNITY COACHES
Nottinghamshire County Council,1111/1001,Children and Young People,CYP,Support Services,HAA,08/03/2012,12-01341,3145.5,STAGECOACH SERVICES LTD
Nottinghamshire County Council,1111/1001,Children and Young People,CYP,Support Services,HAA,08/03/2012,12-01343,2417.7,TRAVEL WRIGHT LTD
Nottinghamshire County Council,1111/1001,Children and Young People,CYP,Support Services,HAA,08/03/2012,12-01345,120,TRAVEL WRIGHT LTD
Nottinghamshire County Council,1111/1001,Children and Young People,CYP,Support Services,HAA,08/03/2012,12-01349,1360.75,JC COACHES
Nottinghamshire County Council,1111/1001,Children and Young People,CYP,Support Services,HAA,08/03/2012,12-01350,5600,WILFREDA BEEHIVE
Nottinghamshire County Council,1111/1001,Children and Young People,CYP,Support Services,HAA,09/03/2012,12-01582,2725.05,SHARPES OF NOTTINGHAM
Nottinghamshire County Council,1111/1001,Children and Young People,CYP,Support Services,HAA,09/03/2012,12-01583,2151.45,SHARPES OF NOTTINGHAM
Nottinghamshire County Council,1111/1001,Children and Young People,CYP,Support Services,HAA,09/03/2012,12-01584,2080.6,SHARPES OF NOTTINGHAM
Nottinghamshire County Council,1111/1001,Children and Young People,CYP,Support Services,HAA,09/03/2012,12-01585,2346,SHARPES OF NOTTINGHAM
Nottinghamshire County Council,1111/1001,Children and Young People,CYP,Support Services,HAA,09/03/2012,12-01587,1871.6,SHARPES OF NOTTINGHAM
Nottinghamshire County Council,1111/1001,Children and Young People,CYP,Support Services,HAA,09/03/2012,12-01589,900,KIRKHAMS COACHES
Nottinghamshire County Council,1111/1001,Children and Young People,CYP,Support Services,HAA,09/03/2012,12-01591,3654,MIDLAND FLEET MAINTENANCE
Nottinghamshire County Council,1111/1001,Children and Young People,CYP,Support Services,HAA,09/03/2012,12-01592,2377.99,REDFERN TRAVEL
Nottinghamshire County Council,1111/1001,Children and Young People,CYP,Support Services,HAA,09/03/2012,12-01593,2313.65,REDFERN TRAVEL
Nottinghamshire County Council,1111/1001,Children and Young People,CYP,Support Services,HAA,09/03/2012,12-01594,2162.3,REDFERN TRAVEL
Nottinghamshire County Council,1111/1001,Children and Young People,CYP,Support Services,HAA,09/03/2012,12-01595,14935.52,REDFERN TRAVEL
Nottinghamshire County Council,1111/1001,Children and Young People,CYP,Support Services,HAA,09/03/2012,12-01596,9017.85,REDFERN TRAVEL
Nottinghamshire County Council,1111/1001,Children and Young People,CYP,Support Services,HAA,09/03/2012,12-01597,1919.65,REDFERN TRAVEL
Nottinghamshire County Council,1111/1001,Children and Young People,CYP,Support Services,HAA,09/03/2012,12-01607,1208,AOT COACHES
Nottinghamshire County Council,1111/1001,Children and Young People,CYP,Support Services,HAA,09/03/2012,12-01608,1614.84,AOT COACHES
Nottinghamshire County Council,1111/1001,Children and Young People,CYP,Support Services,HAA,09/03/2012,12-01609,2355.15,AOT COACHES
Nottinghamshire County Council,1111/1001,Children and Young People,CYP,Support Services,HAA,09/03/2012,12-01610,1951.5,AOT COACHES
Nottinghamshire County Council,1111/1001,Children and Young People,CYP,Support Services,HAA,09/03/2012,12-01611,2144.58,AOT COACHES
Nottinghamshire County Council,1111/1001,Children and Young People,CYP,Support Services,HAA,09/03/2012,12-01612,1685.12,AOT COACHES
Nottinghamshire County Council,1111/1001,Children and Young People,CYP,Support Services,HAA,09/03/2012,12-01615,1576.5,JB TOURS WATNALL LTD
Nottinghamshire County Council,1111/1001,Children and Young People,CYP,Support Services,HAA,09/03/2012,12-01659,2175,STAGECOACH SERVICES LTD
Nottinghamshire County Council,1111/1001,Children and Young People,CYP,Support Services,HAA,09/03/2012,12-01660,3532.9,STAGECOACH SERVICES LTD
Nottinghamshire County Council,1111/1001,Children and Young People,CYP,Support Services,HAA,09/03/2012,12-01661,3601.45,STAGECOACH SERVICES LTD
Nottinghamshire County Council,1111/1001,Children and Young People,CYP,Support Services,HAA,09/03/2012,12-01665,2550,TRAVEL WRIGHT LTD
Nottinghamshire County Council,1111/1001,Children and Young People,CYP,Support Services,HAA,09/03/2012,12-01666,2473.4,TRAVEL WRIGHT LTD
Nottinghamshire County Council,1111/1001,Children and Young People,CYP,Support Services,HAA,09/03/2012,12-01667,2526.21,TRAVEL WRIGHT LTD
Nottinghamshire County Council,1111/1001,Children and Young People,CYP,Support Services,HAA,09/03/2012,12-01668,1400,TRAVEL WRIGHT LTD
Nottinghamshire County Council,1111/1001,Children and Young People,CYP,Support Services,HAA,09/03/2012,12-01669,1378,TRAVEL WRIGHT LTD
Nottinghamshire County Council,1111/1001,Children and Young People,CYP,Support Services,HAA,09/03/2012,12-01670,2125.75,FREEWAY COACHES LTD
Nottinghamshire County Council,1111/1001,Children and Young People,CYP,Support Services,HAA,09/03/2012,12-01671,2258.24,FREEWAY COACHES LTD
Nottinghamshire County Council,1111/1001,Children and Young People,CYP,Support Services,HAA,09/03/2012,12-01672,2091.85,FREEWAY COACHES LTD
Nottinghamshire County Council,1111/1001,Children and Young People,CYP,Support Services,HAA,12/03/2012,12-01788,1991.14,GLENN RYDER COACHES
Nottinghamshire County Council,1111/1001,Children and Young People,CYP,Support Services,HAA,12/03/2012,12-01789,2118,GLENN RYDER COACHES
Nottinghamshire County Council,1111/1001,Children and Young People,CYP,Support Services,HAA,12/03/2012,12-01790,2078.25,MALCOLM KEITH HEARSON
Nottinghamshire County Council,1111/1001,Children and Young People,CYP,Support Services,HAA,12/03/2012,12-01791,2031.3,MALCOLM KEITH HEARSON
Nottinghamshire County Council,1111/1001,Children and Young People,CYP,Support Services,HAA,12/03/2012,12-01792,10284.05,JOHNSON BROS TOURS LTD
Nottinghamshire County Council,1111/1001,Children and Young People,CYP,Support Services,HAA,12/03/2012,12-01793,2683.82,JOHNSON BROS TOURS LTD
Nottinghamshire County Council,1111/1001,Children and Young People,CYP,Support Services,HAA,12/03/2012,12-01811,2411.5,TIGER EUROPEAN UK LTD
Nottinghamshire County Council,1111/1001,Children and Young People,CYP,Support Services,HAA,12/03/2012,12-01812,1889,TIGER EUROPEAN UK LTD
Nottinghamshire County Council,1111/1001,Children and Young People,CYP,Support Services,HAA,12/03/2012,12-01813,1956.96,TIGER EUROPEAN UK LTD
Nottinghamshire County Council,1111/1001,Children and Young People,CYP,Support Services,HAA,12/03/2012,12-01814,2085,TIGER EUROPEAN UK LTD
Nottinghamshire County Council,1111/1001,Children and Young People,CYP,Support Services,HAA,12/03/2012,12-01816,1935,PAUL S WINSON COACHES
Nottinghamshire County Council,1111/1001,Children and Young People,CYP,Support Services,HAA,12/03/2012,12-01817,2174.4,PAUL S WINSON COACHES
Nottinghamshire County Council,1111/1001,Children and Young People,CYP,Support Services,HAA,12/03/2012,12-01818,2102.59,PAUL S WINSON COACHES
Nottinghamshire County Council,1111/1001,Children and Young People,CYP,Support Services,HAA,16/03/2012,12-02834,2760.36,SILVERDALE TOURS NOTTM LTD
Nottinghamshire County Council,1111/1001,Children and Young People,CYP,Support Services,HAA,16/03/2012,12-02835,1764.9,SILVERDALE TOURS NOTTM LTD
Nottinghamshire County Council,1111/1001,Children and Young People,CYP,Support Services,HAA,16/03/2012,12-02836,2316.86,SILVERDALE TOURS NOTTM LTD
Nottinghamshire County Council,1111/1001,Children and Young People,CYP,Support Services,HAA,16/03/2012,12-02837,2078.24,SILVERDALE TOURS NOTTM LTD
Nottinghamshire County Council,1111/1001,Children and Young People,CYP,Support Services,HAA,16/03/2012,12-02838,1342.28,SILVERDALE TOURS NOTTM LTD
Nottinghamshire County Council,1111/1001,Children and Young People,CYP,Support Services,HAA,16/03/2012,12-02839,2173.6,SILVERDALE TOURS NOTTM LTD
Nottinghamshire County Council,1111/1001,Children and Young People,CYP,Support Services,HAA,16/03/2012,12-02840,2093.6,SILVERDALE TOURS NOTTM LTD
Nottinghamshire County Council,1111/1001,Children and Young People,CYP,Support Services,HAA,23/03/2012,12-01723,3660.43,THE DUKERIES COLLEGE
Nottinghamshire County Council,1111/1001,Children and Young People,CYP,Support Services,HAA,27/03/2012,12-02372,831.25,TRENT MOTOR TRACTION COMPANY LTD
Nottinghamshire County Council,1111/1001,Children and Young People,CYP,Support Services,HAA,27/03/2012,12-02375,1839.15,TRENT MOTOR TRACTION COMPANY LTD
Nottinghamshire County Council,1111/1001,Children and Young People,CYP,Support Services,HAA,29/03/2012,12-02833,2655,TRENT MOTOR TRACTION COMPANY LTD
Nottinghamshire County Council,1111/1001,Children and Young People,CYP,Support Services,HAA,30/03/2012,12-07358,1757.6,GEM MINI TRAVEL LTD
Nottinghamshire County Council,1111/1001,Children and Young People,CYP,Income,JCA,12/03/2012,12-07571,6282.1,NOT ASSIGNED
Nottinghamshire County Council,1111/1001,Children and Young People,CYP,Income,JDA,05/03/2012,12-00001,3033,NOT ASSIGNED
Nottinghamshire County Council,1111/1001,Children and Young People,CYP,Income,JHA,14/03/2012,12-02082,2534,THE BRUNTS ACADEMY
Nottinghamshire County Council,1111/1001,Children and Young People,CYP,Income,JHA,14/03/2012,12-02083,2534,JOSEPH WHITTAKER ACADEMY
Nottinghamshire County Council,1111/1001,Children and Young People,CYP,Income,JHA,16/03/2012,12-02929,749.44,JOSEPH WHITTAKER ACADEMY
Nottinghamshire County Council,1111/1001,Children and Young People,CYP,Income,JHA,23/03/2012,12-01361,2997.76,THE MANOR ACADEMY
Nottinghamshire County Council,1111/1001,Children and Young People,CYP,Income,JHA,23/03/2012,12-03764,749.44,ARNOLD HILL ACADEMY
Nottinghamshire County Council,1111/1001,Children and Young People,CYP,Income,JHA,23/03/2012,12-03765,749.44,TOOTHILL ACADEMY
Nottinghamshire County Council,1111/1001,Children and Young People,CYP,Income,JHA,27/03/2012,12-07577,611,NOT ASSIGNED
Nottinghamshire County Council,1111/1001,Children and Young People,CYP,Income,JHA,27/03/2012,12-03866,1498.88,QUARRYDALE SCHOOL NCC ACCOUNT
Nottinghamshire County Council,1111/1001,Adult Social Care and Health,ASCH,Premises Related,BAA,06/03/2012,12-07415,665,ART CLEANING MIDLANDS LTD
Nottinghamshire County Council,1111/1001,Adult Social Care and Health,ASCH,Premises Related,BAA,09/03/2012,12-01703,815.09,XYLEM WATER SOLUTIONS LTD
Nottinghamshire County Council,1111/1001,Adult Social Care and Health,ASCH,Premises Related,BAA,20/03/2012,12-03263,2495,TOTAL SECURITY PROTECTION LTD
Nottinghamshire County Council,1111/1001,Adult Social Care and Health,ASCH,Premises Related,BAA,20/03/2012,12-07485,2315.18,WILSON ELECTRICS LTD
Nottinghamshire County Council,1111/1001,Adult Social Care and Health,ASCH,Premises Related,BAA,21/03/2012,12-07508,784.53,AEGIS SECURITY SOLUTIONS & TECHNOLO
Nottinghamshire County Council,1111/1001,Adult Social Care and Health,ASCH,Premises Related,BAA,21/03/2012,12-07531,1875,SLACK & CO FLOORCOVERINGS
Nottinghamshire County Council,1111/1001,Adult Social Care and Health,ASCH,Premises Related,BAA,21/03/2012,12-07555,885,G WILTON DECORATING CONTRACTORS LTD
Nottinghamshire County Council,1111/1001,Adult Social Care and Health,ASCH,Premises Related,BAA,21/03/2012,12-07556,2425,G WILTON DECORATING CONTRACTORS LTD
Nottinghamshire County Council,1111/1001,Adult Social Care and Health,ASCH,Premises Related,BAA,22/03/2012,12-03658,590.8,FREDK LAMB LTD
Nottinghamshire County Council,1111/1001,Adult Social Care and Health,ASCH,Premises Related,BCA,21/03/2012,12-03387,2041.15,COAL 4 ENERGY LTD
Nottinghamshire County Council,1111/1001,Adult Social Care and Health,ASCH,Premises Related,BCA,28/03/2012,12-02398,550.9,BRITISH GAS BUSINESS
Nottinghamshire County Council,1111/1001,Adult Social Care and Health,ASCH,Premises Related,BCA,28/03/2012,12-02399,1771.61,BRITISH GAS BUSINESS
Nottinghamshire County Council,1111/1001,Adult Social Care and Health,ASCH,Premises Related,BDA,13/03/2012,12-02024,600,SODEXO PRESTIGE LTD
Nottinghamshire County Council,1111/1001,Adult Social Care and Health,ASCH,Premises Related,BDA,13/03/2012,12-07383,1260,3RD CHILWELL SCOUT GROUP
Nottinghamshire County Council,1111/1001,Adult Social Care and Health,ASCH,Premises Related,BDA,16/03/2012,12-02990,1254.4,MAKING IT! ENTERPRISES LTD
Nottinghamshire County Council,1111/1001,Adult Social Care and Health,ASCH,Premises Related,BDA,19/03/2012,12-03040,860.04,PROGRESS CARE HOUSING ASSOC LTD
Nottinghamshire County Council,1111/1001,Adult Social Care and Health,ASCH,Premises Related,BDA,20/03/2012,12-03211,4250,OCEANS OF FUN
Nottinghamshire County Council,1111/1001,Adult Social Care and Health,ASCH,Premises Related,BDA,28/03/2012,12-06844,902.8,MAKING IT! ENTERPRISES LTD
Nottinghamshire County Council,1111/1001,Adult Social Care and Health,ASCH,Premises Related,BDA,29/03/2012,12-07204,1205.1,MAKING IT! ENTERPRISES LTD
Nottinghamshire County Council,1111/1001,Adult Social Care and Health,ASCH,Premises Related,BDA,30/03/2012,12-03313,720,SODEXO PRESTIGE LTD
Nottinghamshire County Council,1111/1001,Adult Social Care and Health,ASCH,Premises Related,BFA,01/03/2012,12-00379,508.87,SEVERN TRENT WATER LTD
Nottinghamshire County Council,1111/1001,Adult Social Care and Health,ASCH,Premises Related,BFA,02/03/2012,12-00377,607.53,SEVERN TRENT WATER LTD
Nottinghamshire County Council,1111/1001,Adult Social Care and Health,ASCH,Premises Related,BFA,05/03/2012,12-00124,725.95,ADSM LTD
Nottinghamshire County Council,1111/1001,Adult Social Care and Health,ASCH,Premises Related,BFA,06/03/2012,12-00988,2438,SEVERN TRENT WATER LTD
Nottinghamshire County Council,1111/1001,Adult Social Care and Health,ASCH,Premises Related,BFA,07/03/2012,12-01248,519.67,SEVERN TRENT WATER LTD
Nottinghamshire County Council,1111/1001,Adult Social Care and Health,ASCH,Premises Related,BFA,13/03/2012,12-02015,1182.11,SEVERN TRENT WATER LTD
Nottinghamshire County Council,1111/1001,Adult Social Care and Health,ASCH,Premises Related,BFA,13/03/2012,12-02070,8729.4,SEVERN TRENT WATER LTD
Nottinghamshire County Council,1111/1001,Adult Social Care and Health,ASCH,Premises Related,BFA,16/03/2012,12-02740,965.71,SEVERN TRENT WATER LTD
Nottinghamshire County Council,1111/1001,Adult Social Care and Health,ASCH,Premises Related,BFA,16/03/2012,12-02950,537.66,SEVERN TRENT WATER LTD
Nottinghamshire County Council,1111/1001,Adult Social Care and Health,ASCH,Premises Related,BFA,21/03/2012,12-03039,1363.81,SEVERN TRENT WATER LTD
Nottinghamshire County Council,1111/1001,Adult Social Care and Health,ASCH,Premises Related,BFA,21/03/2012,12-03105,931.32,SEVERN TRENT WATER LTD
Nottinghamshire County Council,1111/1001,Adult Social Care and Health,ASCH,Premises Related,BFA,29/03/2012,12-07218,1027.65,ADSM LTD
Nottinghamshire County Council,1111/1001,Adult Social Care and Health,ASCH,Premises Related,BGA,12/03/2012,12-01846,724,A D T FIRE & SECURITY PLC
Nottinghamshire County Council,1111/1001,Adult Social Care and Health,ASCH,Premises Related,BJA,01/03/2012,12-00063,3164.69,PHS ALL CLEAR LTD
Nottinghamshire County Council,1111/1001,Adult Social Care and Health,ASCH,Premises Related,BJA,09/03/2012,12-07367,444.46,COUNTY SUPPLIES (NCC)
Nottinghamshire County Council,1111/1001,Adult Social Care and Health,ASCH,Premises Related,BJA,09/03/2012,12-07368,807.72,COUNTY SUPPLIES (NCC)
Nottinghamshire County Council,1111/1001,Adult Social Care and Health,ASCH,Premises Related,BJA,09/03/2012,12-07371,1105.68,COUNTY SUPPLIES (NCC)
Nottinghamshire County Council,1111/1001,Adult Social Care and Health,ASCH,Premises Related,BJA,09/03/2012,12-07377,76.4,COUNTY SUPPLIES (NCC)
Nottinghamshire County Council,1111/1001,Adult Social Care and Health,ASCH,Premises Related,BJA,09/03/2012,12-07387,61.62,COUNTY SUPPLIES (NCC)
Nottinghamshire County Council,1111/1001,Adult Social Care and Health,ASCH,Premises Related,BJA,16/03/2012,12-02885,4180.75,PHS ALL CLEAR LTD
Nottinghamshire County Council,1111/1001,Adult Social Care and Health,ASCH,Premises Related,BJA,26/03/2012,12-03872,1096.15,UK WASTE SOLUTIONS LTD
Nottinghamshire County Council,1111/1001,Adult Social Care and Health,ASCH,Transport Related,CCA,01/03/2012,12-00486,2750,1ST 4 CARE LTD
Nottinghamshire County Council,1111/1001,Adult Social Care and Health,ASCH,Transport Related,CCA,01/03/2012,12-00487,1422.75,1ST 4 CARE LTD
Nottinghamshire County Council,1111/1001,Adult Social Care and Health,ASCH,Transport Related,CCA,01/03/2012,12-00488,770,1ST 4 CARE LTD
Nottinghamshire County Council,1111/1001,Adult Social Care and Health,ASCH,Transport Related,CCA,02/03/2012,12-00697,5889.72,TREVOR BAILEY TRAVEL LTD
Nottinghamshire County Council,1111/1001,Adult Social Care and Health,ASCH,Transport Related,CCA,02/03/2012,12-00713,525,NOTTINGHAM CITY COUNCIL
Nottinghamshire County Council,1111/1001,Adult Social Care and Health,ASCH,Transport Related,CCA,07/03/2012,12-01107,2465.6,HAWKINS TAXIS & TRANSPORT
Nottinghamshire County Council,1111/1001,Adult Social Care and Health,ASCH,Transport Related,CCA,07/03/2012,12-01144,521.1,CW TAXIS
Nottinghamshire County Council,1111/1001,Adult Social Care and Health,ASCH,Transport Related,CCA,08/03/2012,12-01339,2975.96,PREMIER TAXIS
Nottinghamshire County Council,1111/1001,Adult Social Care and Health,ASCH,Transport Related,CCA,08/03/2012,12-01353,618.2,TOWN TAXIS LTD
Nottinghamshire County Council,1111/1001,Adult Social Care and Health,ASCH,Transport Related,CCA,08/03/2012,12-01356,1890,TOWN TAXIS LTD
Nottinghamshire County Council,1111/1001,Adult Social Care and Health,ASCH,Transport Related,CCA,09/03/2012,12-00281,1929.27,NORSACA SOCIETY OFFICE
Nottinghamshire County Council,1111/1001,Adult Social Care and Health,ASCH,Transport Related,CCA,12/03/2012,12-00709,525,NOTTINGHAM CITY COUNCIL
Nottinghamshire County Council,1111/1001,Adult Social Care and Health,ASCH,Transport Related,CCA,12/03/2012,12-01806,1257.45,1ST 4 CARE LTD
Nottinghamshire County Council,1111/1001,Adult Social Care and Health,ASCH,Transport Related,CCA,12/03/2012,12-01820,780,RIO CABS
Nottinghamshire County Council,1111/1001,Adult Social Care and Health,ASCH,Transport Related,CCA,12/03/2012,12-01831,1097.8,ABACUS CARS
Nottinghamshire County Council,1111/1001,Adult Social Care and Health,ASCH,Transport Related,CCA,12/03/2012,12-01832,18278.8,ABACUS CARS
Nottinghamshire County Council,1111/1001,Adult Social Care and Health,ASCH,Transport Related,CCA,12/03/2012,12-01833,757.6,CABLINE UK LTD
Nottinghamshire County Council,1111/1001,Adult Social Care and Health,ASCH,Transport Related,CCA,14/03/2012,12-02283,2768.9,ALERT CARS LTD
Nottinghamshire County Council,1111/1001,Adult Social Care and Health,ASCH,Transport Related,CCA,14/03/2012,12-02285,2157.96,TAXICOVER UK LTD
Nottinghamshire County Council,1111/1001,Adult Social Care and Health,ASCH,Transport Related,CCA,14/03/2012,12-02286,798.75,TAXICOVER UK LTD
Nottinghamshire County Council,1111/1001,Adult Social Care and Health,ASCH,Transport Related,CCA,14/03/2012,12-02287,740,TAXICOVER UK LTD
Nottinghamshire County Council,1111/1001,Adult Social Care and Health,ASCH,Transport Related,CCA,14/03/2012,12-02288,619,CENTRAL CARS NOTTM LTD
Nottinghamshire County Council,1111/1001,Adult Social Care and Health,ASCH,Transport Related,CCA,14/03/2012,12-02289,1067.1,CENTRAL CARS NOTTM LTD
Nottinghamshire County Council,1111/1001,Adult Social Care and Health,ASCH,Transport Related,CCA,14/03/2012,12-02290,661.2,CENTRAL CARS NOTTM LTD
Nottinghamshire County Council,1111/1001,Adult Social Care and Health,ASCH,Transport Related,CCA,14/03/2012,12-02291,630,CENTRAL CARS NOTTM LTD
Nottinghamshire County Council,1111/1001,Adult Social Care and Health,ASCH,Transport Related,CCA,14/03/2012,12-02293,923.9,200 CARS LTD
Nottinghamshire County Council,1111/1001,Adult Social Care and Health,ASCH,Transport Related,CCA,14/03/2012,12-02294,796.25,200 CARS LTD
Nottinghamshire County Council,1111/1001,Adult Social Care and Health,ASCH,Transport Related,CCA,14/03/2012,12-02295,901.3,200 CARS LTD
Nottinghamshire County Council,1111/1001,Adult Social Care and Health,ASCH,Transport Related,CCA,14/03/2012,12-02296,908.3,200 CARS LTD
Nottinghamshire County Council,1111/1001,Adult Social Care and Health,ASCH,Transport Related,CCA,14/03/2012,12-02297,852.9,200 CARS LTD
Nottinghamshire County Council,1111/1001,Adult Social Care and Health,ASCH,Transport Related,CCA,14/03/2012,12-02298,852.9,200 CARS LTD
Nottinghamshire County Council,1111/1001,Adult Social Care and Health,ASCH,Transport Related,CCA,14/03/2012,12-02299,14064.99,ACE OF MANSFIELD LTD
Nottinghamshire County Council,1111/1001,Adult Social Care and Health,ASCH,Transport Related,CCA,14/03/2012,12-02300,1286.1,ACORN TRAVEL
Nottinghamshire County Council,1111/1001,Adult Social Care and Health,ASCH,Transport Related,CCA,14/03/2012,12-02301,1038,ACORN TRAVEL
Nottinghamshire County Council,1111/1001,Adult Social Care and Health,ASCH,Transport Related,CCA,14/03/2012,12-02302,685.5,ACORN TRAVEL
Nottinghamshire County Council,1111/1001,Adult Social Care and Health,ASCH,Transport Related,CCA,14/03/2012,12-02303,1226.25,ACORN TRAVEL
Nottinghamshire County Council,1111/1001,Adult Social Care and Health,ASCH,Transport Related,CCA,14/03/2012,12-02304,1537.2,ALPHA CARS
Nottinghamshire County Council,1111/1001,Adult Social Care and Health,ASCH,Transport Related,CCA,14/03/2012,12-02305,576,ANITAS CONTRACTS
Nottinghamshire County Council,1111/1001,Adult Social Care and Health,ASCH,Transport Related,CCA,14/03/2012,12-02306,600,ANITAS CONTRACTS
Nottinghamshire County Council,1111/1001,Adult Social Care and Health,ASCH,Transport Related,CCA,14/03/2012,12-02310,2279.34,JA TRAVEL LTD
Nottinghamshire County Council,1111/1001,Adult Social Care and Health,ASCH,Transport Related,CCA,14/03/2012,12-02311,3374.7,MCT UK LTD
Nottinghamshire County Council,1111/1001,Adult Social Care and Health,ASCH,Transport Related,CCA,14/03/2012,12-02312,3374.7,MCT UK LTD
Nottinghamshire County Council,1111/1001,Adult Social Care and Health,ASCH,Transport Related,CCA,14/03/2012,12-02313,503,MOTORVATION TAXIS
Nottinghamshire County Council,1111/1001,Adult Social Care and Health,ASCH,Transport Related,CCA,14/03/2012,12-02314,722,NG11 CARS
Nottinghamshire County Council,1111/1001,Adult Social Care and Health,ASCH,Transport Related,CCA,14/03/2012,12-02316,629.2,AAERON CARS
Nottinghamshire County Council,1111/1001,Adult Social Care and Health,ASCH,Transport Related,CCA,14/03/2012,12-02317,681.3,AAERON CARS
Nottinghamshire County Council,1111/1001,Adult Social Care and Health,ASCH,Transport Related,CCA,14/03/2012,12-02318,1290.1,AAERON CARS
Nottinghamshire County Council,1111/1001,Adult Social Care and Health,ASCH,Transport Related,CCA,14/03/2012,12-02319,1457.6,AAERON CARS
Nottinghamshire County Council,1111/1001,Adult Social Care and Health,ASCH,Transport Related,CCA,14/03/2012,12-02320,1481.2,AAERON CARS
Nottinghamshire County Council,1111/1001,Adult Social Care and Health,ASCH,Transport Related,CCA,14/03/2012,12-02321,1171.2,AAERON CARS
Nottinghamshire County Council,1111/1001,Adult Social Care and Health,ASCH,Transport Related,CCA,14/03/2012,12-02322,1393.9,AAERON CARS
Nottinghamshire County Council,1111/1001,Adult Social Care and Health,ASCH,Transport Related,CCA,14/03/2012,12-02323,1884.8,AAERON CARS
Nottinghamshire County Council,1111/1001,Adult Social Care and Health,ASCH,Transport Related,CCA,14/03/2012,12-02324,2638.23,BN GIBSON LTD
Nottinghamshire County Council,1111/1001,Adult Social Care and Health,ASCH,Transport Related,CCA,14/03/2012,12-02325,3492.3,BN GIBSON LTD
Nottinghamshire County Council,1111/1001,Adult Social Care and Health,ASCH,Transport Related,CCA,14/03/2012,12-02326,2511.6,BN GIBSON LTD
Nottinghamshire County Council,1111/1001,Adult Social Care and Health,ASCH,Transport Related,CCA,14/03/2012,12-02335,2638.23,BN GIBSON LTD
Nottinghamshire County Council,1111/1001,Adult Social Care and Health,ASCH,Transport Related,CCA,14/03/2012,12-02337,97.34,BN GIBSON LTD
Nottinghamshire County Council,1111/1001,Adult Social Care and Health,ASCH,Transport Related,CCA,14/03/2012,12-02341,1184,BN GIBSON LTD
Nottinghamshire County Council,1111/1001,Adult Social Care and Health,ASCH,Transport Related,CCA,14/03/2012,12-02355,3492.3,BN GIBSON LTD
Nottinghamshire County Council,1111/1001,Adult Social Care and Health,ASCH,Transport Related,CCA,14/03/2012,12-02356,2511.6,BN GIBSON LTD
Nottinghamshire County Council,1111/1001,Adult Social Care and Health,ASCH,Transport Related,CCA,14/03/2012,12-02362,2427,CW TAXIS
Nottinghamshire County Council,1111/1001,Adult Social Care and Health,ASCH,Transport Related,CCA,14/03/2012,12-02363,3271,ABACUS CARS
Nottinghamshire County Council,1111/1001,Adult Social Care and Health,ASCH,Transport Related,CCA,14/03/2012,12-02364,7064.5,ABACUS CARS
Nottinghamshire County Council,1111/1001,Adult Social Care and Health,ASCH,Transport Related,CCA,14/03/2012,12-02366,891.8,NUNNS CARS
Nottinghamshire County Council,1111/1001,Adult Social Care and Health,ASCH,Transport Related,CCA,14/03/2012,12-02367,1922.04,NUNNS CARS
Nottinghamshire County Council,1111/1001,Adult Social Care and Health,ASCH,Transport Related,CCA,14/03/2012,12-02368,1358.36,NUNNS CARS
Nottinghamshire County Council,1111/1001,Adult Social Care and Health,ASCH,Transport Related,CCA,14/03/2012,12-02377,1950,P & P TAXIS
Nottinghamshire County Council,1111/1001,Adult Social Care and Health,ASCH,Transport Related,CCA,14/03/2012,12-02378,2400,P & P TAXIS
Nottinghamshire County Council,1111/1001,Adult Social Care and Health,ASCH,Transport Related,CCA,14/03/2012,12-02379,2612.5,P & P TAXIS
Nottinghamshire County Council,1111/1001,Adult Social Care and Health,ASCH,Transport Related,CCA,14/03/2012,12-02381,882,P & P TAXIS
Nottinghamshire County Council,1111/1001,Adult Social Care and Health,ASCH,Transport Related,CCA,14/03/2012,12-02382,953.4,P & P TAXIS
Nottinghamshire County Council,1111/1001,Adult Social Care and Health,ASCH,Transport Related,CCA,14/03/2012,12-02383,987,P & P TAXIS
Nottinghamshire County Council,1111/1001,Adult Social Care and Health,ASCH,Transport Related,CCA,14/03/2012,12-02384,604.9,P & P TAXIS
Nottinghamshire County Council,1111/1001,Adult Social Care and Health,ASCH,Transport Related,CCA,14/03/2012,12-02385,2584,P & P TAXIS
Nottinghamshire County Council,1111/1001,Adult Social Care and Health,ASCH,Transport Related,CCA,14/03/2012,12-02386,616,P & P TAXIS
Nottinghamshire County Council,1111/1001,Adult Social Care and Health,ASCH,Transport Related,CCA,14/03/2012,12-02387,630,P & P TAXIS
Nottinghamshire County Council,1111/1001,Adult Social Care and Health,ASCH,Transport Related,CCA,14/03/2012,12-02388,588,P & P TAXIS
Nottinghamshire County Council,1111/1001,Adult Social Care and Health,ASCH,Transport Related,CCA,14/03/2012,12-02389,2001.93,AJ TRAVEL
Nottinghamshire County Council,1111/1001,Adult Social Care and Health,ASCH,Transport Related,CCA,15/03/2012,12-02555,522,THERA EAST MIDLANDS
Nottinghamshire County Council,1111/1001,Adult Social Care and Health,ASCH,Transport Related,CCA,15/03/2012,12-02569,1160,THERA EAST MIDLANDS
Nottinghamshire County Council,1111/1001,Adult Social Care and Health,ASCH,Transport Related,CCA,15/03/2012,12-02570,1160,THERA EAST MIDLANDS
Nottinghamshire County Council,1111/1001,Adult Social Care and Health,ASCH,Transport Related,CCA,15/03/2012,12-02571,1160,THERA EAST MIDLANDS
Nottinghamshire County Council,1111/1001,Adult Social Care and Health,ASCH,Transport Related,CCA,15/03/2012,12-02572,754,THERA EAST MIDLANDS
Nottinghamshire County Council,1111/1001,Adult Social Care and Health,ASCH,Transport Related,CCA,15/03/2012,12-02574,1160,THERA EAST MIDLANDS
Nottinghamshire County Council,1111/1001,Adult Social Care and Health,ASCH,Transport Related,CCA,15/03/2012,12-02575,1160,THERA EAST MIDLANDS
Nottinghamshire County Council,1111/1001,Adult Social Care and Health,ASCH,Transport Related,CCA,15/03/2012,12-02579,1380.75,1ST 4 CARE LTD
Nottinghamshire County Council,1111/1001,Adult Social Care and Health,ASCH,Transport Related,CCA,16/03/2012,12-02765,735,1ST 4 CARE LTD
Nottinghamshire County Council,1111/1001,Adult Social Care and Health,ASCH,Transport Related,CCA,16/03/2012,12-02766,1422.75,1ST 4 CARE LTD
Nottinghamshire County Council,1111/1001,Adult Social Care and Health,ASCH,Transport Related,CCA,16/03/2012,12-02793,1012.5,SOUTHSIDE CARS
Nottinghamshire County Council,1111/1001,Adult Social Care and Health,ASCH,Transport Related,CCA,16/03/2012,12-02798,14176.5,CEM MUSKHAM LTD T/A Z CARS
Nottinghamshire County Council,1111/1001,Adult Social Care and Health,ASCH,Transport Related,CCA,16/03/2012,12-02799,547.25,BINGHAM CABS
Nottinghamshire County Council,1111/1001,Adult Social Care and Health,ASCH,Transport Related,CCA,16/03/2012,12-02800,1040,BRIDGES TRANSPORT SERVICES
Nottinghamshire County Council,1111/1001,Adult Social Care and Health,ASCH,Transport Related,CCA,16/03/2012,12-02801,1180,BRIDGES TRANSPORT SERVICES
Nottinghamshire County Council,1111/1001,Adult Social Care and Health,ASCH,Transport Related,CCA,16/03/2012,12-02802,3313.59,BRIDGES TRANSPORT SERVICES
Nottinghamshire County Council,1111/1001,Adult Social Care and Health,ASCH,Transport Related,CCA,16/03/2012,12-02803,2047.29,BRIDGES TRANSPORT SERVICES
Nottinghamshire County Council,1111/1001,Adult Social Care and Health,ASCH,Transport Related,CCA,16/03/2012,12-02804,850,BRIDGES TRANSPORT SERVICES
Nottinghamshire County Council,1111/1001,Adult Social Care and Health,ASCH,Transport Related,CCA,16/03/2012,12-02805,1230,BRIDGES TRANSPORT SERVICES
Nottinghamshire County Council,1111/1001,Adult Social Care and Health,ASCH,Transport Related,CCA,16/03/2012,12-02806,1200,BRIDGES TRANSPORT SERVICES
Nottinghamshire County Council,1111/1001,Adult Social Care and Health,ASCH,Transport Related,CCA,16/03/2012,12-02807,880,BRIDGES TRANSPORT SERVICES
Nottinghamshire County Council,1111/1001,Adult Social Care and Health,ASCH,Transport Related,CCA,16/03/2012,12-02808,560,BRIDGES TRANSPORT SERVICES
Nottinghamshire County Council,1111/1001,Adult Social Care and Health,ASCH,Transport Related,CCA,16/03/2012,12-02809,672.75,BRIDGES TRANSPORT SERVICES
Nottinghamshire County Council,1111/1001,Adult Social Care and Health,ASCH,Transport Related,CCA,16/03/2012,12-02810,500,D G PRIVATE HIRE LTD
Nottinghamshire County Council,1111/1001,Adult Social Care and Health,ASCH,Transport Related,CCA,16/03/2012,12-02811,4007.3,D G PRIVATE HIRE LTD
Nottinghamshire County Council,1111/1001,Adult Social Care and Health,ASCH,Transport Related,CCA,16/03/2012,12-02812,2279.4,D G PRIVATE HIRE LTD
Nottinghamshire County Council,1111/1001,Adult Social Care and Health,ASCH,Transport Related,CCA,16/03/2012,12-02813,3845.95,D G PRIVATE HIRE LTD
Nottinghamshire County Council,1111/1001,Adult Social Care and Health,ASCH,Transport Related,CCA,16/03/2012,12-02814,1848.2,D G PRIVATE HIRE LTD
Nottinghamshire County Council,1111/1001,Adult Social Care and Health,ASCH,Transport Related,CCA,16/03/2012,12-02815,4062.6,D G PRIVATE HIRE LTD
Nottinghamshire County Council,1111/1001,Adult Social Care and Health,ASCH,Transport Related,CCA,16/03/2012,12-02816,2247.1,D G PRIVATE HIRE LTD
Nottinghamshire County Council,1111/1001,Adult Social Care and Health,ASCH,Transport Related,CCA,16/03/2012,12-02817,2478.3,D G PRIVATE HIRE LTD
Nottinghamshire County Council,1111/1001,Adult Social Care and Health,ASCH,Transport Related,CCA,16/03/2012,12-02818,3401.2,D G PRIVATE HIRE LTD
Nottinghamshire County Council,1111/1001,Adult Social Care and Health,ASCH,Transport Related,CCA,16/03/2012,12-02820,5568.95,SHELLEYS TAXIS LTD
Nottinghamshire County Council,1111/1001,Adult Social Care and Health,ASCH,Transport Related,CCA,16/03/2012,12-02821,2211.24,SPRAYS TRANSPORT LTD
Nottinghamshire County Council,1111/1001,Adult Social Care and Health,ASCH,Transport Related,CCA,16/03/2012,12-02822,2938.04,SPRAYS TRANSPORT LTD
Nottinghamshire County Council,1111/1001,Adult Social Care and Health,ASCH,Transport Related,CCA,16/03/2012,12-02825,2459.1,F & J MARRIOTT T/A UNITY COACHES
Nottinghamshire County Council,1111/1001,Adult Social Care and Health,ASCH,Transport Related,CCA,16/03/2012,12-02826,2717.82,F & J MARRIOTT T/A UNITY COACHES
Nottinghamshire County Council,1111/1001,Adult Social Care and Health,ASCH,Transport Related,CCA,16/03/2012,12-02827,3066,F & J MARRIOTT T/A UNITY COACHES
Nottinghamshire County Council,1111/1001,Adult Social Care and Health,ASCH,Transport Related,CCA,16/03/2012,12-02828,2949.24,VALLANCES COACHES
Nottinghamshire County Council,1111/1001,Adult Social Care and Health,ASCH,Transport Related,CCA,16/03/2012,12-02842,2966.9,TIMS TAXI
Nottinghamshire County Council,1111/1001,Adult Social Care and Health,ASCH,Transport Related,CCA,16/03/2012,12-02848,3508.95,TOWN TAXIS LTD
Nottinghamshire County Council,1111/1001,Adult Social Care and Health,ASCH,Transport Related,CCA,16/03/2012,12-02849,745,CABLE CARS TAXIS NOTTM LTD
Nottinghamshire County Council,1111/1001,Adult Social Care and Health,ASCH,Transport Related,CCA,20/03/2012,12-03238,9406.83,QUANTUM TRAVEL SPECIALISTS
Nottinghamshire County Council,1111/1001,Adult Social Care and Health,ASCH,Transport Related,CCA,22/03/2012,12-03475,2625,1ST 4 CARE LTD
Nottinghamshire County Council,1111/1001,Adult Social Care and Health,ASCH,Transport Related,CCA,23/03/2012,12-02749,288,LEICESTER HOUSING ASSOCIATION LTD
Nottinghamshire County Council,1111/1001,Adult Social Care and Health,ASCH,Transport Related,CCA,23/03/2012,12-02753,192,LEICESTER HOUSING ASSOCIATION LTD
Nottinghamshire County Council,1111/1001,Adult Social Care and Health,ASCH,Transport Related,CCA,23/03/2012,12-03342,288,LEICESTER HOUSING ASSOCIATION LTD
Nottinghamshire County Council,1111/1001,Adult Social Care and Health,ASCH,Transport Related,CCA,23/03/2012,12-03736,2835,1ST 4 CARE LTD
Nottinghamshire County Council,1111/1001,Adult Social Care and Health,ASCH,Transport Related,CCA,23/03/2012,12-03737,1706.25,1ST 4 CARE LTD
Nottinghamshire County Council,1111/1001,Adult Social Care and Health,ASCH,Transport Related,CCA,23/03/2012,12-03803,2268,1ST 4 CARE LTD
Nottinghamshire County Council,1111/1001,Adult Social Care and Health,ASCH,Transport Related,CCA,23/03/2012,12-03804,1020,1ST 4 CARE LTD
Nottinghamshire County Council,1111/1001,Adult Social Care and Health,ASCH,Transport Related,CCA,23/03/2012,12-03810,1386,1ST 4 CARE LTD
Nottinghamshire County Council,1111/1001,Adult Social Care and Health,ASCH,Transport Related,CCA,23/03/2012,12-03811,1184.4,1ST 4 CARE LTD
Nottinghamshire County Council,1111/1001,Adult Social Care and Health,ASCH,Transport Related,CCA,23/03/2012,12-03842,2669,CABLINE UK LTD
Nottinghamshire County Council,1111/1001,Adult Social Care and Health,ASCH,Transport Related,CCA,23/03/2012,12-03843,1652,CABLINE UK LTD
Nottinghamshire County Council,1111/1001,Adult Social Care and Health,ASCH,Transport Related,CCA,23/03/2012,12-03844,1509,CABLINE UK LTD
Nottinghamshire County Council,1111/1001,Adult Social Care and Health,ASCH,Transport Related,CCA,23/03/2012,12-03845,6278.95,CEM MUSKHAM LTD T/A Z CARS
Nottinghamshire County Council,1111/1001,Adult Social Care and Health,ASCH,Transport Related,CCA,23/03/2012,12-03846,1290.1,CBC TAXIS LTD
Nottinghamshire County Council,1111/1001,Adult Social Care and Health,ASCH,Transport Related,CCA,23/03/2012,12-03847,1457.6,CBC TAXIS LTD
Nottinghamshire County Council,1111/1001,Adult Social Care and Health,ASCH,Transport Related,CCA,23/03/2012,12-03848,1481.2,CBC TAXIS LTD
Nottinghamshire County Council,1111/1001,Adult Social Care and Health,ASCH,Transport Related,CCA,23/03/2012,12-03849,1171.2,CBC TAXIS LTD
Nottinghamshire County Council,1111/1001,Adult Social Care and Health,ASCH,Transport Related,CCA,23/03/2012,12-03850,1393.9,CBC TAXIS LTD
Nottinghamshire County Council,1111/1001,Adult Social Care and Health,ASCH,Transport Related,CCA,23/03/2012,12-03851,1884.8,CBC TAXIS LTD
Nottinghamshire County Council,1111/1001,Adult Social Care and Health,ASCH,Transport Related,CCA,23/03/2012,12-03853,1722,CW TAXIS
